Workbook

Sheet Start
M4: In fünf Schritten zum Businessplan | AK4: Version 11f - April 2018
M7: Schritt 1: Investitionen | AJ7: Klicken Sie auf einen der nebenstehenden Buttons,
M13: Schritt 2: Umsätze | AJ13: um in das Tool zu gelangen!
M17: Schritt 3: Kostenaufstellung
M21: Schritt 4: Einnahmen
M25: Schritt 5: Eigen- & Fremdkapital
M30: Ergebnis der fünf Schritte sind die folgenden vier Auswertungen, die Sie dem Textteil Ihres Businessplans beilegen:
M37: Rentabilitätsplan
M41: Liquiditätsplan
M45: Kapitalbedarfsplan
M49: Finanzierungsplan
M54: Zur Erleichterung der Berechnungen unterstützen Sie vier zusätzliche Tools:
M62: Personalkosten
M66: Materialkosten
M70: Abschreibungen
M74: Entnahme

Sheet Investitionen
M4: Investitionen
M7: Schritt 1: Investitionen
M13: Schritt 2: Umsätze | AO13: Personalkosten | BE13: Rentabilitätsplan
M17: Schritt 3: Kostenaufstellung | AO17: Materialkosten | BE17: Liquiditätsplan
M21: Schritt 4: Einnahmen | AO21: Abschreibungen | BE21: Kapitalbedarf
E25: Start | M25: Schritt 5: Eigen- & Fremdkapital | AO25: Entnahme | BE25: Finanzierungsplan
E30: Beginn der Selbstständigkeit | BE30: 2018-05-01
E31: Mehrwertsteuersatz auf eigene Leistungen | BE31: 0.19
E33: Gründungsbedingte Kosten
E35: Gründungsberatung
E36: Erstberatung Steuerberater
E37: Eintragung ins Handelsregister und Notarkosten
E38: Gewerbeanmeldung
E39: Markenschutz
E40: Einmalige Patent-, Lizenz-, Franchisegebühren
E41: Sonstiges
E42: Summe Gründungsbedingte Kosten | BE42: =SUM(BE35:BQ41) -> 0
E44: Büro, Halle, Laden
E46: Investitionen Büro, Halle, Laden
E47: Anschaffung Grundstück, Gebäude
E48: Grunderwerbskosten (Notar, Grunderwerbssteuer)
E49: Maklerprovision
E50: Baukosten
E51: Bauliche Änderungen, Renovierung
E52: Übernahme, Kauf von Unternehmensanteilen
E53: Mietkaution
E54: Sonstiges
E55: Summe Büro, Halle, Laden | BE55: =SUM(BE46:BP54) -> 0
E57: Investitionen Geschäfts- und Betriebsausstattung
E59: Maschinen, Geräte, Werkzeuge
E60: Büromöbel, Ladeneinrichtung
E61: Warenlager
E62: Fuhrpark, Betriebsfahrzeug
E63: PC, Laptop, Drucker
E64: Kasse, Kopierer
E65: Software
E66: Telefon, ISDN oder DSL-Anschluss, Netzwerk
E67: Erstausstattung Marketing
E68: Kosten der Markterschließung
E69: Sonstiges
E70: Summe Geschäfts- und Betriebsausstattung | BE70: =SUM(BE59:BP69) -> 0
E72: Summe Investitionen | BE72: =BE70+BE55 -> 0
E74: Summe gründungsbedingte Kosten und Investitionen | BE74: =BE72+BE42 -> 0

Sheet Umsätze
M4: Umsätze
M7: Schritt 1: Investitionen
M13: Schritt 2: Umsätze | AO13: Personalkosten | BE13: Rentabilitätsplan
M17: Schritt 3: Kostenaufstellung | AO17: Materialkosten | BE17: Liquiditätsplan
M21: Schritt 4: Einnahmen | AO21: Abschreibungen | BE21: Kapitalbedarfsplan
E25: Start | M25: Schritt 5: Eigen- & Fremdkapital | AO25: Entnahme | BE25: Finanzierungsplan
F31: Wählen Sie zuerst, mit welcher Alternative Sie Ihre Umsätze planen: | BE31: Dann arbeiten Sie mit:
F33: A1:Sie planen mit einem durchschnittlichen Tagesumsatz: | BE33: Kalender und Alternative 1
F34: A2:Sie planen mit einem Jahresumsatz: | BE34: Kalender und Alternative 2
F35: A3:Sie planen die Absatzmenge mit zugehörigem Verkaufspreis: | BE35: Kalender und Alternative 3
F36: A4:Sie möchten Ihren monatlichen Umsatz einfach manuell eingeben: | BE36: Nur Alternative 4
E39: Kalender zur Ermittlung der Arbeitstage bzw. Umsatztage
E41: Planung 1. Jahr: | AO41: 1. Monat | BB41: 2. Monat | BP41: 3. Monat | CC41: 4. Monat | CP41: 5. Monat | DC41: 6. Monat | DP41: 7. Monat | EC41: 8. Monat | EP41: 9. Monat | FC41: 10. Monat | FP41: 11. Monat | GC41: 12. Monat | GP41: Summe
AO42: =Investitionen!$BE$30 -> 2018-05-01 | BB42: =DATE(YEAR(AO42),MONTH(AO42)+1,DAY(AO42)) -> 2018-06-01 | BP42: =DATE(YEAR(BB42),MONTH(BB42)+1,DAY(BB42)) -> 2018-07-01 | CC42: =DATE(YEAR(BP42),MONTH(BP42)+1,DAY(BP42)) -> 2018-08-01 | CP42: =DATE(YEAR(CC42),MONTH(CC42)+1,DAY(CC42)) -> 2018-09-01 | DC42: =DATE(YEAR(CP42),MONTH(CP42)+1,DAY(CP42)) -> 2018-10-01 | DP42: =DATE(YEAR(DC42),MONTH(DC42)+1,DAY(DC42)) -> 2018-11-01 | EC42: =DATE(YEAR(DP42),MONTH(DP42)+1,DAY(DP42)) -> 2018-12-01 | EP42: =DATE(YEAR(EC42),MONTH(EC42)+1,DAY(EC42)) -> 2019-01-01 | FC42: =DATE(YEAR(EP42),MONTH(EP42)+1,DAY(EP42)) -> 2019-02-01 | FP42: =DATE(YEAR(FC42),MONTH(FC42)+1,DAY(FC42)) -> 2019-03-01 | GC42: =DATE(YEAR(FP42),MONTH(FP42)+1,DAY(FP42)) -> 2019-04-01 | GP42: 12 Monate
E43: Verfügbare Arbeitstage des Monats | GP43: =SUM(AO43:GC43) -> 0
E44: davon Urlaub bzw. geschlossen | GP44: =SUM(AO44:GC44) -> 0
E45: davon nicht fakturierbar | GP45: =SUM(AO45:GC45) -> 0
E46: Umsatzminderung während Anlaufzeit in %
E47: Summe Arbeitstage bzw. Umsatztage | AO47: =(AO43-AO44-AO45)*(1-AO46) -> 0 | BB47: =(BB43-BB44-BB45)*(1-BB46) -> 0 | BP47: =(BP43-BP44-BP45)*(1-BP46) -> 0 | CC47: =(CC43-CC44-CC45)*(1-CC46) -> 0 | CP47: =(CP43-CP44-CP45)*(1-CP46) -> 0 | DC47: =(DC43-DC44-DC45)*(1-DC46) -> 0 | DP47: =(DP43-DP44-DP45)*(1-DP46) -> 0 | EC47: =(EC43-EC44-EC45)*(1-EC46) -> 0 | EP47: =(EP43-EP44-EP45)*(1-EP46) -> 0 | FC47: =(FC43-FC44-FC45)*(1-FC46) -> 0 | FP47: =(FP43-FP44-FP45)*(1-FP46) -> 0 | GC47: =(GC43-GC44-GC45)*(1-GC46) -> 0 | GP47: =IF(SUM(AO47:GC47)=0,0.001,SUM(AO47:GC47)) -> 0.001
E49: Planung 2. Jahr: | AO49: 1. Monat | BB49: 2. Monat | BP49: 3. Monat | CC49: 4. Monat | CP49: 5. Monat | DC49: 6. Monat | DP49: 7. Monat | EC49: 8. Monat | EP49: 9. Monat | FC49: 10. Monat | FP49: 11. Monat | GC49: 12. Monat | GP49: Summe
AO50: =DATE(YEAR(AO42)+1,MONTH(AO42),DAY(AO42)) -> 2019-05-01 | BB50: =DATE(YEAR(AO50),MONTH(AO50)+1,DAY(AO50)) -> 2019-06-01 | BP50: =DATE(YEAR(BB50),MONTH(BB50)+1,DAY(BB50)) -> 2019-07-01 | CC50: =DATE(YEAR(BP50),MONTH(BP50)+1,DAY(BP50)) -> 2019-08-01 | CP50: =DATE(YEAR(CC50),MONTH(CC50)+1,DAY(CC50)) -> 2019-09-01 | DC50: =DATE(YEAR(CP50),MONTH(CP50)+1,DAY(CP50)) -> 2019-10-01 | DP50: =DATE(YEAR(DC50),MONTH(DC50)+1,DAY(DC50)) -> 2019-11-01 | EC50: =DATE(YEAR(DP50),MONTH(DP50)+1,DAY(DP50)) -> 2019-12-01 | EP50: =DATE(YEAR(EC50),MONTH(EC50)+1,DAY(EC50)) -> 2020-01-01 | FC50: =DATE(YEAR(EP50),MONTH(EP50)+1,DAY(EP50)) -> 2020-02-01 | FP50: =DATE(YEAR(FC50),MONTH(FC50)+1,DAY(FC50)) -> 2020-03-01 | GC50: =DATE(YEAR(FP50),MONTH(FP50)+1,DAY(FP50)) -> 2020-04-01 | GP50: 12 Monate
E51: Werktage des Monats | GP51: =SUM(AO51:GC51) -> 0
E52: davon Urlaub bzw. geschlossen | GP52: =SUM(AO52:GC52) -> 0
E53: davon nicht fakturierbar | GP53: =SUM(AO53:GC53) -> 0
E54: Umsatzminderung während Anlaufzeit in %
E55: Summe Arbeitstage bzw. Umsatztage | AO55: =(AO51-AO52-AO53)*(1-AO54) -> 0 | BB55: =(BB51-BB52-BB53)*(1-BB54) -> 0 | BP55: =(BP51-BP52-BP53)*(1-BP54) -> 0 | CC55: =(CC51-CC52-CC53)*(1-CC54) -> 0 | CP55: =(CP51-CP52-CP53)*(1-CP54) -> 0 | DC55: =(DC51-DC52-DC53)*(1-DC54) -> 0 | DP55: =(DP51-DP52-DP53)*(1-DP54) -> 0 | EC55: =(EC51-EC52-EC53)*(1-EC54) -> 0 | EP55: =(EP51-EP52-EP53)*(1-EP54) -> 0 | FC55: =(FC51-FC52-FC53)*(1-FC54) -> 0 | FP55: =(FP51-FP52-FP53)*(1-FP54) -> 0 | GC55: =(GC51-GC52-GC53)*(1-GC54) -> 0 | GP55: =IF(SUM(AO55:GC55)=0,0.001,SUM(AO55:GC55)) -> 0.001
E57: Alternative 1: Berechnung des Monatsumsatzes aus Tagesumsatz und Anzahl Arbeitstage | AO57: Berechnung des Monatsumsatzes aus Tagesumsatz und Anzahl Arbeitstage
E59: Geplanter Umsatz pro Arbeitstag 1. Jahr: | BP59: Umsatz pro Arbeitstag 2. Jahr:
AO61: =Investitionen!$BE$30 -> 2018-05-01 | BB61: =DATE(YEAR(AO61),MONTH(AO61)+1,DAY(AO61)) -> 2018-06-01 | BP61: =DATE(YEAR(BB61),MONTH(BB61)+1,DAY(BB61)) -> 2018-07-01 | CC61: =DATE(YEAR(BP61),MONTH(BP61)+1,DAY(BP61)) -> 2018-08-01 | CP61: =DATE(YEAR(CC61),MONTH(CC61)+1,DAY(CC61)) -> 2018-09-01 | DC61: =DATE(YEAR(CP61),MONTH(CP61)+1,DAY(CP61)) -> 2018-10-01 | DP61: =DATE(YEAR(DC61),MONTH(DC61)+1,DAY(DC61)) -> 2018-11-01 | EC61: =DATE(YEAR(DP61),MONTH(DP61)+1,DAY(DP61)) -> 2018-12-01 | EP61: =DATE(YEAR(EC61),MONTH(EC61)+1,DAY(EC61)) -> 2019-01-01 | FC61: =DATE(YEAR(EP61),MONTH(EP61)+1,DAY(EP61)) -> 2019-02-01 | FP61: =DATE(YEAR(FC61),MONTH(FC61)+1,DAY(FC61)) -> 2019-03-01 | GC61: =DATE(YEAR(FP61),MONTH(FP61)+1,DAY(FP61)) -> 2019-04-01 | GP61: 12 Monate
E62: Umsatz pro Monat Jahr 1 | AO62: =$AO$59*AO47 -> 0 | BB62: =$AO$59*BB47 -> 0 | BP62: =$AO$59*BP47 -> 0 | CC62: =$AO$59*CC47 -> 0 | CP62: =$AO$59*CP47 -> 0 | DC62: =$AO$59*DC47 -> 0 | DP62: =$AO$59*DP47 -> 0 | EC62: =$AO$59*EC47 -> 0 | EP62: =$AO$59*EP47 -> 0 | FC62: =$AO$59*FC47 -> 0 | FP62: =$AO$59*FP47 -> 0 | GC62: =$AO$59*GC47 -> 0 | GP62: =SUM(AO62:GC62) -> 0
AO64: =AO50 -> 2019-05-01 | BB64: =DATE(YEAR(AO64),MONTH(AO64)+1,DAY(AO64)) -> 2019-06-01 | BP64: =DATE(YEAR(BB64),MONTH(BB64)+1,DAY(BB64)) -> 2019-07-01 | CC64: =DATE(YEAR(BP64),MONTH(BP64)+1,DAY(BP64)) -> 2019-08-01 | CP64: =DATE(YEAR(CC64),MONTH(CC64)+1,DAY(CC64)) -> 2019-09-01 | DC64: =DATE(YEAR(CP64),MONTH(CP64)+1,DAY(CP64)) -> 2019-10-01 | DP64: =DATE(YEAR(DC64),MONTH(DC64)+1,DAY(DC64)) -> 2019-11-01 | EC64: =DATE(YEAR(DP64),MONTH(DP64)+1,DAY(DP64)) -> 2019-12-01 | EP64: =DATE(YEAR(EC64),MONTH(EC64)+1,DAY(EC64)) -> 2020-01-01 | FC64: =DATE(YEAR(EP64),MONTH(EP64)+1,DAY(EP64)) -> 2020-02-01 | FP64: =DATE(YEAR(FC64),MONTH(FC64)+1,DAY(FC64)) -> 2020-03-01 | GC64: =DATE(YEAR(FP64),MONTH(FP64)+1,DAY(FP64)) -> 2020-04-01 | GP64: 12 Monate
E65: Umsatz pro Monat Jahr 2 | AO65: =$CP$59*AO55 -> 0 | BB65: =CP59*BB55 -> 0 | BP65: =$CP$59*BP55 -> 0 | CC65: =$CP$59*CC55 -> 0 | CP65: =$CP$59*CP55 -> 0 | DC65: =$CP$59*DC55 -> 0 | DP65: =$CP$59*DP55 -> 0 | EC65: =$CP$59*EC55 -> 0 | EP65: =$CP$59*EP55 -> 0 | FC65: =$CP$59*FC55 -> 0 | FP65: =$CP$59*FP55 -> 0 | GC65: =$CP$59*GC55 -> 0 | GP65: =SUM(AO65:GC65) -> 0
E67: Umsatzplanung Folgejahr 3 | AO67: 1. Jahr | BB67: 2. Jahr | BP67: 3. Jahr
E68: Umsatztage | AO68: =$GP$47 -> 0.001 | BB68: =GP55 -> 0.001
E69: Umsatz pro Tag | AO69: =AO59 -> 0 | BB69: =CP59 -> 0
E70: Jahresumsatz | AO70: =$GP$62 -> 0 | BB70: =BB68*BB69 -> 0 | BP70: =BP68*BP69 -> 0
E72: Alternative 2: Verteilung des Jahresumsatzes nach Arbeitstagen
E74: Umsatzplanung für 3 Jahre | AO74: 1. Jahr | BB74: 2. Jahr | BP74: 3. Jahr
E75: Jahresumsatz Produkt 1
E76: Jahresumsatz Produkt 2
E77: Jahresumsatz Produkt 3
E78: Jahresumsatz Produkt 4
E79: Jahresumsatz Produkt 5
E80: Jahresumsatz gesamt | AO80: =SUM(AO75:BA79) -> 0 | BB80: =SUM(BB75:BB79) -> 0 | BP80: =SUM(BP75:BP79) -> 0
E82: Monatsplanung Jahr 1: | AO82: =Investitionen!$BE$30 -> 2018-05-01 | BB82: =DATE(YEAR(AO82),MONTH(AO82)+1,DAY(AO82)) -> 2018-06-01 | BP82: =DATE(YEAR(BB82),MONTH(BB82)+1,DAY(BB82)) -> 2018-07-01 | CC82: =DATE(YEAR(BP82),MONTH(BP82)+1,DAY(BP82)) -> 2018-08-01 | CP82: =DATE(YEAR(CC82),MONTH(CC82)+1,DAY(CC82)) -> 2018-09-01 | DC82: =DATE(YEAR(CP82),MONTH(CP82)+1,DAY(CP82)) -> 2018-10-01 | DP82: =DATE(YEAR(DC82),MONTH(DC82)+1,DAY(DC82)) -> 2018-11-01 | EC82: =DATE(YEAR(DP82),MONTH(DP82)+1,DAY(DP82)) -> 2018-12-01 | EP82: =DATE(YEAR(EC82),MONTH(EC82)+1,DAY(EC82)) -> 2019-01-01 | FC82: =DATE(YEAR(EP82),MONTH(EP82)+1,DAY(EP82)) -> 2019-02-01 | FP82: =DATE(YEAR(FC82),MONTH(FC82)+1,DAY(FC82)) -> 2019-03-01 | GC82: =DATE(YEAR(FP82),MONTH(FP82)+1,DAY(FP82)) -> 2019-04-01 | GP82: 12 Monate
E83: Umsatz pro Monat Produkt 1 | AO83: =$AO$75/$GP$47*AO47 -> 0 | BB83: =$AO$75/$GP$47*BB47 -> 0 | BP83: =$AO$75/$GP$47*BP47 -> 0 | CC83: =$AO$75/$GP$47*CC47 -> 0 | CP83: =$AO$75/$GP$47*CP47 -> 0 | DC83: =$AO$75/$GP$47*DC47 -> 0 | DP83: =$AO$75/$GP$47*DP47 -> 0 | EC83: =$AO$75/$GP$47*EC47 -> 0 | EP83: =$AO$75/$GP$47*EP47 -> 0 | FC83: =$AO$75/$GP$47*FC47 -> 0 | FP83: =$AO$75/$GP$47*FP47 -> 0 | GC83: =$AO$75/$GP$47*GC47 -> 0 | GP83: =SUM(AO83:GC83) -> 0
E84: Umsatz pro Monat Produkt 2 | AO84: =$AO$76/$GP$47*AO47 -> 0 | BB84: =$AO$76/$GP$47*BB47 -> 0 | BP84: =$AO$76/$GP$47*BP47 -> 0 | CC84: =$AO$76/$GP$47*CC47 -> 0 | CP84: =$AO$76/$GP$47*CP47 -> 0 | DC84: =$AO$76/$GP$47*DC47 -> 0 | DP84: =$AO$76/$GP$47*DP47 -> 0 | EC84: =$AO$76/$GP$47*EC47 -> 0 | EP84: =$AO$76/$GP$47*EP47 -> 0 | FC84: =$AO$76/$GP$47*FC47 -> 0 | FP84: =$AO$76/$GP$47*FP47 -> 0 | GC84: =$AO$76/$GP$47*GC47 -> 0 | GP84: =SUM(AO84:GC84) -> 0
E85: Umsatz pro Monat Produkt 3 | AO85: =$AO$77/$GP$47*AO$47 -> 0 | BB85: =$AO$77/$GP$47*BB$47 -> 0 | BP85: =$AO$77/$GP$47*BP$47 -> 0 | CC85: =$AO$77/$GP$47*CC$47 -> 0 | CP85: =$AO$77/$GP$47*CP$47 -> 0 | DC85: =$AO$77/$GP$47*DC$47 -> 0 | DP85: =$AO$77/$GP$47*DP$47 -> 0 | EC85: =$AO$77/$GP$47*EC$47 -> 0 | EP85: =$AO$77/$GP$47*EP$47 -> 0 | FC85: =$AO$77/$GP$47*FC$47 -> 0 | FP85: =$AO$77/$GP$47*FP$47 -> 0 | GC85: =$AO$77/$GP$47*GC$47 -> 0 | GP85: =SUM(AO85:GC85) -> 0
E86: Umsatz pro Monat Produkt 4 | AO86: =$AO$78/$GP$47*AO$47 -> 0 | BB86: =$AO$78/$GP$47*BB$47 -> 0 | BP86: =$AO$78/$GP$47*BP$47 -> 0 | CC86: =$AO$78/$GP$47*CC$47 -> 0 | CP86: =$AO$78/$GP$47*CP$47 -> 0 | DC86: =$AO$78/$GP$47*DC$47 -> 0 | DP86: =$AO$78/$GP$47*DP$47 -> 0 | EC86: =$AO$78/$GP$47*EC$47 -> 0 | EP86: =$AO$78/$GP$47*EP$47 -> 0 | FC86: =$AO$78/$GP$47*FC$47 -> 0 | FP86: =$AO$78/$GP$47*FP$47 -> 0 | GC86: =$AO$78/$GP$47*GC$47 -> 0 | GP86: =SUM(AO86:GC86) -> 0
E87: Umsatz pro Monat Produkt 5 | AO87: =$AO$79/$GP$47*AO$47 -> 0 | BB87: =$AO$79/$GP$47*BB$47 -> 0 | BP87: =$AO$79/$GP$47*BP$47 -> 0 | CC87: =$AO$79/$GP$47*CC$47 -> 0 | CP87: =$AO$79/$GP$47*CP$47 -> 0 | DC87: =$AO$79/$GP$47*DC$47 -> 0 | DP87: =$AO$79/$GP$47*DP$47 -> 0 | EC87: =$AO$79/$GP$47*EC$47 -> 0 | EP87: =$AO$79/$GP$47*EP$47 -> 0 | FC87: =$AO$79/$GP$47*FC$47 -> 0 | FP87: =$AO$79/$GP$47*FP$47 -> 0 | GC87: =$AO$79/$GP$47*GC$47 -> 0 | GP87: =SUM(AO87:GC87) -> 0
E88: Gesamtumsatz pro Monat | AO88: =SUM(AO83:AO87) -> 0 | BB88: =SUM(BB83:BB87) -> 0 | BP88: =SUM(BP83:BP87) -> 0 | CC88: =SUM(CC83:CC87) -> 0 | CP88: =SUM(CP83:CP87) -> 0 | DC88: =SUM(DC83:DC87) -> 0 | DP88: =SUM(DP83:DP87) -> 0 | EC88: =SUM(EC83:EC87) -> 0 | EP88: =SUM(EP83:EP87) -> 0 | FC88: =SUM(FC83:FC87) -> 0 | FP88: =SUM(FP83:FP87) -> 0 | GC88: =SUM(GC83:GC87) -> 0 | GP88: =SUM(GP83:GP87) -> 0
E90: Monatsplanung Jahr 2: | AO90: =AO64 -> 2019-05-01 | BB90: =DATE(YEAR(AO90),MONTH(AO90)+1,DAY(AO90)) -> 2019-06-01 | BP90: =DATE(YEAR(BB90),MONTH(BB90)+1,DAY(BB90)) -> 2019-07-01 | CC90: =DATE(YEAR(BP90),MONTH(BP90)+1,DAY(BP90)) -> 2019-08-01 | CP90: =DATE(YEAR(CC90),MONTH(CC90)+1,DAY(CC90)) -> 2019-09-01 | DC90: =DATE(YEAR(CP90),MONTH(CP90)+1,DAY(CP90)) -> 2019-10-01 | DP90: =DATE(YEAR(DC90),MONTH(DC90)+1,DAY(DC90)) -> 2019-11-01 | EC90: =DATE(YEAR(DP90),MONTH(DP90)+1,DAY(DP90)) -> 2019-12-01 | EP90: =DATE(YEAR(EC90),MONTH(EC90)+1,DAY(EC90)) -> 2020-01-01 | FC90: =DATE(YEAR(EP90),MONTH(EP90)+1,DAY(EP90)) -> 2020-02-01 | FP90: =DATE(YEAR(FC90),MONTH(FC90)+1,DAY(FC90)) -> 2020-03-01 | GC90: =DATE(YEAR(FP90),MONTH(FP90)+1,DAY(FP90)) -> 2020-04-01 | GP90: 12 Monate
E91: Umsatz pro Monat Produkt 1 | AO91: =$AO$55/$GP$55*BB75 -> 0 | BB91: =$BB$55/$GP$55*BB75 -> 0 | BP91: =$BP$55/$GP$55*BB75 -> 0 | CC91: =$CC$55/$GP$55*BB75 -> 0 | CP91: =$CP$55/$GP$55*BB75 -> 0 | DC91: =$DC$55/$GP$55*BB75 -> 0 | DP91: =$DP$55/$GP$55*BB75 -> 0 | EC91: =$EC$55/$GP$55*BB75 -> 0 | EP91: =$EP$55/$GP$55*BB75 -> 0 | FC91: =$FC$55/$GP$55*BB75 -> 0 | FP91: =$FP$55/$GP$55*BB75 -> 0 | GC91: =$GC$55/$GP$55*BB75 -> 0 | GP91: =SUM(AO91:GC91) -> 0
E92: Umsatz pro Monat Produkt 2 | AO92: =$AO$55/$GP$55*BB76 -> 0 | BB92: =$BB$55/$GP$55*BB76 -> 0 | BP92: =$BP$55/$GP$55*BB76 -> 0 | CC92: =$CC$55/$GP$55*BB76 -> 0 | CP92: =$CP$55/$GP$55*BB76 -> 0 | DC92: =$DC$55/$GP$55*BB76 -> 0 | DP92: =$DP$55/$GP$55*BB76 -> 0 | EC92: =$EC$55/$GP$55*BB76 -> 0 | EP92: =$EP$55/$GP$55*BB76 -> 0 | FC92: =$FC$55/$GP$55*BB76 -> 0 | FP92: =$FP$55/$GP$55*BB76 -> 0 | GC92: =$GC$55/$GP$55*BB76 -> 0 | GP92: =SUM(AO92:GC92) -> 0
E93: Umsatz pro Monat Produkt 3 | AO93: =$AO$55/$GP$55*BB77 -> 0 | BB93: =$BB$55/$GP$55*BB77 -> 0 | BP93: =$BP$55/$GP$55*BB77 -> 0 | CC93: =$CC$55/$GP$55*BB77 -> 0 | CP93: =$CP$55/$GP$55*BB77 -> 0 | DC93: =$DC$55/$GP$55*BB77 -> 0 | DP93: =$DP$55/$GP$55*BB77 -> 0 | EC93: =$EC$55/$GP$55*BB77 -> 0 | EP93: =$EP$55/$GP$55*BB77 -> 0 | FC93: =$FC$55/$GP$55*BB77 -> 0 | FP93: =$FP$55/$GP$55*BB77 -> 0 | GC93: =$GC$55/$GP$55*BB77 -> 0 | GP93: =SUM(AO93:GC93) -> 0
E94: Umsatz pro Monat Produkt 4 | AO94: =$AO$55/$GP$55*BB78 -> 0 | BB94: =$BB$55/$GP$55*BB78 -> 0 | BP94: =$BP$55/$GP$55*BB78 -> 0 | CC94: =$CC$55/$GP$55*BB78 -> 0 | CP94: =$CP$55/$GP$55*BB78 -> 0 | DC94: =$DC$55/$GP$55*BB78 -> 0 | DP94: =$DP$55/$GP$55*BB78 -> 0 | EC94: =$EC$55/$GP$55*BB78 -> 0 | EP94: =$EP$55/$GP$55*BB78 -> 0 | FC94: =$FC$55/$GP$55*BB78 -> 0 | FP94: =$FP$55/$GP$55*BB78 -> 0 | GC94: =$GC$55/$GP$55*BB78 -> 0 | GP94: =SUM(AO94:GC94) -> 0
E95: Umsatz pro Monat Produkt 5 | AO95: =$AO$55/$GP$55*BB79 -> 0 | BB95: =$BB$55/$GP$55*BB79 -> 0 | BP95: =$BP$55/$GP$55*BB79 -> 0 | CC95: =$CC$55/$GP$55*BB79 -> 0 | CP95: =$CP$55/$GP$55*BB79 -> 0 | DC95: =$DC$55/$GP$55*BB79 -> 0 | DP95: =$DP$55/$GP$55*BB79 -> 0 | EC95: =$EC$55/$GP$55*BB79 -> 0 | EP95: =$EP$55/$GP$55*BB79 -> 0 | FC95: =$FC$55/$GP$55*BB79 -> 0 | FP95: =$FP$55/$GP$55*BB79 -> 0 | GC95: =$GC$55/$GP$55*BB79 -> 0 | GP95: =SUM(AO95:GC95) -> 0
E96: Gesamtumsatz pro Monat | AO96: =SUM(AO91:AO95) -> 0 | BB96: =SUM(BB91:BB95) -> 0 | BP96: =SUM(BP91:BP95) -> 0 | CC96: =SUM(CC91:CC95) -> 0 | CP96: =SUM(CP91:CP95) -> 0 | DC96: =SUM(DC91:DC95) -> 0 | DP96: =SUM(DP91:DP95) -> 0 | EC96: =SUM(EC91:EC95) -> 0 | EP96: =SUM(EP91:EP95) -> 0 | FC96: =SUM(FC91:FC95) -> 0 | FP96: =SUM(FP91:FP95) -> 0 | GC96: =SUM(GC91:GC95) -> 0 | GP96: =SUM(GP91:GP95) -> 0
E98: Alternative 3: Berechnung des Umsatzes aus Absatzmenge und Verkaufspreis und Verteilung nach Arbeitstagen | AO98: Berechnung des Monatsumsatzes aus Tagesumsatz und Anzahl Arbeitstage
E100: Geplante Jahres-Absatzmenge Produkt 1 | BE100: Geplanter Verkaufspreis in € Produkt 1
E101: Geplante Jahres-Absatzmenge Produkt 2 | BE101: Geplanter Verkaufspreis in € Produkt 2
E102: Geplante Jahres-Absatzmenge Produkt 3 | BE102: Geplanter Verkaufspreis in € Produkt 3
E103: Geplante Jahres-Absatzmenge Produkt 4 | BE103: Geplanter Verkaufspreis in € Produkt 4
E104: Geplante Jahres-Absatzmenge Produkt 5 | BE104: Geplanter Verkaufspreis in € Produkt 5
E105: Jahresabsatz gesamt | AO105: =SUM(AO100:AO104) -> 0
E107: Monatsplanung Jahr 1: | AO107: =Investitionen!$BE$30 -> 2018-05-01 | BB107: =DATE(YEAR(AO107),MONTH(AO107)+1,DAY(AO107)) -> 2018-06-01 | BP107: =DATE(YEAR(BB107),MONTH(BB107)+1,DAY(BB107)) -> 2018-07-01 | CC107: =DATE(YEAR(BP107),MONTH(BP107)+1,DAY(BP107)) -> 2018-08-01 | CP107: =DATE(YEAR(CC107),MONTH(CC107)+1,DAY(CC107)) -> 2018-09-01 | DC107: =DATE(YEAR(CP107),MONTH(CP107)+1,DAY(CP107)) -> 2018-10-01 | DP107: =DATE(YEAR(DC107),MONTH(DC107)+1,DAY(DC107)) -> 2018-11-01 | EC107: =DATE(YEAR(DP107),MONTH(DP107)+1,DAY(DP107)) -> 2018-12-01 | EP107: =DATE(YEAR(EC107),MONTH(EC107)+1,DAY(EC107)) -> 2019-01-01 | FC107: =DATE(YEAR(EP107),MONTH(EP107)+1,DAY(EP107)) -> 2019-02-01 | FP107: =DATE(YEAR(FC107),MONTH(FC107)+1,DAY(FC107)) -> 2019-03-01 | GC107: =DATE(YEAR(FP107),MONTH(FP107)+1,DAY(FP107)) -> 2019-04-01 | GP107: 12 Monate
E108: Absatzmenge pro Monat Produkt 1: | AO108: =ROUND($AO$100/$GP$47*AO47,) -> 0 | BB108: =ROUND($AO$100/$GP$47*BB47,) -> 0 | BP108: =ROUND($AO$100/$GP$47*BP47,) -> 0 | CC108: =ROUND($AO$100/$GP$47*CC47,) -> 0 | CP108: =ROUND($AO$100/$GP$47*CP47,) -> 0 | DC108: =ROUND($AO$100/$GP$47*DC47,) -> 0 | DP108: =ROUND($AO$100/$GP$47*DP47,) -> 0 | EC108: =ROUND($AO$100/$GP$47*EC47,) -> 0 | EP108: =ROUND($AO$100/$GP$47*EP47,) -> 0 | FC108: =ROUND($AO$100/$GP$47*FC47,) -> 0 | FP108: =ROUND($AO$100/$GP$47*FP47,) -> 0 | GC108: =$AO$100-SUM(AO108:GB108) -> 0 | GP108: =SUM(AO108:GO108) -> 0
E109: Umsatz pro Monat Produkt 1: | AO109: =AO108*$CP$100 -> 0 | BB109: =BB108*$CP$100 -> 0 | BP109: =BP108*$CP$100 -> 0 | CC109: =CC108*$CP$100 -> 0 | CP109: =CP108*$CP$100 -> 0 | DC109: =DC108*$CP$100 -> 0 | DP109: =DP108*$CP$100 -> 0 | EC109: =EC108*$CP$100 -> 0 | EP109: =EP108*$CP$100 -> 0 | FC109: =FC108*$CP$100 -> 0 | FP109: =FP108*$CP$100 -> 0 | GC109: =GC108*$CP$100 -> 0 | GP109: =SUM(AO109:GO109) -> 0
E111: Absatzmenge pro Monat Produkt 2: | AO111: =ROUND($AO$101/$GP$47*AO47,) -> 0 | BB111: =ROUND($AO$101/$GP$47*BB47,) -> 0 | BP111: =ROUND($AO$101/$GP$47*BP47,) -> 0 | CC111: =ROUND($AO$101/$GP$47*CC47,) -> 0 | CP111: =ROUND($AO$101/$GP$47*CP47,) -> 0 | DC111: =ROUND($AO$101/$GP$47*DC47,) -> 0 | DP111: =ROUND($AO$101/$GP$47*DP47,) -> 0 | EC111: =ROUND($AO$101/$GP$47*EC47,) -> 0 | EP111: =ROUND($AO$101/$GP$47*EP47,) -> 0 | FC111: =ROUND($AO$101/$GP$47*FC47,) -> 0 | FP111: =ROUND($AO$101/$GP$47*FP47,) -> 0 | GC111: =$AO$101-SUM(AO111:FP111) -> 0 | GP111: =SUM(AO111:GC111) -> 0
E112: Umsatz pro Monat Produkt 2: | AO112: =AO111*$CP$101 -> 0 | BB112: =BB111*$CP$101 -> 0 | BP112: =BP111*$CP$101 -> 0 | CC112: =CC111*$CP$101 -> 0 | CP112: =CP111*$CP$101 -> 0 | DC112: =DC111*$CP$101 -> 0 | DP112: =DP111*$CP$101 -> 0 | EC112: =EC111*$CP$101 -> 0 | EP112: =EP111*$CP$101 -> 0 | FC112: =FC111*$CP$101 -> 0 | FP112: =FP111*$CP$101 -> 0 | GC112: =GC111*$CP$101 -> 0 | GP112: =SUM(AO112:GC112) -> 0
E114: Absatzmenge pro Monat Produkt 3: | AO114: =ROUND($AO102/$GP$47*AO$47,) -> 0 | BB114: =ROUND($AO$102/$GP$47*BB$47,) -> 0 | BP114: =ROUND($AO$102/$GP$47*BP$47,) -> 0 | CC114: =ROUND($AO$102/$GP$47*CC$47,) -> 0 | CP114: =ROUND($AO$102/$GP$47*CP$47,) -> 0 | DC114: =ROUND($AO$102/$GP$47*DC$47,) -> 0 | DP114: =ROUND($AO$102/$GP$47*DP$47,) -> 0 | EC114: =ROUND($AO$102/$GP$47*EC$47,) -> 0 | EP114: =ROUND($AO$102/$GP$47*EP$47,) -> 0 | FC114: =ROUND($AO$102/$GP$47*FC$47,) -> 0 | FP114: =ROUND($AO$102/$GP$47*FP$47,) -> 0 | GC114: =$AO$102-SUM(AO114:FP114) -> 0 | GP114: =SUM(AO114:GC114) -> 0
E115: Umsatz pro Monat Produkt 3: | AO115: =AO114*$CP$102 -> 0 | BB115: =BB114*$CP$102 -> 0 | BP115: =BP114*$CP$102 -> 0 | CC115: =CC114*$CP$102 -> 0 | CP115: =CP114*$CP$102 -> 0 | DC115: =DC114*$CP$102 -> 0 | DP115: =DP114*$CP$102 -> 0 | EC115: =EC114*$CP$102 -> 0 | EP115: =EP114*$CP$102 -> 0 | FC115: =FC114*$CP$102 -> 0 | FP115: =FP114*$CP$102 -> 0 | GC115: =GC114*$CP$102 -> 0 | GP115: =SUM(AO115:GC115) -> 0
E117: Absatzmenge pro Monat Produkt 4: | AO117: =ROUND($AO103/$GP$47*AO$47,) -> 0 | BB117: =ROUND($AO103/$GP$47*BB$47,) -> 0 | BP117: =ROUND($AO103/$GP$47*BP$47,) -> 0 | CC117: =ROUND($AO103/$GP$47*CC$47,) -> 0 | CP117: =ROUND($AO103/$GP$47*CP$47,) -> 0 | DC117: =ROUND($AO103/$GP$47*DC$47,) -> 0 | DP117: =ROUND($AO103/$GP$47*DP$47,) -> 0 | EC117: =ROUND($AO103/$GP$47*EC$47,) -> 0 | EP117: =ROUND($AO103/$GP$47*EP$47,) -> 0 | FC117: =ROUND($AO103/$GP$47*FC$47,) -> 0 | FP117: =ROUND($AO103/$GP$47*FP$47,) -> 0 | GC117: =$AO$103-SUM(AO117:FP117) -> 0 | GP117: =SUM(AO117:GC117) -> 0
E118: Umsatz pro Monat Produkt 4: | AO118: =AO117*$CP$103 -> 0 | BB118: =BB117*$CP$103 -> 0 | BP118: =BP117*$CP$103 -> 0 | CC118: =CC117*$CP$103 -> 0 | CP118: =CP117*$CP$103 -> 0 | DC118: =DC117*$CP$103 -> 0 | DP118: =DP117*$CP$103 -> 0 | EC118: =EC117*$CP$103 -> 0 | EP118: =EP117*$CP$103 -> 0 | FC118: =FC117*$CP$103 -> 0 | FP118: =FP117*$CP$103 -> 0 | GC118: =GC117*$CP$103 -> 0 | GP118: =SUM(AO118:GC118) -> 0
E120: Absatzmenge pro Monat Produkt 5: | AO120: =ROUND($AO104/$GP$47*AO$47,) -> 0 | BB120: =ROUND($AO104/$GP$47*BB$47,) -> 0 | BP120: =ROUND($AO104/$GP$47*BP$47,) -> 0 | CC120: =ROUND($AO104/$GP$47*CC$47,) -> 0 | CP120: =ROUND($AO104/$GP$47*CP$47,) -> 0 | DC120: =ROUND($AO104/$GP$47*DC$47,) -> 0 | DP120: =ROUND($AO104/$GP$47*DP$47,) -> 0 | EC120: =ROUND($AO104/$GP$47*EC$47,) -> 0 | EP120: =ROUND($AO104/$GP$47*EP$47,) -> 0 | FC120: =ROUND($AO104/$GP$47*FC$47,) -> 0 | FP120: =ROUND($AO104/$GP$47*FP$47,) -> 0 | GC120: =$AO$104-SUM(AO120:FP120) -> 0 | GP120: =SUM(AO120:GC120) -> 0
E121: Umsatz pro Monat Produkt 5: | AO121: =AO120*$CP$104 -> 0 | BB121: =BB120*$CP$104 -> 0 | BP121: =BP120*$CP$104 -> 0 | CC121: =CC120*$CP$104 -> 0 | CP121: =CP120*$CP$104 -> 0 | DC121: =DC120*$CP$104 -> 0 | DP121: =DP120*$CP$104 -> 0 | EC121: =EC120*$CP$104 -> 0 | EP121: =EP120*$CP$104 -> 0 | FC121: =FC120*$CP$104 -> 0 | FP121: =FP120*$CP$104 -> 0 | GC121: =GC120*$CP$104 -> 0 | GP121: =SUM(AO121:GC121) -> 0
E123: Gesamtumsatz pro Monat | AO123: =AO121+AO118+AO115+AO112+AO109 -> 0 | BB123: =BB121+BB118+BB115+BB112+BB109 -> 0 | BP123: =BP121+BP118+BP115+BP112+BP109 -> 0 | CC123: =CC121+CC118+CC115+CC112+CC109 -> 0 | CP123: =CP121+CP118+CP115+CP112+CP109 -> 0 | DC123: =DC121+DC118+DC115+DC112+DC109 -> 0 | DP123: =DP121+DP118+DP115+DP112+DP109 -> 0 | EC123: =EC121+EC118+EC115+EC112+EC109 -> 0 | EP123: =EP121+EP118+EP115+EP112+EP109 -> 0 | FC123: =FC121+FC118+FC115+FC112+FC109 -> 0 | FP123: =FP121+FP118+FP115+FP112+FP109 -> 0 | GC123: =GC121+GC118+GC115+GC112+GC109 -> 0 | GP123: =GP121+GP118+GP115+GP112+GP109 -> 0
E125: Mengenplanung Folgejahre | AO125: 1. Jahr | BB125: 2. Jahr | BP125: 3. Jahr | CE125: Preisplanung Folgejahre | DC125: 1. Jahr | DP125: 2. Jahr | EC125: 3. Jahr
E126: Absatzmenge Produkt 1 | AO126: =AO100 -> 0 | CE126: Verkaufspreis Produkt 1 | DC126: =CP100 -> 0
E127: Absatzmenge Produkt 2 | AO127: =AO101 -> 0 | CE127: Verkaufspreis Produkt 2 | DC127: =CP101 -> 0
E128: Absatzmenge Produkt 3 | AO128: =AO102 -> 0 | CE128: Verkaufspreis Produkt 3 | DC128: =CP102 -> 0
E129: Absatzmenge Produkt 4 | AO129: =AO103 -> 0 | CE129: Verkaufspreis Produkt 4 | DC129: =CP103 -> 0
E130: Absatzmenge Produkt 5 | AO130: =AO104 -> 0 | CE130: Verkaufspreis Produkt 5 | DC130: =CP104 -> 0
E132: Umsatz Folgejahre | AO132: 1. Jahr | BB132: 2. Jahr | BP132: 3. Jahr
E133: Umsatz Produkt 1 | AO133: =$GP109 -> 0 | BB133: =BB126*DP126 -> 0 | BP133: =BP126*EC126 -> 0
E134: Umsatz Produkt 2 | AO134: =$GP112 -> 0 | BB134: =BB127*DP127 -> 0 | BP134: =BP127*EC127 -> 0
E135: Umsatz Produkt 3 | AO135: =$GP115 -> 0 | BB135: =BB128*DP128 -> 0 | BP135: =BP128*EC128 -> 0
E136: Umsatz Produkt 4 | AO136: =$GP118 -> 0 | BB136: =BB129*DP129 -> 0 | BP136: =BP129*EC129 -> 0
E137: Umsatz Produkt 5 | AO137: =$GP121 -> 0 | BB137: =BB130*DP130 -> 0 | BP137: =BP130*EC130 -> 0
E138: Summe gesamt | AO138: =SUM(AO133:AO137) -> 0 | BB138: =SUM(BB133:BB137) -> 0 | BP138: =SUM(BP133:BP137) -> 0
E140: Monatsplanung Jahr 2: | AO140: =AO90 -> 2019-05-01 | BB140: =DATE(YEAR(AO140),MONTH(AO140)+1,DAY(AO140)) -> 2019-06-01 | BP140: =DATE(YEAR(BB140),MONTH(BB140)+1,DAY(BB140)) -> 2019-07-01 | CC140: =DATE(YEAR(BP140),MONTH(BP140)+1,DAY(BP140)) -> 2019-08-01 | CP140: =DATE(YEAR(CC140),MONTH(CC140)+1,DAY(CC140)) -> 2019-09-01 | DC140: =DATE(YEAR(CP140),MONTH(CP140)+1,DAY(CP140)) -> 2019-10-01 | DP140: =DATE(YEAR(DC140),MONTH(DC140)+1,DAY(DC140)) -> 2019-11-01 | EC140: =DATE(YEAR(DP140),MONTH(DP140)+1,DAY(DP140)) -> 2019-12-01 | EP140: =DATE(YEAR(EC140),MONTH(EC140)+1,DAY(EC140)) -> 2020-01-01 | FC140: =DATE(YEAR(EP140),MONTH(EP140)+1,DAY(EP140)) -> 2020-02-01 | FP140: =DATE(YEAR(FC140),MONTH(FC140)+1,DAY(FC140)) -> 2020-03-01 | GC140: =DATE(YEAR(FP140),MONTH(FP140)+1,DAY(FP140)) -> 2020-04-01 | GP140: 12 Monate
E141: Absatzmenge pro Monat Produkt 1: | AO141: =ROUND($BB$126/$GP$55*$AO$55,) -> 0 | BB141: =(ROUND($BB$126/$GP$55*BB55,)) -> 0 | BP141: =ROUND($BB$126/$GP$55*BP55,) -> 0 | CC141: =ROUND($BB$126/$GP$55*CC55,) -> 0 | CP141: =ROUND($BB$126/$GP$55*CP55,) -> 0 | DC141: =ROUND($BB$126/$GP$55*DC55,) -> 0 | DP141: =ROUND($BB$126/$GP$55*DP55,) -> 0 | EC141: =ROUND($BB$126/$GP$55*EC55,) -> 0 | EP141: =ROUND($BB$126/$GP$55*EP55,) -> 0 | FC141: =ROUND($BB$126/$GP$55*FC55,) -> 0 | FP141: =ROUND($BB$126/$GP$55*FP55,) -> 0 | GC141: =BB126-SUM(AO141:GB141) -> 0 | GP141: =SUM(AO141:GO141) -> 0
E142: Umsatz pro Monat Produkt 1: | AO142: =AO141*$DP$126 -> 0 | BB142: =BB141*$DP$126 -> 0 | BP142: =BP141*$DP$126 -> 0 | CC142: =CC141*$DP$126 -> 0 | CP142: =CP141*$DP$126 -> 0 | DC142: =DC141*$DP$126 -> 0 | DP142: =DP141*$DP$126 -> 0 | EC142: =EC141*$DP$126 -> 0 | EP142: =EP141*$DP$126 -> 0 | FC142: =FC141*$DP$126 -> 0 | FP142: =FP141*$DP$126 -> 0 | GC142: =GC141*$DP$126 -> 0 | GP142: =SUM(AO142:GO142) -> 0
E144: Absatzmenge pro Monat Produkt 2: | AO144: =ROUND(BB127/$GP$55*$AO$55,) -> 0 | BB144: =ROUND($BB$127/$GP$55*BB55,) -> 0 | BP144: =ROUND($BB$127/$GP$55*BP55,) -> 0 | CC144: =ROUND($BB$127/$GP$55*CC55,) -> 0 | CP144: =ROUND($BB$127/$GP$55*CP55,) -> 0 | DC144: =ROUND($BB$127/$GP$55*DC55,) -> 0 | DP144: =ROUND($BB$127/$GP$55*DP55,) -> 0 | EC144: =ROUND($BB$127/$GP$55*EC55,) -> 0 | EP144: =ROUND($BB$127/$GP$55*EP55,) -> 0 | FC144: =ROUND($BB$127/$GP$55*FC55,) -> 0 | FP144: =ROUND($BB$127/$GP$55*FP55,) -> 0 | GC144: =BB127-SUM(AO144:GB144) -> 0 | GP144: =SUM(AO144:GC144) -> 0
E145: Umsatz pro Monat Produkt 2: | AO145: =AO144*$DP$127 -> 0 | BB145: =BB144*$DP$127 -> 0 | BP145: =BP144*$DP$127 -> 0 | CC145: =CC144*$DP$127 -> 0 | CP145: =CP144*$DP$127 -> 0 | DC145: =DC144*$DP$127 -> 0 | DP145: =DP144*$DP$127 -> 0 | EC145: =EC144*$DP$127 -> 0 | EP145: =EP144*$DP$127 -> 0 | FC145: =FC144*$DP$127 -> 0 | FP145: =FP144*$DP$127 -> 0 | GC145: =GC144*$DP$127 -> 0 | GP145: =SUM(AO145:GC145) -> 0
E147: Absatzmenge pro Monat Produkt 3: | AO147: =ROUND(BB128/$GP$55*$AO$55,) -> 0 | BB147: =ROUND($BB$128/$GP$55*BB$55,) -> 0 | BP147: =ROUND($BB$128/$GP$55*BP$55,) -> 0 | CC147: =ROUND($BB$128/$GP$55*CC$55,) -> 0 | CP147: =ROUND($BB$128/$GP$55*CP$55,) -> 0 | DC147: =ROUND($BB$128/$GP$55*DC$55,) -> 0 | DP147: =ROUND($BB$128/$GP$55*DP$55,) -> 0 | EC147: =ROUND($BB$128/$GP$55*EC$55,) -> 0 | EP147: =ROUND($BB$128/$GP$55*EP$55,) -> 0 | FC147: =ROUND($BB$128/$GP$55*FC$55,) -> 0 | FP147: =ROUND($BB$128/$GP$55*FP$55,) -> 0 | GC147: =$BB128-SUM(AO147:GB147) -> 0 | GP147: =SUM(AO147:GC147) -> 0
E148: Umsatz pro Monat Produkt 3: | AO148: =AO147*$DP$128 -> 0 | BB148: =BB147*$DP$128 -> 0 | BP148: =BP147*$DP$128 -> 0 | CC148: =CC147*$DP$128 -> 0 | CP148: =CP147*$DP$128 -> 0 | DC148: =DC147*$DP$128 -> 0 | DP148: =DP147*$DP$128 -> 0 | EC148: =EC147*$DP$128 -> 0 | EP148: =EP147*$DP$128 -> 0 | FC148: =FC147*$DP$128 -> 0 | FP148: =FP147*$DP$128 -> 0 | GC148: =GC147*$DP$128 -> 0 | GP148: =SUM(AO148:GC148) -> 0
E150: Absatzmenge pro Monat Produkt 4: | AO150: =ROUND(BB129/$GP$55*$AO$55,) -> 0 | BB150: =ROUND($BB$129/$GP$55*BB$55,) -> 0 | BP150: =ROUND($BB$129/$GP$55*BP$55,) -> 0 | CC150: =ROUND($BB$129/$GP$55*CC$55,) -> 0 | CP150: =ROUND($BB$129/$GP$55*CP$55,) -> 0 | DC150: =ROUND($BB$129/$GP$55*DC$55,) -> 0 | DP150: =ROUND($BB$129/$GP$55*DP$55,) -> 0 | EC150: =ROUND($BB$129/$GP$55*EC$55,) -> 0 | EP150: =ROUND($BB$129/$GP$55*EP$55,) -> 0 | FC150: =ROUND($BB$129/$GP$55*FC$55,) -> 0 | FP150: =ROUND($BB$129/$GP$55*FP$55,) -> 0 | GC150: =$BB129-SUM(AO150:GB150) -> 0 | GP150: =SUM(AO150:GC150) -> 0
E151: Umsatz pro Monat Produkt 4: | AO151: =AO150*$DP$129 -> 0 | BB151: =BB150*$DP$129 -> 0 | BP151: =BP150*$DP$129 -> 0 | CC151: =CC150*$DP$129 -> 0 | CP151: =CP150*$DP$129 -> 0 | DC151: =DC150*$DP$129 -> 0 | DP151: =DP150*$DP$129 -> 0 | EC151: =EC150*$DP$129 -> 0 | EP151: =EP150*$DP$129 -> 0 | FC151: =FC150*$DP$129 -> 0 | FP151: =FP150*$DP$129 -> 0 | GC151: =GC150*$DP$129 -> 0 | GP151: =SUM(AO151:GC151) -> 0
E153: Absatzmenge pro Monat Produkt 5: | AO153: =ROUND(BB130/$GP$55*$AO$55,) -> 0 | BB153: =ROUND($BB$130/$GP$55*BB$55,) -> 0 | BP153: =ROUND($BB$130/$GP$55*BP$55,) -> 0 | CC153: =ROUND($BB$130/$GP$55*CC$55,) -> 0 | CP153: =ROUND($BB$130/$GP$55*CP$55,) -> 0 | DC153: =ROUND($BB$130/$GP$55*DC$55,) -> 0 | DP153: =ROUND($BB$130/$GP$55*DP$55,) -> 0 | EC153: =ROUND($BB$130/$GP$55*EC$55,) -> 0 | EP153: =ROUND($BB$130/$GP$55*EP$55,) -> 0 | FC153: =ROUND($BB$130/$GP$55*FC$55,) -> 0 | FP153: =ROUND($BB$130/$GP$55*FP$55,) -> 0 | GC153: =$BB130-SUM(AO153:FP153) -> 0 | GP153: =SUM(AO153:GC153) -> 0
E154: Umsatz pro Monat Produkt 5: | AO154: =AO153*$DP$130 -> 0 | BB154: =BB153*$DP$130 -> 0 | BP154: =BP153*$DP$130 -> 0 | CC154: =CC153*$DP$130 -> 0 | CP154: =CP153*$DP$130 -> 0 | DC154: =DC153*$DP$130 -> 0 | DP154: =DP153*$DP$130 -> 0 | EC154: =EC153*$DP$130 -> 0 | EP154: =EP153*$DP$130 -> 0 | FC154: =FC153*$DP$130 -> 0 | FP154: =FP153*$DP$130 -> 0 | GC154: =GC153*$DP$130 -> 0 | GP154: =SUM(AO154:GC154) -> 0
E156: Gesamtumsatz pro Monat | AO156: =AO154+AO151+AO148+AO145+AO142 -> 0 | BB156: =BB154+BB151+BB148+BB145+BB142 -> 0 | BP156: =BP154+BP151+BP148+BP145+BP142 -> 0 | CC156: =CC154+CC151+CC148+CC145+CC142 -> 0 | CP156: =CP154+CP151+CP148+CP145+CP142 -> 0 | DC156: =DC154+DC151+DC148+DC145+DC142 -> 0 | DP156: =DP154+DP151+DP148+DP145+DP142 -> 0 | EC156: =EC154+EC151+EC148+EC145+EC142 -> 0 | EP156: =EP154+EP151+EP148+EP145+EP142 -> 0 | FC156: =FC154+FC151+FC148+FC145+FC142 -> 0 | FP156: =FP154+FP151+FP148+FP145+FP142 -> 0 | GC156: =GC154+GC151+GC148+GC145+GC142 -> 0 | GP156: =GP154+GP151+GP148+GP145+GP142 -> 0
E159: Alternative 4: Manuelle Verteilung des geplanten Jahresumsatzes auf Monate | AO159: Berechnung des Monatsumsatzes aus Tagesumsatz und Anzahl Arbeitstage
E161: Manuelle Verteilung für Jahr 1: | AO161: =Investitionen!$BE$30 -> 2018-05-01 | BB161: =DATE(YEAR(AO161),MONTH(AO161)+1,DAY(AO161)) -> 2018-06-01 | BP161: =DATE(YEAR(BB161),MONTH(BB161)+1,DAY(BB161)) -> 2018-07-01 | CC161: =DATE(YEAR(BP161),MONTH(BP161)+1,DAY(BP161)) -> 2018-08-01 | CP161: =DATE(YEAR(CC161),MONTH(CC161)+1,DAY(CC161)) -> 2018-09-01 | DC161: =DATE(YEAR(CP161),MONTH(CP161)+1,DAY(CP161)) -> 2018-10-01 | DP161: =DATE(YEAR(DC161),MONTH(DC161)+1,DAY(DC161)) -> 2018-11-01 | EC161: =DATE(YEAR(DP161),MONTH(DP161)+1,DAY(DP161)) -> 2018-12-01 | EP161: =DATE(YEAR(EC161),MONTH(EC161)+1,DAY(EC161)) -> 2019-01-01 | FC161: =DATE(YEAR(EP161),MONTH(EP161)+1,DAY(EP161)) -> 2019-02-01 | FP161: =DATE(YEAR(FC161),MONTH(FC161)+1,DAY(FC161)) -> 2019-03-01 | GC161: =DATE(YEAR(FP161),MONTH(FP161)+1,DAY(FP161)) -> 2019-04-01 | GP161: 12 Monate
GP162: =SUM(AO162:GC162) -> 0
E164: Umsatzplanung Folgejahre | AO164: 1. Jahr | BB164: 2. Jahr | BP164: 3. Jahr
AO165: =GP162 -> 0
E167: Manuelle Verteilung für Jahr 2: | AO167: =AO140 -> 2019-05-01 | BB167: =DATE(YEAR(AO167),MONTH(AO167)+1,DAY(AO167)) -> 2019-06-01 | BP167: =DATE(YEAR(BB167),MONTH(BB167)+1,DAY(BB167)) -> 2019-07-01 | CC167: =DATE(YEAR(BP167),MONTH(BP167)+1,DAY(BP167)) -> 2019-08-01 | CP167: =DATE(YEAR(CC167),MONTH(CC167)+1,DAY(CC167)) -> 2019-09-01 | DC167: =DATE(YEAR(CP167),MONTH(CP167)+1,DAY(CP167)) -> 2019-10-01 | DP167: =DATE(YEAR(DC167),MONTH(DC167)+1,DAY(DC167)) -> 2019-11-01 | EC167: =DATE(YEAR(DP167),MONTH(DP167)+1,DAY(DP167)) -> 2019-12-01 | EP167: =DATE(YEAR(EC167),MONTH(EC167)+1,DAY(EC167)) -> 2020-01-01 | FC167: =DATE(YEAR(EP167),MONTH(EP167)+1,DAY(EP167)) -> 2020-02-01 | FP167: =DATE(YEAR(FC167),MONTH(FC167)+1,DAY(FC167)) -> 2020-03-01 | GC167: =DATE(YEAR(FP167),MONTH(FP167)+1,DAY(FP167)) -> 2020-04-01 | GP167: 12 Monate
GP168: =SUM(AO168:GC168) -> 0

Sheet Kosten
M4: Kostenaufstellung
M7: Schritt 1: Investitionen
M13: Schritt 2: Umsätze | AO13: Personalkosten | BE13: Rentabilitätsplan
M17: Schritt 3: Kostenaufstellung | AO17: Materialkosten | BE17: Liquiditätsplan
M21: Schritt 4: Einnahmen | AO21: Abschreibungen | BE21: Kapitalbedarfsplan
E25: Start | M25: Schritt 5: Eigen- & Fremdkapital | AO25: Entnahme | BE25: Finanzierungsplan
AO30: Betrag monatlich | BE30: Betrag pro Jahr | BT30: Anpassung 2. Jahr | CF30: Anpassung 3. Jahr
E32: Personalkosten ohne Unternehmerlohn | DC32: Monatsbeträge
DC33: für Liquidität! | DD33: Jahr | DE33: Jahr | DG33: ja
E34: Möchten Sie Werte aus dem Personal-Tool übernehmen? | DG34: nein | DH34: 2
E36: Löhne und Gehälter einschließlich Sozialabgaben | BE36: =IF($DH$34=1,'Personal-Tool'!$DB$51,0) -> 0 | DC36: =BE36/12 -> 0 | DD36: =BE36+BT36 -> 0 | DE36: =DD36+CF36 -> 0 | DG36: =IF(BE36>0,BE36/12,BE39/12+AO39) -> 0 | DH36: monatl. K. für
E37: Mini-Jobs, Aushilfen | BE37: =IF($DH$34=1,'Personal-Tool'!$DB$58,0) -> 0 | DC37: =BE37/12 -> 0 | DD37: =BE37+BT37 -> 0 | DE37: =DD37+CF37 -> 0 | DG37: =IF(BE37>0,BE37/12,BE40/12+AO40) -> 0 | DH37: Kap.bed.re
E39: Löhne und Gehälter einschließlich Sozialabgaben | DC39: =IF(AO39>0,AO39,BE39/12) -> 0 | DD39: =DC39*12+BT39 -> 0 | DE39: =DD39+CF39 -> 0
E40: Mini-Jobs und Aushilfen | DC40: =IF(AO40>0,AO40,BE40/12) -> 0 | DD40: =DC40*12+BT40 -> 0 | DE40: =DD40+CF40 -> 0
E41: Freie Mitarbeiter | DC41: =IF(AO41>0,AO41,BE41/12) -> 0 | DD41: =DC41*12+BT41 -> 0 | DE41: =DD41+CF41 -> 0
E42: Sonstiges | DC42: =IF(AO42>0,AO42,BE42/12) -> 0 | DD42: =DC42*12+BT42 -> 0 | DE42: =DD42+CF42 -> 0
E43: Summe 1 Personalkosten ohne Unternehmerlohn | AO43: =SUM(AO39:BA42) -> 0 | BE43: =SUM(BE36:BQ42) -> 0 | DC43: =SUM(DC36:DC42) -> 0 | DD43: =SUM(DD36:DD42) -> 0 | DE43: =SUM(DE36:DE42) -> 0
E44: Summe 2 Personalkosten ohne Unternehmerlohn | BE44: =AO43*12+BE43 -> 0 | BT44: =SUM(BT36:CE42)+BE44 -> 0 | CF44: =SUM(CF36:CQ42)+BT44 -> 0
E46: Wareneinsatz, Materialkosten
E48: Möchten Sie Werte aus dem Material-Tool übernehmen?
E50: Wareneinsatz, Materialkosten | BE50: =IF($DJ$53=1,0,(IF($DJ$53=2,'Material-Tool'!CD40,(IF($DJ$53=3,'Material-Tool'!CD51))))) -> 0 | BT50: =IF($DJ$53=1,0,(IF($DJ$53=2,'Material-Tool'!CD41,(IF($DJ$53=3,'Material-Tool'!CD52))))) -> 0 | CF50: =IF($DJ$53=1,0,(IF($DJ$53=2,'Material-Tool'!CD42,(IF($DJ$53=3,'Material-Tool'!CD53))))) -> 0 | DC50: =BE50/12 -> 0 | DD50: =BT50 -> 0 | DE50: =CF50 -> 0
E52: Roh-, Hilfs- und Betriebsstoffe | DC52: =IF(AO52>0,AO52,G52/12) -> 0 | DD52: =DC52*12+BE52 -> 0 | DE52: =DD52+CF52 -> 0 | DI52: nein
E53: Halbfertige Produkte, Fertigprodukte, Waren | DC53: =IF(AO53>0,AO53,BE53/12) -> 0 | DD53: =DC53*12+BT53 -> 0 | DE53: =DD53+CF53 -> 0 | DI53: ja, Alternative 1 | DJ53: 1
E54: Fremdleistungen | DC54: =IF(AO54>0,AO54,BE54/12) -> 0 | DD54: =DC54*12+BT54 -> 0 | DE54: =DD54+CF54 -> 0 | DG54: =IF(BE50>0,BE50/12,BE53/12+AO53) -> 0 | DH54: monatl. K. für | DI54: ja, Alternative 2
E55: Sonstiges | DC55: =IF(AO55>0,AO55,BE55/12) -> 0 | DD55: =DC55*12+BT55 -> 0 | DE55: =DD55+CF55 -> 0 | DH55: Kap.bed.re
E56: Summe 1 Wareneinsatz, Materialkosten | AO56: =SUM(AO52:BA55) -> 0 | BE56: =SUM(BE50:BQ55) -> 0 | DC56: =SUM(DC50:DC55) -> 0 | DD56: =SUM(DD50:DD55) -> 0 | DE56: =SUM(DE50:DE55) -> 0
E57: Summe 2 Wareneinsatz, Materialkosten | BE57: =AO56*12+BE56 -> 0 | BT57: =SUM(BT50:CE55)+BE57-BE50 -> 0 | CF57: =SUM(CF50:CQ56)+BT57-BT50 -> 0
E59: Provisionen
E61: Provisionen vom Umsatz in % (Angabe pro Jahr)
E63: Sonstige Betriebsausgaben
E65: Miete, Pacht für Büro, Laden, Halle | DC65: =IF(AO65>0,AO65,BE65/12) -> 0 | DD65: =DC65*12+BT65 -> 0 | DE65: =DD65+CF65 -> 0
E66: Mietnebenkosten | DC66: 0 | DD66: 0 | DE66: 0
E67: Laufende Lizenz- und Franchisegebühren | DC67: 0 | DD67: 0 | DE67: 0
E68: Leasingraten | DC68: 0 | DD68: 0 | DE68: 0
E69: Laufende Fahrzeugkosten | DC69: 0 | DD69: 0 | DE69: 0
E70: Sonstige Fahrzeugkosten | DC70: 0 | DD70: 0 | DE70: 0
E71: Reisekosten | DC71: 0 | DD71: 0 | DE71: 0
E72: Instandhaltung für Geräte, Maschinen | DC72: 0 | DD72: 0 | DE72: 0
E73: Werbung, PR | DC73: 0 | DD73: 0 | DE73: 0
E74: Bewirtungskosten | DC74: 0 | DD74: 0 | DE74: 0
E75: Weiterbildung | DC75: 0 | DD75: 0 | DE75: 0
E76: Bürobedarf, Kopien | DC76: 0 | DD76: 0 | DE76: 0
E77: Telefon, Fax, Handy | DC77: 0 | DD77: 0 | DE77: 0
E78: Internetzugang, Hosting | DC78: 0 | DD78: 0 | DE78: 0
E79: Porto, Kurierdienste | DC79: 0 | DD79: 0 | DE79: 0
E80: Verpackung | DC80: 0 | DD80: 0 | DE80: 0
E81: Fachzeitschriften und -bücher | DC81: 0 | DD81: 0 | DE81: 0
E82: Buchhaltung, Steuer- und Rechtsberatung | DC82: 0 | DD82: 0 | DE82: 0
E83: Nebenkosten des Geldverkehrs | DC83: 0 | DD83: 0 | DE83: 0
E84: Beträge für Kammern und Verbände | DC84: 0 | DD84: 0 | DE84: 0
E85: Gebühren | DC85: 0 | DD85: 0 | DE85: 0
E86: Betriebliche Versicherungen | DC86: 0 | DD86: 0 | DE86: 0
E87: Betriebssteuern (Gewerbesteuer, Körperschaftsst.) | DC87: 0 | DD87: 0 | DE87: 0
E88: Sonstiges, GWG | DC88: 0 | DD88: 0 | DE88: 0
E89: Summe 1 Betriebsausgaben incl. Steuern | AO89: =SUM(AO65:BA88) -> 0 | BE89: =SUM(BE65:BQ88) -> 0 | DC89: =SUM(DC65:DC88) -> 0 | DD89: =SUM(DD65:DD88) -> 0 | DE89: =SUM(DE65:DE88) -> 0
E90: Summe Betriebsausgaben im Jahr | BE90: =(AO89*12)+BE89 -> 0 | BT90: =SUM(BT65:CE88)+BE90 -> 0 | CF90: =SUM(CF65:CQ88)+BT90 -> 0
E92: Abschreibungen | DB92: Steuern: | DC92: =IF(AO87>0,AO87,BE87/12) -> 0 | DD92: =DC92*12+BT87 -> 0 | DE92: =DD92+CF87 -> 0
E94: Möchten Sie Werte aus dem AfA-Tool übernehmen?
E96: Abschreibungen in den ersten drei Jahren | BE96: =IF($DG$98=1,0,(IF($DG$98=2,'AfA-Tool'!BN43,(IF($DG$98=3,'AfA-Tool'!BN59))))) -> 0 | BT96: =IF($DG$98=1,0,(IF($DG$98=2,'AfA-Tool'!BV43,(IF($DG$98=3,'AfA-Tool'!BV59))))) -> 0 | CF96: =IF($DG$98=1,0,(IF($DG$98=2,'AfA-Tool'!CD43,(IF($DG$98=3,'AfA-Tool'!CD59))))) -> 0 | DC96: =BE96/12 -> 0 | DD96: =BT96 -> 0 | DE96: =CF96 -> 0
E98: Weitere AfA pro Jahr: bitte Text eingeben | DC98: =BE98/12 -> 0 | DD98: =BE98+BT98 -> 0 | DE98: =DD98+CF98 -> 0 | DF98: nein | DG98: 1
E99: Weitere AfA pro Jahr: bitte Text eingeben | DC99: =BE99/12 -> 0 | DD99: =BE99+BT99 -> 0 | DE99: =DD99+CF99 -> 0 | DF99: ja, lineare AfA
E100: Weitere AfA pro Jahr: bitte Text eingeben | DC100: =BE100/12 -> 0 | DD100: =BE100+BT100 -> 0 | DE100: =DD100+CF100 -> 0 | DF100: keine AfA
E101: Weitere AfA pro Jahr: bitte Text eingeben | DC101: =BE101/12 -> 0 | DD101: =BE101+BT101 -> 0 | DE101: =DD101+CF101 -> 0
E102: Summe Abschreibungen | BE102: =SUM(BE98:BQ101)+BE96 -> 0 | BT102: =SUM(BT98:BT101)+BT96+SUM(BE98:BE101) -> 0 | CF102: =BT102+CF96+SUM(CF98:CF101)-BT96 -> 0 | DC102: =SUM(DC96:DC101) -> 0 | DD102: =SUM(DD96:DD101) -> 0 | DE102: =SUM(DE96:DE101) -> 0
E106: Summe alle Kosten | F106: =F102+Kapital!AO87+AO89+AO56+AO43 -> 0 | G106: =BE102+BE89+BE56+BE43 -> 0 | AO106: =AO43+AO56+AO89+AO104 -> 0 | BE106: =BE43+BE56+BE89+BE102 -> 0
E107: Summe alle Kosten insgesamt pro Jahr | G107: =(F106*12)+G106 -> 0 | BE107: =AO106*12+BE106 -> 0
E108: Summe alle Kosten insgesamt pro Jahr ohne Abschreibungen | G108: =G107-BE102 -> 0 | BE108: =BE107-BE102 -> 0
E110: Kalkulatorischer Unternehmerlohn
DB111: ja
E112: Möchten Sie Werte aus dem Entnahme-Tool übernehmen? | DB112: nein | DC112: 2
E114: Unternehmerlohn im Jahr | H114: =6*1562 -> 9372 | BE114: =IF($DC$112=1,'Entnahmen-Tool'!BE84,0) -> 0 | BT114: =IF(DC112=1,'Entnahmen-Tool'!BE85,0) -> 0 | CF114: =IF(DC112=1,'Entnahmen-Tool'!BE86,0) -> 0
E115: Anpassung für Folgejahr:
E117: Monatliche Entnahme (manuell) | AN117: 1000 | DB117: =AO117 -> 0 | DC117: =DB117*12+BT117 -> 0 | DD117: =DC117+CF117 -> 0
E118: Summe Unternehmerlohn im Jahr | BE118: =AO117*12+BE114 -> 0 | BT118: =IF($DC$112=1,BT114+BT115,BE118+BT117) -> 0 | CF118: =IF($DC$112=1,CF114+CF115+BT115,BT118+CF117) -> 0 | DB118: =SUM(DB117) -> 0 | DC118: =SUM(DC117) -> 0 | DD118: =SUM(DD117) -> 0

Sheet Personal-Tool
M4: Personalkosten
M7: Schritt 1: Investitionen
M13: Schritt 2: Umsätze | AO13: Personalkosten | BE13: Rentabilitätsplan
M17: Schritt 3: Kostenaufstellung | AO17: Materialkosten | BE17: Liquiditätsplan
M21: Schritt 4: Einnahmen | AO21: Abschreibungen | BE21: Kapitalbedarfsplan
E25: Start | M25: Schritt 5: Eigen- & Fremdkapital | AO25: Entnahme | BE25: Finanzierungsplan
E30: Personal-Nebenkosten
E32: Arbeitgeberanteil Sozialbeiträge | AO32: % | BE32: Mini-Job
E33: Krankenversicherung (durchschnittlich) | AO33: 7.3 | BE33: AG-Zuschlag %
E34: Pflegeversicherung | AO34: 1.275 | BE34: 32.4
E35: Umlage KV (U1/U2 i. Durchschn.); Insolvenzumlage | AO35: 2.71
E36: Rentenversicherung | AO36: 9.3
E37: Arbeitslosenversicherung | AO37: 1.5
E38: Berufsgenossenschaft durchschnittlich | AO38: 1.22
E39: Zusatzversorgungskasse
E40: Zusatzkosten 1
E41: Summe Arbeitgeberanteil Sozialbeiträge | AO41: =SUM(AO33:AO40) -> 23.305
E43: Löhne und Gehälter
E45: Löhne und Gehälter | AO45: Anzahl Mitarbeiter | BB45: Lohn/Gehalt pro Monat | BO45: Urlaubsgeld/ Weihn.geld | CB45: Sonstiges | CO45: Jahressumme Lohn/Gehalt | DB45: Zuzüglich Sozialbeiträge
E46: Leitung | CO46: =(AO46*BB46*12)+(BO46+CB46)*AO46 -> 0 | DB46: =CO46*(1+($AO$41/100)) -> 0
E47: Verkauf | CO47: =(AO47*BB47*12)+(BO47+CB47)*AO47 -> 0 | DB47: =CO47*(1+($AO$41/100)) -> 0
E48: Produktion | CO48: =(AO48*BB48*12)+(BO48+CB48)*AO48 -> 0 | DB48: =CO48*(1+($AO$41/100)) -> 0
E49: Verwaltung | CO49: =(AO49*BB49*12)+(BO49+CB49)*AO49 -> 0 | DB49: =CO49*(1+($AO$41/100)) -> 0
E50: Technik | CO50: =(AO50*BB50*12)+(BO50+CB50)*AO50 -> 0 | DB50: =CO50*(1+($AO$41/100)) -> 0
E51: Summe Personalkosten im Jahr | AO51: =SUM(AO45:AO50) -> 0 | CO51: =SUM(CO46:CO50) -> 0 | DB51: =SUM(DB46:DB50) -> 0
E52: Summe Personalkosten im Monat | DB52: =DB51/12 -> 0
E55: Minijobs
E57: Anzahl Mini-Jobs | BB57: 450 | CO57: =(AO57*BB57*12)+(BO57+CB57)*AO57 -> 0 | DB57: =CO57*(1+($BE$34/100)) -> 0
E58: Summe Mini-Job im Jahr | AO58: =SUM(AO57) -> 0 | CO58: =SUM(CO57) -> 0 | DB58: =SUM(DB57) -> 0
E59: Summe Mini-Job im Monat | DB59: =DB58/12 -> 0
F113: 2004:13,26 im Durchschnitt | I113: 6.7
I114: 0.85
I115: 0.1
F116: Umlage 0,1% für | I116: 9.75
F117: Lohnfortzahlung | I117: 3.25

Sheet Material-Tool
M4: Materialkosten
M7: Schritt 1: Investitionen
M13: Schritt 2: Umsätze | AO13: Personalkosten | BE13: Rentabilitätsplan
M17: Schritt 3: Kostenaufstellung | AO17: Materialkosten | BE17: Liquiditätsplan
M21: Schritt 4: Einnahmen | AO21: Abschreibungen | BE21: Kapitalbedarfsplan
E25: Start | M25: Schritt 5: Eigen- & Fremdkapital | AO25: Entnahme | BE25: Finanzierungsplan
E30: Alternative 1: Jahresplanung über Absatzmenge
AO32: Produkt 1 | AW32: Produkt 2 | BF32: Produkt 3 | BN32: Produkt 4 | BV32: Produkt 5 | CD32: Gesamt
E33: 1. Jahr: geplante Absatzmenge in Stück | CD33: =SUM(AO33:BV33) -> 0
E34: 2. Jahr: geplante Absatzmenge in Stück | CD34: =SUM(AO34:BV34) -> 0
E35: 3. Jahr: geplante Absatzmenge in Stück | CD35: =SUM(AO35:BV35) -> 0
E36: dafür Preis für Wareneinsatz 1 in € pro Stück
E37: dafür Preis für Wareneinsatz 2 in € pro Stück
E38: dafür Preis für Wareneinsatz 3 in € pro Stück
E39: dafür Preis für Wareneinsatz 4 in € pro Stück
E40: 1. Jahr: Summe Wareneinsatz | AO40: =SUM($AO$36:$AO$39)*AO33 -> 0 | AW40: =SUM($AW$36:$AW$39)*AW33 -> 0 | BF40: =SUM($BF$36:$BF$39)*BF33 -> 0 | BN40: =SUM($BN$36:$BN$39)*BN33 -> 0 | BV40: =SUM($BV$36:$BV$39)*BV33 -> 0 | CD40: =SUM(AO40:BV40) -> 0
E41: 2. Jahr: Summe Wareneinsatz | AO41: =SUM($AO$36:$AO$39)*AO34 -> 0 | AW41: =SUM($AW$36:$AW$39)*AW34 -> 0 | BF41: =SUM($BF$36:$BF$39)*BF34 -> 0 | BN41: =SUM($BN$36:$BN$39)*BN34 -> 0 | BV41: =SUM($BV$36:$BV$39)*BV34 -> 0 | CD41: =SUM(AO41:BV41) -> 0
E42: 3. Jahr: Summe Wareneinsatz | AO42: =SUM($AO$36:$AO$39)*AO35 -> 0 | AW42: =SUM($AW$36:$AW$39)*AW35 -> 0 | BF42: =SUM($BF$36:$BF$39)*BF35 -> 0 | BN42: =SUM($BN$36:$BN$39)*BN35 -> 0 | BV42: =SUM($BV$36:$BV$39)*BV35 -> 0 | CD42: =SUM(AO42:BV42) -> 0
E44: Alternative 2: Jahresplanung über Umsatz
AO46: Produkt/ Artikel-gruppe 1 | AW46: Produkt/ Artikel-gruppe 2 | BF46: Produkt/ Artikel-gruppe 3 | BN46: Produkt/ Artikel-gruppe 4 | BV46: Produkt/ Artikel-gruppe 5 | CD46: Gesamt
E47: 1. Jahr: geplanter Umsatz in €: | CD47: =SUM(AO47:BV47) -> 0
E48: 2. Jahr: geplanter Umsatz in €: | CD48: =SUM(AO48:BV48) -> 0
E49: 3. Jahr: geplanter Umsatz in €: | CD49: =SUM(AO49:BV49) -> 0
E50: dafür durchschnittl. Wareneinsatz in % vom Umsatz
E51: 1. Jahr: Summe Wareneinsatz | AO51: =AO47*$AO$50 -> 0 | AW51: =AW47*$AW$50 -> 0 | BF51: =BF47*$BF$50 -> 0 | BN51: =BN47*$BN$50 -> 0 | BV51: =BV47*$BV$50 -> 0 | CD51: =SUM(AO51:BV51) -> 0
E52: 2. Jahr: Summe Wareneinsatz | AO52: =AO48*$AO$50 -> 0 | AW52: =AW48*$AW$50 -> 0 | BF52: =BF48*$BF$50 -> 0 | BN52: =BN48*$BN$50 -> 0 | BV52: =BV48*$BV$50 -> 0 | CD52: =SUM(AO52:BV52) -> 0
E53: 3. Jahr: Summe Wareneinsatz | AO53: =AO49*$AO$50 -> 0 | AW53: =AW49*$AW$50 -> 0 | BF53: =BF49*$BF$50 -> 0 | BN53: =BN49*$BN$50 -> 0 | BV53: =BV49*$BV$50 -> 0 | CD53: =SUM(AO53:BV53) -> 0

Sheet AfA-Tool
M4: Abschreibungen
M7: Schritt 1: Investitionen
M13: Schritt 2: Umsätze | AO13: Personalkosten | BE13: Rentabilitätsplan
M17: Schritt 3: Kostenaufstellung | AO17: Materialkosten | BE17: Liquiditätsplan
M21: Schritt 4: Einnahmen | AO21: Abschreibungen | BE21: Kapitalbedarfsplan
E25: Start | M25: Schritt 5: Eigen- & Fremdkapital | AO25: Entnahme | BE25: Finanzierungsplan
E30: AfA-Rechner: Lineare Abschreibung
E32: Wirtschaftsgut | AO32: Nutzungs-dauer in Jahren | AW32: Anschaff-ungswert | BF32: Abschreibungs-methode | BN32: AfA 1. Nutzungs-jahr | BV32: AfA 2. Nutzungs-jahr | CD32: AfA 3. Nutzungs-jahr
E33: Bitte Text eingeben | BF33: linear | BN33: =IF(B100=16,0,A100) -> 0 | BV33: =IF(F100=16,0,E100) -> 0 | CD33: =IF(H100=16,0,IF(G100=0,0,A100)) -> 0
E34: Bitte Text eingeben | BF34: linear | BN34: 0 | BV34: 0 | CD34: 0
E35: Bitte Text eingeben | BF35: linear | BN35: 0 | BV35: 0 | CD35: 0
E36: Bitte Text eingeben | BF36: linear | BN36: 0 | BV36: 0 | CD36: 0
E37: Bitte Text eingeben | BF37: linear | BN37: 0 | BV37: 0 | CD37: 0
E38: Bitte Text eingeben | BF38: linear | BN38: 0 | BV38: 0 | CD38: 0
E39: Bitte Text eingeben | BF39: linear | BN39: 0 | BV39: 0 | CD39: 0
E40: Bitte Text eingeben | BF40: linear | BN40: 0 | BV40: 0 | CD40: 0
E41: Bitte Text eingeben | BF41: linear | BN41: 0 | BV41: 0 | CD41: 0
E42: Bitte Text eingeben | BF42: linear | BN42: 0 | BV42: 0 | CD42: 0
E43: Summe lineare AfA pro Jahr | BN43: =SUM(BN33:BN42) -> 0 | BV43: =SUM(BV33:BV42) -> 0 | CD43: =SUM(CD33:CD42) -> 0
E44: Summe lineare AfA pro Monat | BN44: =BN43/12 -> 0 | BV44: =BV43/12 -> 0 | CD44: =CD43/12 -> 0
E46: AfA-Rechner: Degressive Abschreibung
E48: Wirtschaftsgut | AO48: Nutzungs-dauer in Jahren | AW48: Anschaff-ungswert | BF48: Abschreibungs-methode | BN48: AfA 1. Jahr | BV48: AfA 2. Jahr | CD48: AfA 3. Jahr
E49: Bitte Text eingeben | BF49: degressiv | BN49: =IF(B116=16,0,A116) -> 0 | BV49: =IF(D116=16,0,C116) -> 0 | CD49: =IF(F116=16,0,E116) -> 0
E50: Bitte Text eingeben | BF50: degressiv | BN50: 0 | BV50: 0 | CD50: 0
E51: Bitte Text eingeben | BF51: degressiv | BN51: 0 | BV51: 0 | CD51: 0
E52: Bitte Text eingeben | BF52: degressiv | BN52: 0 | BV52: 0 | CD52: 0
E53: Bitte Text eingeben | BF53: degressiv | BN53: 0 | BV53: 0 | CD53: 0
E54: Bitte Text eingeben | BF54: degressiv | BN54: 0 | BV54: 0 | CD54: 0
E55: Bitte Text eingeben | BF55: degressiv | BN55: 0 | BV55: 0 | CD55: 0
E56: Bitte Text eingeben | BF56: degressiv | BN56: 0 | BV56: 0 | CD56: 0
E57: Bitte Text eingeben | BF57: degressiv | BN57: 0 | BV57: 0 | CD57: 0
E58: Bitte Text eingeben | BF58: degressiv | BN58: 0 | BV58: 0 | CD58: 0
E59: Summe degressive AfA pro Jahr | BN59: =SUM(BN49:BN58) -> 0 | BV59: =SUM(BV49:BV58) -> 0 | CD59: =SUM(CD49:CD58) -> 0
E60: Summe degressive AfA pro Monat | BN60: =BN59/12 -> 0 | BV60: =BV59/12 -> 0 | CD60: =CD59/12 -> 0
E65: Tipp:
E66: Die steuerlich korrekte Abschreibungsdauer finden sie im Internet z.B. unter:
E67: http://www.betriebsausgabe.de/abschreibungstabelle.php
A99: Afa 1.Nutzungsjahr | C99: Afa 2.Nutzungsjahr | E99: Afa 2.Nutzungsjahr | G99: Afa 3.Nutzungsjahr
A100: =SLN($AW$33,0,$AO$33) ->  | B100: =TYPE(A100) -> 16 | C100: =SLN($AW$33,0,$AO$33) ->  | E100: =IF(BN33+C100>AW33,0,C100) ->  | F100: =TYPE(E100) -> 16 | G100: =IF(BN33+BV33+A100>AW33,0,A100) ->  | H100: =TYPE(G100) -> 16
A101: =SLN($AW$34,0,$AO$34) ->  | B101: 16 | C101: =SLN($AW$34,0,$AO$34) ->  | F101: 16 | H101: 16
A102: =SLN($AW$35,0,$AO$35) ->  | B102: 16 | C102: =SLN($AW$35,0,$AO$35) ->  | F102: 16 | H102: 16
A103: =SLN($AW$36,0,$AO$36) ->  | B103: 16 | C103: =SLN($AW$36,0,$AO$36) ->  | F103: 16 | H103: 16
A104: =SLN($AW$37,0,$AO$37) ->  | B104: 16 | C104: =SLN($AW$37,0,$AO$37) ->  | F104: 16 | H104: 16
A105: =SLN($AW$38,0,$AO$38) ->  | B105: 16 | C105: =SLN($AW$38,0,$AO$38) ->  | F105: 16 | H105: 16
A106: =SLN($AW$39,0,$AO$39) ->  | B106: 16 | C106: =SLN($AW$39,0,$AO$39) ->  | F106: 16 | H106: 16
A107: =SLN($AW$40,0,$AO$40) ->  | B107: 16 | C107: =SLN($AW$40,0,$AO$40) ->  | F107: 16 | H107: 16
A108: =SLN($AW$41,0,$AO$41) ->  | B108: 16 | C108: =SLN($AW$41,0,$AO$41) ->  | F108: 16 | H108: 16
A109: =SLN($AW$42,0,$AO$42) ->  | B109: 16 | C109: =SLN($AW$42,0,$AO$42) ->  | F109: 16 | H109: 16
A110: =SUM(A100:A109) ->  | C110: =SUM(C100:C109) -> 
A115: Afa 1. Jahr | C115: Afa 2. Jahr | E115: Afa 3. Jahr
A116: =SYD($AW$49,0,$AO$49,1) ->  | B116: =TYPE(A116) -> 16 | C116: =SYD($AW$49,0,$AO$49,2) ->  | D116: =TYPE(C116) -> 16 | E116: =SYD($AW$49,0,$AO$49,3) ->  | F116: =TYPE(E116) -> 16
A117: =SYD($AW$50,0,$AO$50,1) ->  | B117: 16 | C117: =SYD($AW$50,0,$AO$50,2) ->  | D117: 16 | E117: =SYD($AW$50,0,$AO$50,3) ->  | F117: 16
A118: =SYD($AW$51,0,$AO$51,1) ->  | B118: 16 | C118: =SYD($AW$51,0,$AO$51,2) ->  | D118: 16 | E118: =SYD($AW$51,0,$AO$51,3) ->  | F118: 16
A119: =SYD($AW$52,0,$AO$52,1) ->  | B119: 16 | C119: =SYD($AW$52,0,$AO$52,2) ->  | D119: 16 | E119: =SYD($AW$52,0,$AO$52,3) ->  | F119: 16
A120: =SYD($AW$53,0,$AO$53,1) ->  | B120: 16 | C120: =SYD($AW$53,0,$AO$53,2) ->  | D120: 16 | E120: =SYD($AW$53,0,$AO$53,3) ->  | F120: 16
A121: =SYD($AW$54,0,$AO$54,1) ->  | B121: 16 | C121: =SYD($AW$54,0,$AO$54,2) ->  | D121: 16 | E121: =SYD($AW$54,0,$AO$54,3) ->  | F121: 16
A122: =SYD($AW$55,0,$AO$55,1) ->  | B122: 16 | C122: =SYD($AW$55,0,$AO$55,2) ->  | D122: 16 | E122: =SYD($AW$55,0,$AO$55,3) ->  | F122: 16
A123: =SYD($AW$56,0,$AO$56,1) ->  | B123: 16 | C123: =SYD($AW$56,0,$AO$56,2) ->  | D123: 16 | E123: =SYD($AW$56,0,$AO$56,3) ->  | F123: 16
A124: =SYD($AW$57,0,$AO$57,1) ->  | B124: 16 | C124: =SYD($AW$57,0,$AO$57,2) ->  | D124: 16 | E124: =SYD($AW$57,0,$AO$57,31) ->  | F124: 16
A125: =SYD($AW$57,0,$AO$57,1) ->  | B125: 16 | C125: =SYD($AW$57,0,$AO$57,2) ->  | D125: 16 | E125: =SYD($AW$57,0,$AO$57,2) ->  | F125: 16
A126: =SUM(A116:A125) ->  | B126: 16 | C126: =SUM(C116:C125) ->  | D126: 16 | E126: =SUM(E116:E125) ->  | F126: 16

Sheet Entnahmen-Tool
M4: Entnahme
M7: Schritt 1: Investitionen
M13: Schritt 2: Umsätze | AO13: Personalkosten | BE13: Rentabilitätsplan
M17: Schritt 3: Kostenaufstellung | AO17: Materialkosten | BE17: Liquiditätsplan
M21: Schritt 4: Einnahmen | AO21: Abschreibungen | BE21: Kapitalbedarfsplan
E25: Start | M25: Schritt 5: Eigen- & Fremdkapital | AO25: Entnahme | BE25: Finanzierungsplan
E30: Berechnung des kalkulatorischen Unternehmerlohns / Privatentnahme
E32: Durchschnittliche monatliche Ausgaben | BE32: Betrag
E34: Privat-Kfz inkl. Steuer, Versicherung, Reparaturen, Benzin, Stellplatz
E35: Ausgaben für Öffentliche Verkehrsmittel
E36: Telefon / Handy privat
E37: Internet, GEZ
E38: Täglicher Bedarf (Lebensmittel, Genussmittel, Hygiene- und Putzartikel)
E39: Bekleidung, Schuhe, Accessoires
E40: Haushalt (Einrichtung, Geräte und Zubehör)
E41: Gesundheit (Arztbesuche, Arzneimittel, u. ä.)
E42: Freizeit und Hobby
E43: Weiterbildung
E44: Miete und Nebenkosten
E45: Ratenzahlungen, Sparverträge
E46: Zinsen, Tilgung für Privatkredit
E47: Unterhaltszahlungen
E48: Sonstige regelmäßige Verpflichtungen
E49: Kranken- und Pflegeversicherung
E50: Rentenversicherung
E51: Lebensversicherung
E52: Sonstige Versicherungen
E53: Sonstige Ausgaben
E54: Gesamtausgaben | BE54: =SUM(BE34:BE53) -> 0
E56: Monatliches Einkommen aus anderen Einkunftsarten
BU57: =IF(IT59>1,"bitte nur 1 Feld ausfüllen"," ") ->  | IT57: =IF(BE57>0,1,0) -> 0
E58: Gründerzuschuss (monatlicher Betrag, Laufzeit 6 Monate) | IT58: =IF(BE58>0,1,0) -> 0
E59: Kindergeld | IT59: =SUM(IT57:IT58) -> 0
E60: Unterhalt
E61: Erziehungsgeld
E62: Einkommen aus Vermietung und Verpachtung
E63: Einkommen aus Kapitalerträgen
E64: Nettogehalt LebenspartnerIn
E65: Sonstige Einkünfte
E66: Summe andere Einnahmen | BE66: =SUM(BE57:BE65) -> 0 | BW66: Folgejahr 2 | BX66: Folgejahr3
E68: Summe andere monatliche Einnahmen in den ersten 6 Monaten | BE68: =BE66 -> 0 | BW68: =BE69 -> 0
E69: Summe andere monatliche Einnahmen in den letzten 6 Monaten | BE69: =BE68-BE58 -> 0 | BW69: =BE66-BE58 -> 0
E70: Abzüglich Gesamtausgaben pro Monat | BE70: =BE54 -> 0
E72: Notwendige Netto - Privatentnahme pro Monat (erste 6 Monate) | BE72: =IF(BE68-BE70>0,0,(BE68-BE70)*-1) -> 0 | BW72: =BE70-BW68 -> 0
E73: Notwendige Netto - Privatentnahme pro Monat (letzte 6 Monate) | BE73: =IF(BE69-BE70>0,0,(BE69-BE70)*-1) -> 0 | BW73: =BE70-BW69 -> 0 | BX73: =BW73 -> 0
E74: Summe Netto-Privatentnahme im Jahr 1 | BE74: =BE72*6+BE73*6 -> 0 | BW74: =BW72*3+BW73*9 -> 0 | BX74: =BX73*12 -> 0
E76: Zuschlag für Einkommenssteuer, SolZ, Kirchensteuer in % | L76: =IF(BE76>0,1,0) -> 0 | BV76: =IF(CC79>1,"Bitte nur 1 Feld ausfüllen!","") -> 
BE77: =(BE74/(1-BE76))-BE74 -> 0 | BU77: =IF(IT82>1,"bitte nur 1 Feld ausfüllen"," ") ->  | BW77: =(BW74/(1-$BE$76))-BW74 -> 0 | BX77: =(BX74/(1-$BE$76))-BX74 -> 0 | IT77: =IF(F77>0,1,0) -> 0
E78: oder Einkommenssteuer, SolZ, Kirchensteuer in Euro | CC78: =IF(BE78>0,1,0) -> 0 | IT78: =IF(BE78>0,1,0) -> 0 | IV78: =IF(BE78>0,BE78,BE77) -> 0
E80: Unternehmerlohn monatlich (erste 6 Monate) | BE80: =IF(BE72=0,0,IF($BE$78>0,BE72+($BE$78/12),BE72+($BE$77/12))) -> 0
E82: Unternehmerlohn monatlich (letzte 6 Monate) | BE82: =IF(BE80=0,BE73+(IV78/3),BE73+(IV78/12)) -> 0 | IT82: =SUM(IT77:IT78) -> 0
E84: Unternehmerlohn inkl. EkSt im Jahr 1 | BE84: =BE80*6+BE82*6 -> 0 | BW84: =BW74+BW77 -> 0 | BX84: =BX74+BX77 -> 0
E85: Unternehmerlohn inkl. EkSt im Jahr 2 | BE85: =BW84 -> 0
E86: Unternehmerlohn inkl. EkSt im Jahr 3 | BE86: =BX84 -> 0 | BW86: für Liqui-Monat:
BW87: =BW72+BW77/12 -> 0 | BX87: für 3 monate
BW91: =ROUND(BW73+BW77/12+Kosten!BT115/9,) -> 0 | BX91: für 9 Monate
BX92: incl. Steigerung
F93: Tipp:
F95: Ihre persönliche Steuerbelastung können Sie über den
F96: Abgabenrechner des Bundesfinanzministeriums ermitteln:
F97: www.abgabenrechner.de

Sheet Einnahmen
M4: Einnahmen
M7: Schritt 1: Investitionen
M13: Schritt 2: Umsätze | AO13: Personalkosten | BE13: Rentabilitätsplan
M17: Schritt 3: Kostenaufstellung | AO17: Materialkosten | BE17: Liquiditätsplan
M21: Schritt 4: Einnahmen | AO21: Abschreibungen | BE21: Kapitalbedarfsplan
E25: Start | M25: Schritt 5: Eigen- & Fremdkapital | AO25: Entnahme | BE25: Finanzierungsplan
E30: Wahl der Umsatzberechnung aus dem Umsatzplan:
BE32: =Investitionen!$BE$30 -> 2018-05-01 | BR32: =DATE(YEAR(BE32),MONTH(BE32)+1,DAY(BE32)) -> 2018-06-01 | CE32: =DATE(YEAR(BR32),MONTH(BR32)+1,DAY(BR32)) -> 2018-07-01 | CR32: =DATE(YEAR(CE32),MONTH(CE32)+1,DAY(CE32)) -> 2018-08-01 | DE32: =DATE(YEAR(CR32),MONTH(CR32)+1,DAY(CR32)) -> 2018-09-01 | DR32: =DATE(YEAR(DE32),MONTH(DE32)+1,DAY(DE32)) -> 2018-10-01 | EE32: =DATE(YEAR(DR32),MONTH(DR32)+1,DAY(DR32)) -> 2018-11-01 | ER32: =DATE(YEAR(EE32),MONTH(EE32)+1,DAY(EE32)) -> 2018-12-01 | FE32: =DATE(YEAR(ER32),MONTH(ER32)+1,DAY(ER32)) -> 2019-01-01 | FR32: =DATE(YEAR(FE32),MONTH(FE32)+1,DAY(FE32)) -> 2019-02-01 | GE32: =DATE(YEAR(FR32),MONTH(FR32)+1,DAY(FR32)) -> 2019-03-01 | GR32: =DATE(YEAR(GE32),MONTH(GE32)+1,DAY(GE32)) -> 2019-04-01 | HE32: 12 Monate | HR32: =DATE(YEAR(GR32),MONTH(GR32)+1,DAY(GR32)) -> 2019-05-01 | IE32: =DATE(YEAR(HR32),MONTH(HR32)+1,DAY(HR32)) -> 2019-06-01
E33: Umsatz Jahr 1 | BE33: =IF($W$121=1,Umsätze!AO62,IF($W$121=2,Umsätze!AO88,IF($W$121=3,Umsätze!AO123,IF($W$121=4,Umsätze!AO162)))) -> 0 | BR33: =IF($W$121=1,Umsätze!BB62,IF($W$121=2,Umsätze!BB88,IF($W$121=3,Umsätze!BB123,IF($W$121=4,Umsätze!BB162)))) -> 0 | CE33: =IF($W$121=1,Umsätze!BP62,IF($W$121=2,Umsätze!BP88,IF($W$121=3,Umsätze!BP123,IF($W$121=4,Umsätze!BP162)))) -> 0 | CR33: =IF($W$121=1,Umsätze!CC62,IF($W$121=2,Umsätze!CC88,IF($W$121=3,Umsätze!CC123,IF($W$121=4,Umsätze!CC162)))) -> 0 | DE33: =IF($W$121=1,Umsätze!CP62,IF($W$121=2,Umsätze!CP88,IF($W$121=3,Umsätze!CP123,IF($W$121=4,Umsätze!CP162)))) -> 0 | DR33: =IF($W$121=1,Umsätze!DC62,IF($W$121=2,Umsätze!DC88,IF($W$121=3,Umsätze!DC123,IF($W$121=4,Umsätze!DC162)))) -> 0 | EE33: =IF($W$121=1,Umsätze!DP62,IF($W$121=2,Umsätze!DP88,IF($W$121=3,Umsätze!DP123,IF($W$121=4,Umsätze!DP162)))) -> 0 | ER33: =IF($W$121=1,Umsätze!EC62,IF($W$121=2,Umsätze!EC88,IF($W$121=3,Umsätze!EC123,IF($W$121=4,Umsätze!EC162)))) -> 0 | FE33: =IF($W$121=1,Umsätze!EP62,IF($W$121=2,Umsätze!EP88,IF($W$121=3,Umsätze!EP123,IF($W$121=4,Umsätze!EP162)))) -> 0 | FR33: =IF($W$121=1,Umsätze!FC62,IF($W$121=2,Umsätze!FC88,IF($W$121=3,Umsätze!FC123,IF($W$121=4,Umsätze!FC162)))) -> 0 | GE33: =IF($W$121=1,Umsätze!FP62,IF($W$121=2,Umsätze!FP88,IF($W$121=3,Umsätze!FP123,IF($W$121=4,Umsätze!FP162)))) -> 0 | GR33: =IF($W$121=1,Umsätze!GC62,IF($W$121=2,Umsätze!GC88,IF($W$121=3,Umsätze!GC123,IF($W$121=4,Umsätze!GC162)))) -> 0 | HE33: =IF(SUM(BE33:HD33)=0,0.0001,SUM(BE33:HD33)) -> 0.0001
E35: Zahlungseingang der Umsatzerlöse in %
E36: Anzahlung | BE36: =BE33*$AO$36 -> 0 | BR36: =BR33*$AO$36 -> 0 | CE36: =CE33*$AO$36 -> 0 | CR36: =CR33*$AO$36 -> 0 | DE36: =DE33*$AO$36 -> 0 | DR36: =DR33*$AO$36 -> 0 | EE36: =EE33*$AO$36 -> 0 | ER36: =ER33*$AO$36 -> 0 | FE36: =FE33*$AO$36 -> 0 | FR36: =FR33*$AO$36 -> 0 | GE36: =GE33*$AO$36 -> 0 | GR36: =GR33*$AO$36 -> 0 | HE36: =SUM(BE36:HD36) -> 0
E37: Zahlung im selben Monat | BE37: =BE33*$AO$37 -> 0 | BR37: =BR33*$AO$37 -> 0 | CE37: =CE33*$AO$37 -> 0 | CR37: =CR33*$AO$37 -> 0 | DE37: =DE33*$AO$37 -> 0 | DR37: =DR33*$AO$37 -> 0 | EE37: =EE33*$AO$37 -> 0 | ER37: =ER33*$AO$37 -> 0 | FE37: =FE33*$AO$37 -> 0 | FR37: =FR33*$AO$37 -> 0 | GE37: =GE33*$AO$37 -> 0 | GR37: =GR33*$AO$37 -> 0 | HE37: =SUM(BE37:HD37) -> 0
E38: Zahlung im Folgemonat | BE38: 0 | BR38: =BE33*$AO$38 -> 0 | CE38: =BR33*$AO$38 -> 0 | CR38: =CE33*$AO$38 -> 0 | DE38: =CR33*$AO$38 -> 0 | DR38: =DE33*$AO$38 -> 0 | EE38: =DR33*$AO$38 -> 0 | ER38: =EE33*$AO$38 -> 0 | FE38: =ER33*$AO$38 -> 0 | FR38: =FE33*$AO$38 -> 0 | GE38: =FR33*$AO$38 -> 0 | GR38: =GE33*$AO$38 -> 0 | HE38: =SUM(BE38:HD38) -> 0 | HR38: =GR33*$AO$38 -> 0
E39: Zahlung in zwei Monaten | BE39: 0 | BR39: 0 | CE39: =BE33*$AO$39 -> 0 | CR39: =BR33*$AO$39 -> 0 | DE39: =CE33*$AO$39 -> 0 | DR39: =CR33*$AO$39 -> 0 | EE39: =DE33*$AO$39 -> 0 | ER39: =DR33*$AO$39 -> 0 | FE39: =EE33*$AO$39 -> 0 | FR39: =ER33*$AO$39 -> 0 | GE39: =FE33*$AO$39 -> 0 | GR39: =FR33*$AO$39 -> 0 | HE39: =SUM(BE39:HD39) -> 0 | HR39: =GE33*$AO$39 -> 0 | IE39: =GR33*$AO$39 -> 0
E40: Summe der Einnahmen | AO40: =SUM(AO36:AO39) -> 0 | BE40: =SUM(BE36:BE39) -> 0 | BR40: =SUM(BR36:BR39) -> 0 | CE40: =SUM(CE36:CE39) -> 0 | CR40: =SUM(CR36:CR39) -> 0 | DE40: =SUM(DE36:DE39) -> 0 | DR40: =SUM(DR36:DR39) -> 0 | EE40: =SUM(EE36:EE39) -> 0 | ER40: =SUM(ER36:ER39) -> 0 | FE40: =SUM(FE36:FE39) -> 0 | FR40: =SUM(FR36:FR39) -> 0 | GE40: =SUM(GE36:GE39) -> 0 | GR40: =SUM(GR36:GR39) -> 0 | HE40: =SUM(HE36:HE39) -> 0
BE43: =Umsätze!AO50 -> 2019-05-01 | BR43: =DATE(YEAR(BE43),MONTH(BE43)+1,DAY(BE43)) -> 2019-06-01 | CE43: =DATE(YEAR(BR43),MONTH(BR43)+1,DAY(BR43)) -> 2019-07-01 | CR43: =DATE(YEAR(CE43),MONTH(CE43)+1,DAY(CE43)) -> 2019-08-01 | DE43: =DATE(YEAR(CR43),MONTH(CR43)+1,DAY(CR43)) -> 2019-09-01 | DR43: =DATE(YEAR(DE43),MONTH(DE43)+1,DAY(DE43)) -> 2019-10-01 | EE43: =DATE(YEAR(DR43),MONTH(DR43)+1,DAY(DR43)) -> 2019-11-01 | ER43: =DATE(YEAR(EE43),MONTH(EE43)+1,DAY(EE43)) -> 2019-12-01 | FE43: =DATE(YEAR(ER43),MONTH(ER43)+1,DAY(ER43)) -> 2020-01-01 | FR43: =DATE(YEAR(FE43),MONTH(FE43)+1,DAY(FE43)) -> 2020-02-01 | GE43: =DATE(YEAR(FR43),MONTH(FR43)+1,DAY(FR43)) -> 2020-03-01 | GR43: =DATE(YEAR(GE43),MONTH(GE43)+1,DAY(GE43)) -> 2020-04-01 | HE43: 12 Monate | HR43: =DATE(YEAR(GR43),MONTH(GR43)+1,DAY(GR43)) -> 2020-05-01 | IE43: =DATE(YEAR(HR43),MONTH(HR43)+1,DAY(HR43)) -> 2020-06-01
E44: Umsatz Jahr 2 | BE44: =IF($W$121=1,Umsätze!AO65,IF($W$121=2,Umsätze!AO96,IF($W$121=3,Umsätze!AO156,IF($W$121=4,Umsätze!AO168)))) -> 0 | BR44: =IF($W$121=1,Umsätze!BB65,IF($W$121=2,Umsätze!BB96,IF($W$121=3,Umsätze!BB156,IF($W$121=4,Umsätze!BB168)))) -> 0 | CE44: =IF($W$121=1,Umsätze!BP65,IF($W$121=2,Umsätze!BP96,IF($W$121=3,Umsätze!BP156,IF($W$121=4,Umsätze!BP168)))) -> 0 | CR44: =IF($W$121=1,Umsätze!CC65,IF($W$121=2,Umsätze!CC96,IF($W$121=3,Umsätze!CC156,IF($W$121=4,Umsätze!CC168)))) -> 0 | DE44: =IF($W$121=1,Umsätze!CP65,IF($W$121=2,Umsätze!CP96,IF($W$121=3,Umsätze!CP156,IF($W$121=4,Umsätze!CP168)))) -> 0 | DR44: =IF($W$121=1,Umsätze!DC65,IF($W$121=2,Umsätze!DC96,IF($W$121=3,Umsätze!DC156,IF($W$121=4,Umsätze!DC168)))) -> 0 | EE44: =IF($W$121=1,Umsätze!DP65,IF($W$121=2,Umsätze!DP96,IF($W$121=3,Umsätze!DP156,IF($W$121=4,Umsätze!DP168)))) -> 0 | ER44: =IF($W$121=1,Umsätze!EC65,IF($W$121=2,Umsätze!EC96,IF($W$121=3,Umsätze!EC156,IF($W$121=4,Umsätze!EC168)))) -> 0 | FE44: =IF($W$121=1,Umsätze!EP65,IF($W$121=2,Umsätze!EP96,IF($W$121=3,Umsätze!EP156,IF($W$121=4,Umsätze!EP168)))) -> 0 | FR44: =IF($W$121=1,Umsätze!FC65,IF($W$121=2,Umsätze!FC96,IF($W$121=3,Umsätze!FC156,IF($W$121=4,Umsätze!FC168)))) -> 0 | GE44: =IF($W$121=1,Umsätze!FP65,IF($W$121=2,Umsätze!FP96,IF($W$121=3,Umsätze!FP156,IF($W$121=4,Umsätze!FP168)))) -> 0 | GR44: =IF($W$121=1,Umsätze!GC65,IF($W$121=2,Umsätze!GC96,IF($W$121=3,Umsätze!GC156,IF($W$121=4,Umsätze!GC168)))) -> 0 | HE44: =IF(SUM(BE44:HD44)=0,0.0001,SUM(BE44:HD44)) -> 0.0001
E46: Zahlungseingang der Umsatzerlöse in %
E47: Anzahlung | AO47: =AO36 -> 0 | BE47: =BE44*$AO$47 -> 0 | BR47: =BR44*$AO$47 -> 0 | CE47: =CE44*$AO$47 -> 0 | CR47: =CR44*$AO$47 -> 0 | DE47: =DE44*$AO$47 -> 0 | DR47: =DR44*$AO$47 -> 0 | EE47: =EE44*$AO$47 -> 0 | ER47: =ER44*$AO$47 -> 0 | FE47: =FE44*$AO$47 -> 0 | FR47: =FR44*$AO$47 -> 0 | GE47: =GE44*$AO$47 -> 0 | GR47: =GR44*$AO$47 -> 0 | HE47: =SUM(BE47:HD47) -> 0
E48: Zahlung im selben Monat | AO48: =AO37 -> 0 | BE48: =BE44*$AO$48 -> 0 | BR48: =BR44*$AO$48 -> 0 | CE48: =CE44*$AO$48 -> 0 | CR48: =CR44*$AO$48 -> 0 | DE48: =DE44*$AO$48 -> 0 | DR48: =DR44*$AO$48 -> 0 | EE48: =EE44*$AO$48 -> 0 | ER48: =ER44*$AO$48 -> 0 | FE48: =FE44*$AO$48 -> 0 | FR48: =FR44*$AO$48 -> 0 | GE48: =GE44*$AO$48 -> 0 | GR48: =GR44*$AO$48 -> 0 | HE48: =SUM(BE48:HD48) -> 0
E49: Zahlung im Folgemonat | AO49: =AO38 -> 0 | BE49: =AO38*GR33 -> 0 | BR49: =BE44*$AO$49 -> 0 | CE49: =BR44*$AO$49 -> 0 | CR49: =CE44*$AO$49 -> 0 | DE49: =CR44*$AO$49 -> 0 | DR49: =DE44*$AO$49 -> 0 | EE49: =DR44*$AO$49 -> 0 | ER49: =EE44*$AO$49 -> 0 | FE49: =ER44*$AO$49 -> 0 | FR49: =FE44*$AO$49 -> 0 | GE49: =FR44*$AO$49 -> 0 | GR49: =GE44*$AO$49 -> 0 | HE49: =SUM(BE49:HD49) -> 0 | HR49: =GR44*$AO$49 -> 0
E50: Zahlung in zwei Monaten | AO50: =AO39 -> 0 | BE50: =AO39*GE33 -> 0 | BR50: =AO39*GR33 -> 0 | CE50: =BE44*$AO$50 -> 0 | CR50: =BR44*$AO$50 -> 0 | DE50: =CE44*$AO$50 -> 0 | DR50: =CR44*$AO$50 -> 0 | EE50: =DE44*$AO$50 -> 0 | ER50: =DR44*$AO$50 -> 0 | FE50: =EE44*$AO$50 -> 0 | FR50: =ER44*$AO$50 -> 0 | GE50: =FE44*$AO$50 -> 0 | GR50: =FR44*$AO$50 -> 0 | HE50: =SUM(BE50:HD50) -> 0 | HR50: =GE44*$AO$50 -> 0 | IE50: =GR44*$AO$50 -> 0
E51: Summe der Einnahmen | AO51: =SUM(AO47:AO50) -> 0 | BE51: =SUM(BE47:BE50) -> 0 | BR51: =SUM(BR47:BR50) -> 0 | CE51: =SUM(CE47:CE50) -> 0 | CR51: =SUM(CR47:CR50) -> 0 | DE51: =SUM(DE47:DE50) -> 0 | DR51: =SUM(DR47:DR50) -> 0 | EE51: =SUM(EE47:EE50) -> 0 | ER51: =SUM(ER47:ER50) -> 0 | FE51: =SUM(FE47:FE50) -> 0 | FR51: =SUM(FR47:FR50) -> 0 | GE51: =SUM(GE47:GE50) -> 0 | GR51: =SUM(GR47:GR50) -> 0 | HE51: =SUM(HE47:HE50) -> 0
E55: Umsatzabhängige Provisionen in % vom Umsatz
E56: Provision Jahr1 | AO56: =Kosten!AO61 -> 0 | BE56: =BE33*$AO$56 -> 0 | BR56: =BR33*$AO$56 -> 0 | CE56: =CE33*$AO$56 -> 0 | CR56: =CR33*$AO$56 -> 0 | DE56: =DE33*$AO$56 -> 0 | DR56: =DR33*$AO$56 -> 0 | EE56: =EE33*$AO$56 -> 0 | ER56: =ER33*$AO$56 -> 0 | FE56: =FE33*$AO$56 -> 0 | FR56: =FR33*$AO$56 -> 0 | GE56: =GE33*$AO$56 -> 0 | GR56: =GR33*$AO$56 -> 0 | HE56: =SUM(BE56:HD56) -> 0
E58: Provision Jahr2 | AO58: =Kosten!BT61 -> 0 | BE58: =BE44*$AO$58 -> 0 | BR58: =BR44*$AO$58 -> 0 | CE58: =CE44*$AO$58 -> 0 | CR58: =CR44*$AO$58 -> 0 | DE58: =DE44*$AO$58 -> 0 | DR58: =DR44*$AO$58 -> 0 | EE58: =EE44*$AO$58 -> 0 | ER58: =ER44*$AO$58 -> 0 | FE58: =FE44*$AO$58 -> 0 | FR58: =FR44*$AO$58 -> 0 | GE58: =GE44*$AO$58 -> 0 | GR58: =GR44*$AO$58 -> 0 | HE58: =SUM(BE58:HD58) -> 0
E60: Umsatzabhängiger Wareneinsatz
E61: Jahreswert verteilt nach Umsatz auf Monate
E62: Automatische Übernahme | AO62: =IF(W134=1,0.0001,IF(W134=2,Kosten!BE50,IF(W134=3,Kosten!BE57-Kosten!BE50,IF(W134=4,0,)))) -> 0.0001 | BE62: =IF($AO$62>0,$AO$62/$HE$33*BE33,$AO$64/$HE$33*BE33) -> 0 | BR62: =IF($AO$62>0,$AO$62/$HE$33*BR33,$AO$64/$HE$33*BR33) -> 0 | CE62: =IF($AO$62>0,$AO$62/$HE$33*CE33,$AO$64/$HE$33*CE33) -> 0 | CR62: =IF($AO$62>0,$AO$62/$HE$33*CR33,$AO$64/$HE$33*CR33) -> 0 | DE62: =IF($AO$62>0,$AO$62/$HE$33*DE33,$AO$64/$HE$33*DE33) -> 0 | DR62: =IF($AO$62>0,$AO$62/$HE$33*DR33,$AO$64/$HE$33*DR33) -> 0 | EE62: =IF($AO$62>0,$AO$62/$HE$33*EE33,$AO$64/$HE$33*EE33) -> 0 | ER62: =IF($AO$62>0,$AO$62/$HE$33*ER33,$AO$64/$HE$33*ER33) -> 0 | FE62: =IF($AO$62>0,$AO$62/$HE$33*FE33,$AO$64/$HE$33*FE33) -> 0 | FR62: =IF($AO$62>0,$AO$62/$HE$33*FR33,$AO$64/$HE$33*FR33) -> 0 | GE62: =IF($AO$62>0,$AO$62/$HE$33*GE33,$AO$64/$HE$33*GE33) -> 0 | GR62: =IF($AO$62>0,$AO$62/$HE$33*GR33,$AO$64/$HE$33*GR33) -> 0 | HE62: =SUM(BE62:HD62) -> 0
E64: =IF(W134=4,"Hier eigene Werte eingeben:","") -> 
E66: Deckungsbeitrag pro Monat | BE66: =BE33-BE56-BE62 -> 0 | BR66: =BR33-BR56-BR62 -> 0 | CE66: =CE33-CE56-CE62 -> 0 | CR66: =CR33-CR56-CR62 -> 0 | DE66: =DE33-DE56-DE62 -> 0 | DR66: =DR33-DR56-DR62 -> 0 | EE66: =EE33-EE56-EE62 -> 0 | ER66: =ER33-ER56-ER62 -> 0 | FE66: =FE33-FE56-FE62 -> 0 | FR66: =FR33-FR56-FR62 -> 0 | GE66: =GE33-GE56-GE62 -> 0 | GR66: =GR33-GR56-GR62 -> 0 | HE66: =SUM(BC66:HD66) -> 0
F69: Für Produktionsunternehmen gilt:
F71: Der hier ermittelte Deckungsbeitrag ist nur dann korrekt,
F72: wenn Sie keine stückzahlabhängigen Löhne, sondern
F73: fixe Monatslöhne bezahlen!
Y115: Jahr 1 | Z115: Jahr 2 | AA115: Jahr 3
W116: Alternative 1 | Y116: =HE33 -> 0.0001 | Z116: =IF($W$121=1,Umsätze!BB70,IF($W$121=2,Umsätze!BB80,IF($W$121=3,Umsätze!BB138,IF($W$121=4,Umsätze!BB165)))) -> 0 | AA116: =IF($W$121=1,Umsätze!BP70,IF($W$121=2,Umsätze!BP80,IF($W$121=3,Umsätze!BP138,IF($W$121=4,Umsätze!BP165)))) -> 0
W117: Alternative 2
W118: Alternative 3 | Y118: Einnahmen 3 M | Z118: Einnahmen 6 M | AA118: Einnahmen 12 M
W119: Alternative 4 | Y119: =BE40+BR40+CE40 -> 0 | Z119: =Y119+CR40+DE40+DR40 -> 0 | AA119: =HE40 -> 0
W121: 4
W130: Ich habe keinen umsatzabhängigen Wareneinsatz.
W131: Ich möchte die Werte aus dem Material-Tool übernehmen.
W132: Ich möchte meine bereits manuell eingegebenen Werte übernehmen.
W133: Ich möchte hier eigene Werte eingeben.
W134: 1

Sheet Kapital
M4: Eigen- & Fremdkapital
M7: Schritt 1: Investitionen
M13: Schritt 2: Umsätze | AO13: Personalkosten | BE13: Rentabilitätsplan
M17: Schritt 3: Kostenaufstellung | AO17: Materialkosten | BE17: Liquiditätsplan
M21: Schritt 4: Einnahmen | AO21: Abschreibungen | BE21: Kapitalbedarfsplan
E25: Start | M25: Schritt 5: Eigen- & Fremdkapital | AO25: Entnahme | BE25: Finanzierungsplan
E30: Vorhandenes Eigenkapital
E32: Barvermögen
E33: Bankguthaben
E34: Betriebsnotwendige Sacheinlagen
E35: Eigenleistungen (nur wenn aktivierungsfähig)
E36: Bausparverträge
E37: Verwandtendarlehen
E38: Schenkungen
E39: Finanzmittel von privaten Dritten
E40: Sonstiges
E41: Summe Eigenkapital | AO41: =SUM(AO32:AO40) -> 0
E43: Langfristiges Fremdkapital
BE45: Auszahlung | BR45: Betrag
E46: Fördermittel (vergünstigte Kredite) Kredit 1: | BE46: 1 | BR46: =AO46*BE46 -> 0
E47: Fördermittel (vergünstigte Kredite) Kredit 2: | BE47: 1 | BR47: =AO47*BE47 -> 0
E48: Kredite der Hausbank (Kredit 3) : | BE48: 1 | BR48: =AO48*BE48 -> 0
E49: Sonstiges | BR49: =AO49*BE49 -> 0
E50: Summe Fremdkapital | AO50: =SUM(AO46:AO49) -> 0 | BE50: Auszahlungssumme | BR50: =SUM(BR46:BR49) -> 0
E52: Vorhandenes Gesamtkapital | AO52: =AO50+AO41 -> 0
E54: Kurzfristiges Fremdkapital
E56: Kontokorrent-Kredit
E58: Vorhandene Sicherheiten
E60: Haus- und Grundbesitz
E61: Lebensversicherungen
E62: Bürgschaften Dritter
E65: Erfassung von Zins und Tilgung
F68: Tipp: Zins- und Tilgungsrechner
F70: Unter www.kfw-foerderbank.de im Service-Bereich können Sie sich über die aktuellen
F71: Kreditkonditionen informieren und die dort ermittelten Werte dann hier eingeben.
F72: Aus Vereinfachungsgründen wird im Folgenden mit einer quartalsweisen Zinszahlung und
F73: einer halbjährlichen Tilgungszahlung gerechnet.
AS76: Kredit 1 | BI76: Kredit 2 | BV76: Kredit 3
E77: Kreditsumme: | AO77: =BR46 -> 0 | BE77: =BR47 -> 0 | BR77: =BR48 -> 0 | CP77: Kredit1 | CW77: Kredit2 | DD77: Kredit3
E78: Zinssatz: | CN78: 0 | CP78: Tilgung | CQ78: pro Halbjahr | CR78: =IF(BR46/(AO80-AO79)/2=0,0.000001,BR46/(AO80-AO79)/2) -> 1e-06 | CW78: Tilgung | CX78: pro Halbjahr | CY78: =BR47/(BE80-BE79)/2 -> 0 | DD78: Tilgung | DE78: pro Halbjahr | DF78: =BR48/(BR80-BR79)/2 -> 0
E79: Tilgungsfreiheit in Jahren: (bitte auswählen) | AO79: 0.5 | BE79: 1 | BR79: 2 | CN79: 0.5 | CQ79: pro Jahr | CR79: =CR78*2 -> 2e-06 | CX79: pro Jahr | CY79: =CY78*2 -> 0 | DE79: pro Jahr | DF79: =DF78*2 -> 0
E80: Laufzeit des Kredits in Jahren: | AO80: 10 | BE80: 10 | BR80: 10 | CN80: 1 | CR80: =BR46 -> 0 | CY80: =BR47 -> 0 | DF80: =BR48 -> 0
CN81: 2
E83: Zinsen | AO83: 1. Jahr | BE83: 2. Jahr | BR83: 3. Jahr | CP83: Qtl. | CQ83: Tilgung | CR83: Restschuld für Zinsberechng | CS83: Zins | CT83: Zins pro H-Jahr | CU83: Zins pro Jahr | CV83: Kurzzeitprüfg | CW83: Qtl. | CX83: Tilgung | CY83: Restschuld | CZ83: Zins | DA83: Zins pro H-Jahr | DB83: Zins pro Jahr | DC83: Kurzzeitprüfg | DD83: Qtl. | DE83: Tilgung | DF83: Restschuld | DG83: Zins | DH83: Zins pro H-Jahr | DI83: Zins pro Jahr | DJ83: Kurzzeitprüfg
E84: Zins 1 (Jahresbetrag) für: bitte Text eingeben | AO84: =CU87 -> 0 | BE84: =CU91 -> 0 | BR84: =CU95 -> 0 | CP84: 1 | CQ84: =IF($AO$79=0,$CR$78/2,0) -> 0 | CR84: =$BR$46-CQ84 -> 0 | CS84: =CR80*$AO$78/4 -> 0 | CW84: 1 | CX84: =IF($BE$79=0,$CY$78/2,0) -> 0 | CY84: =$BR$47-CX84 -> 0 | CZ84: =CY80*$BE$78/4 -> 0 | DD84: 1 | DE84: =IF($BR$79=0,$DF$78/2,0) -> 0 | DF84: =$BR$48-DE84 -> 0 | DG84: =DF80*$BR$78/4 -> 0
E85: Zins 2 (Jahresbetrag) für: bitte Text eingeben | AO85: =DB87 -> 0 | BE85: =DB91 -> 0 | BR85: =DB95 -> 0 | CP85: 2 | CQ85: =IF($AO$79=0,$CR$78/2,0) -> 0 | CR85: =CR84-CQ85 -> 0 | CS85: =CR84*$AO$78/4 -> 0 | CT85: =SUM(CS84:CS85) -> 0 | CW85: 2 | CX85: =IF($BE$79=0,$CY$78/2,0) -> 0 | CY85: =CY84-CX84 -> 0 | CZ85: =CY84*$BE$78/4 -> 0 | DA85: =SUM(CZ84:CZ85) -> 0 | DD85: 2 | DE85: =IF($BR$79=0,$DF$78/2,0) -> 0 | DF85: =DF84-DE85 -> 0 | DG85: =DF84*$BR$78/4 -> 0 | DH85: =SUM(DG84:DG85) -> 0
E86: Zins 3 (Jahresbetrag) für: bitte Text eingeben | AO86: =DI87 -> 0 | BE86: =DI91 -> 0 | BR86: =DI95 -> 0 | CP86: 3 | CQ86: =IF($AO$79<1,$CR$78/2,0) -> 5e-07 | CR86: =CR85-CQ86 -> -5e-07 | CS86: =CR85*$AO$78/4 -> 0 | CW86: 3 | CX86: =IF($BE$79<1,$CY$78/2,0) -> 0 | CY86: =CY85-CX86 -> 0 | CZ86: =CY85*$BE$78/4 -> 0 | DD86: 3 | DE86: =IF($BR$79<1,$DF$78/2,0) -> 0 | DF86: =DF85-DE86 -> 0 | DG86: =DF85*$BR$78/4 -> 0
E87: Summe Zinsen | AO87: =SUM(AO84:AO86) -> 0 | BE87: =SUM(BE84:BE86) -> 0 | BR87: =SUM(BR84:BR86) -> 0 | CP87: 4 | CQ87: =IF($AO$79<1,$CR$78/2,0) -> 5e-07 | CR87: =CR86-CQ87 -> -1e-06 | CS87: 0 | CT87: =SUM(CS86:CS87) -> 0 | CU87: =SUM(CT85:CT87) -> 0 | CV87: =CR87-CQ87 -> -1.5e-06 | CW87: 4 | CX87: =IF($BE$79<1,$CY$78/2,0) -> 0 | CY87: =CY86-CX87 -> 0 | CZ87: 0 | DA87: =SUM(CZ86:CZ87) -> 0 | DB87: =SUM(DA85:DA87) -> 0 | DC87: =CY87-CX87 -> 0 | DD87: 4 | DE87: =IF($BR$79<1,$DF$78/2,0) -> 0 | DF87: =DF86-DE87 -> 0 | DG87: 0 | DH87: =SUM(DG86:DG87) -> 0 | DI87: =SUM(DH85:DH87) -> 0 | DJ87: =DF87-DE87 -> 0
CP88: 5 | CQ88: =IF(CV87=0,0,IF($AO$79<2,$CR$78/2,0)) -> 5e-07 | CR88: =CR87-CQ88 -> -1.5e-06 | CS88: 0 | CW88: 5 | CX88: =IF($DC$87=0,0,IF($BE$79<2,$CY$78/2,0)) -> 0 | CY88: =CY87-CX88 -> 0 | CZ88: 0 | DD88: 5 | DE88: =IF($DJ$87=0,0,IF($BR$79<2,$DF$78/2,0)) -> 0 | DF88: 0 | DG88: 0
E89: Tilgung | AO89: 1. Jahr | BE89: 2. Jahr | BR89: 3. Jahr | CP89: 6 | CQ89: =IF(CV87=0,0,IF($AO$79<2,$CR$78/2,0)) -> 5e-07 | CR89: -2e-06 | CS89: 0 | CV89: =CR89-CQ89 -> -2.5e-06 | CW89: 6 | CX89: =IF($DC$87=0,0,IF($BE$79<2,$CY$78/2,0)) -> 0 | CY89: 0 | CZ89: 0 | DC89: =CY89-CX89 -> 0 | DD89: 6 | DE89: =IF($DJ$87=0,0,IF($BR$79<2,$DF$78/2,0)) -> 0 | DF89: 0 | DG89: 0 | DJ89: =DF89-DE89 -> 0
E90: Tilgung 1 pro Jahr | AO90: =ROUND(SUM(CQ84:CQ87),1) -> 0 | BE90: =ROUND(SUM(CQ88:CQ91),1) -> 0 | BR90: =ROUND(SUM(CQ92:CQ95),1) -> 0 | CP90: 7 | CQ90: =IF($CV$89=0,0,IF($AO$79<2,$CR$78/2,0)) -> 5e-07 | CR90: -2.5e-06 | CS90: 0 | CW90: 7 | CX90: =IF($DC$89=0,0,IF($BE$79<2,$CY$78/2,0)) -> 0 | CY90: 0 | CZ90: 0 | DD90: 7 | DE90: =IF($DJ$89=0,0,IF($BR$79<2,$DF$78/2,0)) -> 0 | DF90: 0 | DG90: 0
E91: Tilgung 2 pro Jahr | AO91: =ROUND(SUM(CX84:CX87),1) -> 0 | BE91: =ROUND(SUM(CX88:CX91),1) -> 0 | BR91: =ROUND(SUM(CX92:CX95),1) -> 0 | CP91: 8 | CQ91: =IF($CV$89=0,0,IF($AO$79<2,$CR$78/2,0)) -> 5e-07 | CR91: -3e-06 | CS91: 0 | CT91: =SUM(CS88:CS91) -> 0 | CU91: =CT91 -> 0 | CV91: =CR91-CQ91 -> -3.5e-06 | CW91: 8 | CX91: =IF($DC$89=0,0,IF($BE$79<2,$CY$78/2,0)) -> 0 | CY91: 0 | CZ91: 0 | DA91: =SUM(CZ88:CZ91) -> 0 | DB91: =DA91 -> 0 | DC91: =CY91-CX91 -> 0 | DD91: 8 | DE91: =IF($DJ$89=0,0,IF($BR$79<2,$DF$78/2,0)) -> 0 | DF91: 0 | DG91: 0 | DH91: =SUM(DG88:DG91) -> 0 | DI91: =DH91 -> 0 | DJ91: =DF91-DE91 -> 0
E92: Tilgung 3 pro Jahr | AO92: =ROUND(SUM(DE84:DE87),1) -> 0 | BE92: =ROUND(SUM(DE88:DE91),1) -> 0 | BR92: =ROUND(SUM(DE92:DE95),1) -> 0 | CP92: 9 | CQ92: =IF($CV$91=0,0,$CR$78/2) -> 5e-07 | CR92: -3.5e-06 | CS92: 0 | CW92: 9 | CX92: =IF($DC$91=0,0,$CY$78/2) -> 0 | CY92: 0 | CZ92: 0 | DD92: 9 | DE92: =IF($DJ$91=0,0,$DF$78/2) -> 0 | DF92: 0 | DG92: 0
E93: Summe Tilgung | AO93: =SUM(AO90:AO92) -> 0 | BE93: =SUM(BE90:BE92) -> 0 | BR93: =SUM(BR90:BR92) -> 0 | CP93: 10 | CQ93: =IF($CV$91=0,0,$CR$78/2) -> 5e-07 | CR93: -4e-06 | CS93: 0 | CV93: =CR93-CQ93 -> -4.5e-06 | CW93: 10 | CX93: =IF($DC$91=0,0,$CY$78/2) -> 0 | CY93: 0 | CZ93: 0 | DC93: =CY93-CX93 -> 0 | DD93: 10 | DE93: =IF($DJ$91=0,0,$DF$78/2) -> 0 | DF93: 0 | DG93: 0 | DJ93: =DF93-DE93 -> 0
CP94: 11 | CQ94: =IF($CV$93=0,0,$CR$78/2) -> 5e-07 | CR94: -4.5e-06 | CS94: 0 | CW94: 11 | CX94: =IF($DC$93=0,0,$CY$78/2) -> 0 | CY94: 0 | CZ94: 0 | DD94: 11 | DE94: =IF($DJ$93=0,0,$DF$78/2) -> 0 | DF94: 0 | DG94: 0
CP95: 12 | CQ95: =IF($CV$93=0,0,$CR$78/2) -> 5e-07 | CR95: -5e-06 | CS95: 0 | CT95: =SUM(CS92:CS95) -> 0 | CU95: =CT95 -> 0 | CW95: 12 | CX95: =IF($DC$93=0,0,$CY$78/2) -> 0 | CY95: 0 | CZ95: 0 | DA95: =SUM(CZ92:CZ95) -> 0 | DB95: =DA95 -> 0 | DD95: 12 | DE95: =IF($DJ$93=0,0,$DF$78/2) -> 0 | DF95: 0 | DG95: 0 | DH95: =SUM(DG92:DG95) -> 0 | DI95: =DH95 -> 0
CP96: 13 | CQ96: =CQ94 -> 5e-07 | CR96: -5.5e-06 | CS96: 0 | CW96: 13 | CX96: =CX94 -> 0 | CY96: 0 | CZ96: 0 | DD96: 13 | DE96: =DE94 -> 0 | DF96: 0 | DG96: 0
CP97: 14 | CQ97: 5e-07 | CR97: -6e-06 | CS97: 0 | CW97: 14 | CX97: 0 | CY97: 0 | CZ97: 0 | DD97: 14 | DE97: 0 | DF97: 0 | DG97: 0
CP98: 15 | CQ98: 5e-07 | CR98: -6.5e-06 | CS98: 0 | CW98: 15 | CX98: 0 | CY98: 0 | CZ98: 0 | DD98: 15 | DE98: 0 | DF98: 0 | DG98: 0
CP99: 16 | CQ99: 5e-07 | CR99: -7e-06 | CS99: 0 | CT99: =SUM(CS96:CS99) -> 0 | CU99: =CT99+CQ96+CQ97+CQ98+CQ99 -> 2e-06 | CW99: 16 | CX99: 0 | CY99: 0 | CZ99: 0 | DA99: =SUM(CZ96:CZ99) -> 0 | DB99: =DA99+CX96+CX97+CX98+CX99 -> 0 | DD99: 16 | DE99: 0 | DF99: 0 | DG99: 0 | DH99: =SUM(DG96:DG99) -> 0 | DI99: =DH99+DE96+DE97+DE98+DE99 -> 0
CP100: 17 | CQ100: 5e-07 | CR100: -7.5e-06 | CS100: 0 | CW100: 17 | CX100: 0 | CY100: 0 | CZ100: 0 | DD100: 17 | DE100: 0 | DF100: 0 | DG100: 0
CP101: 18 | CQ101: 5e-07 | CR101: -8e-06 | CS101: 0 | CW101: 18 | CX101: 0 | CY101: 0 | CZ101: 0 | DD101: 18 | DE101: 0 | DF101: 0 | DG101: 0
CP102: 19 | CQ102: 5e-07 | CR102: -8.5e-06 | CS102: 0 | CW102: 19 | CX102: 0 | CY102: 0 | CZ102: 0 | DD102: 19 | DE102: 0 | DF102: 0 | DG102: 0
CP103: 20 | CQ103: 5e-07 | CR103: -9e-06 | CS103: 0 | CT103: =SUM(CS100:CS103) -> 0 | CU103: =CT103+CQ100+CQ101+CQ102+CQ103 -> 2e-06 | CW103: 20 | CX103: 0 | CY103: 0 | CZ103: 0 | DA103: =SUM(CZ100:CZ103) -> 0 | DB103: =DA103+CX100+CX101+CX102+CX103 -> 0 | DD103: 20 | DE103: 0 | DF103: 0 | DG103: 0 | DH103: =SUM(DG100:DG103) -> 0 | DI103: =DH103+DE100+DE101+DE102+DE103 -> 0
CP104: 21 | CQ104: 5e-07 | CR104: -9.5e-06 | CS104: 0 | CW104: 21 | CX104: 0 | CY104: 0 | CZ104: 0 | DD104: 21 | DE104: 0 | DF104: 0 | DG104: 0
CP105: 22 | CQ105: 5e-07 | CR105: -1e-05 | CS105: 0 | CW105: 22 | CX105: 0 | CY105: 0 | CZ105: 0 | DD105: 22 | DE105: 0 | DF105: 0 | DG105: 0
CP106: 23 | CQ106: 5e-07 | CR106: -1.05e-05 | CS106: 0 | CW106: 23 | CX106: 0 | CY106: 0 | CZ106: 0 | DD106: 23 | DE106: 0 | DF106: 0 | DG106: 0
CP107: 24 | CQ107: 5e-07 | CR107: -1.1e-05 | CS107: 0 | CT107: =SUM(CS104:CS107) -> 0 | CU107: =CT107+CQ104+CQ105+CQ106+CQ107 -> 2e-06 | CW107: 24 | CX107: 0 | CY107: 0 | CZ107: 0 | DA107: =SUM(CZ104:CZ107) -> 0 | DB107: =DA107+CX104+CX105+CX106+CX107 -> 0 | DD107: 24 | DE107: 0 | DF107: 0 | DG107: 0 | DH107: =SUM(DG104:DG107) -> 0 | DI107: =DH107+DE104+DE105+DE106+DE107 -> 0
CP108: 25 | CQ108: 5e-07 | CR108: -1.15e-05 | CS108: 0 | CW108: 25 | CX108: 0 | CY108: 0 | CZ108: 0 | DD108: 25 | DE108: 0 | DF108: 0 | DG108: 0
CP109: 26 | CQ109: 5e-07 | CR109: -1.2e-05 | CS109: 0 | CW109: 26 | CX109: 0 | CY109: 0 | CZ109: 0 | DD109: 26 | DE109: 0 | DF109: 0 | DG109: 0
CP110: 27 | CQ110: 5e-07 | CR110: -1.25e-05 | CS110: 0 | CW110: 27 | CX110: 0 | CY110: 0 | CZ110: 0 | DD110: 27 | DE110: 0 | DF110: 0 | DG110: 0
CP111: 28 | CQ111: 5e-07 | CR111: -1.3e-05 | CS111: 0 | CT111: =SUM(CS108:CS111) -> 0 | CU111: =CT111+CQ108+CQ109+CQ110+CQ111 -> 2e-06 | CW111: 28 | CX111: 0 | CY111: 0 | CZ111: 0 | DA111: =SUM(CZ108:CZ111) -> 0 | DB111: =DA111+CX108+CX109+CX110+CX111 -> 0 | DD111: 28 | DE111: 0 | DF111: 0 | DG111: 0 | DH111: =SUM(DG108:DG111) -> 0 | DI111: =DH111+DE108+DE109+DE110+DE111 -> 0
CP112: 29 | CQ112: 5e-07 | CR112: -1.35e-05 | CS112: 0 | CW112: 29 | CX112: 0 | CY112: 0 | CZ112: 0 | DD112: 29 | DE112: 0 | DF112: 0 | DG112: 0
CP113: 30 | CQ113: 5e-07 | CR113: -1.4e-05 | CS113: 0 | CW113: 30 | CX113: 0 | CY113: 0 | CZ113: 0 | DD113: 30 | DE113: 0 | DF113: 0 | DG113: 0
CP114: 31 | CQ114: 5e-07 | CR114: -1.45e-05 | CS114: 0 | CW114: 31 | CX114: 0 | CY114: 0 | CZ114: 0 | DD114: 31 | DE114: 0 | DF114: 0 | DG114: 0
CP115: 32 | CQ115: 5e-07 | CR115: -1.5e-05 | CS115: 0 | CT115: =SUM(CS112:CS115) -> 0 | CU115: =CT115+CQ112+CQ113+CQ114+CQ115 -> 2e-06 | CW115: 32 | CX115: 0 | CY115: 0 | CZ115: 0 | DA115: =SUM(CZ112:CZ115) -> 0 | DB115: =DA115+CX112+CX113+CX114+CX115 -> 0 | DD115: 32 | DE115: 0 | DF115: 0 | DG115: 0 | DH115: =SUM(DG112:DG115) -> 0 | DI115: =DH115+DE112+DE113+DE114+DE115 -> 0
CP116: 33 | CQ116: 5e-07 | CR116: -1.55e-05 | CS116: 0 | CW116: 33 | CX116: 0 | CY116: 0 | CZ116: 0 | DD116: 33 | DE116: 0 | DF116: 0 | DG116: 0
CP117: 34 | CQ117: 5e-07 | CR117: -1.6e-05 | CS117: 0 | CW117: 34 | CX117: 0 | CY117: 0 | CZ117: 0 | DD117: 34 | DE117: 0 | DF117: 0 | DG117: 0
CP118: 35 | CQ118: 5e-07 | CR118: -1.65e-05 | CS118: 0 | CW118: 35 | CX118: 0 | CY118: 0 | CZ118: 0 | DD118: 35 | DE118: 0 | DF118: 0 | DG118: 0
CP119: 36 | CQ119: 5e-07 | CR119: -1.7e-05 | CS119: 0 | CT119: =SUM(CS116:CS119) -> 0 | CU119: =CT119+CQ116+CQ117+CQ118+CQ119 -> 2e-06 | CW119: 36 | CX119: 0 | CY119: 0 | CZ119: 0 | DA119: =SUM(CZ116:CZ119) -> 0 | DB119: =DA119+CX116+CX117+CX118+CX119 -> 0 | DD119: 36 | DE119: 0 | DF119: 0 | DG119: 0 | DH119: =SUM(DG116:DG119) -> 0 | DI119: =DH119+DE116+DE117+DE118+DE119 -> 0
CP120: 37 | CQ120: 5e-07 | CR120: -1.75e-05 | CS120: 0 | CW120: 37 | CX120: 0 | CY120: 0 | CZ120: 0 | DD120: 37 | DE120: 0 | DF120: 0 | DG120: 0
CP121: 38 | CQ121: 5e-07 | CR121: -1.8e-05 | CS121: 0 | CW121: 38 | CX121: 0 | CY121: 0 | CZ121: 0 | DD121: 38 | DE121: 0 | DF121: 0 | DG121: 0
CP122: 39 | CQ122: 5e-07 | CR122: -1.85e-05 | CS122: 0 | CW122: 39 | CX122: 0 | CY122: 0 | CZ122: 0 | DD122: 39 | DE122: 0 | DF122: 0 | DG122: 0
CP123: 40 | CQ123: 5e-07 | CR123: -1.9e-05 | CS123: 0 | CT123: =SUM(CS120:CS123) -> 0 | CU123: =CT123+CQ120+CQ121+CQ122+CQ123 -> 2e-06 | CW123: 40 | CX123: 0 | CY123: 0 | CZ123: 0 | DA123: =SUM(CZ120:CZ123) -> 0 | DB123: =DA123+CX120+CX121+CX122+CX123 -> 0 | DD123: 40 | DE123: 0 | DF123: 0 | DG123: 0 | DH123: =SUM(DG120:DG123) -> 0 | DI123: =DH123+DE120+DE121+DE122+DE123 -> 0
CS124: 0 | CZ124: 0 | DG124: 0
CQ125: =SUM(CQ84:CQ124) -> 1.9e-05 | CT125: =SUM(CT123,CT119,CT115,CT111,CT107,CT103,CT99,CT95,CT91,CT87) -> 0 | CU125: =SUM(CU84:CU124) -> 1.4e-05 | CX125: =SUM(CX84:CX124) -> 0 | DA125: =SUM(DA123,DA119,DA115,DA111,DA107,DA103,DA99,DA95,DA91,DA87) -> 0 | DB125: =SUM(DB84:DB124) -> 0 | DE125: =SUM(DE84:DE124) -> 0 | DH125: =SUM(DH123,DH119,DH115,DH111,DH107,DH103,DH99,DH95,DH91,DH87) -> 0 | DI125: =SUM(DI84:DI124) -> 0

Sheet Rentabilität
M4: Rentabilitätsplan
M7: Schritt 1: Investitionen
M13: Schritt 2: Umsätze | AO13: Personalkosten | BE13: Rentabilitätsplan
M17: Schritt 3: Kostenaufstellung | AO17: Materialkosten | BE17: Liquiditätsplan
M21: Schritt 4: Einnahmen | AO21: Abschreibungen | BE21: Kapitalbedarfsplan
E25: Start | M25: Schritt 5: Eigen- & Fremdkapital | AO25: Entnahme | BE25: Finanzierungsplan
AO30: 1. Jahr | BE30: 2. Jahr | BT30: 3. Jahr
D32: Plan-Umsatz (ohne Bestandsveränderungen) | AO32: =Einnahmen!Y116 -> 0.0001 | BE32: =Einnahmen!Z116 -> 0 | BT32: =Einnahmen!AA116 -> 0
D34: Abzüglich variable Kosten
D35: Wareneinsatz | AO35: =Kosten!BE57 -> 0 | BE35: =Kosten!BT57 -> 0 | BT35: =Kosten!CF57 -> 0
D36: Provisionen | AO36: =AO32*Kosten!AO61 -> 0 | BE36: =BE32*Kosten!BT61 -> 0 | BT36: =BT32*Kosten!CF61 -> 0
D37: = Rohertrag | AO37: =AO32-AO35-AO36 -> 0.0001 | BE37: =BE32-BE35-BE36 -> 0 | BT37: =BT32-BT35-BT36 -> 0
D39: Abzüglich Personalkosten | AO39: =Kosten!DC43*12 -> 0 | BE39: =Kosten!DD43 -> 0 | BT39: =Kosten!DE43 -> 0
D40: Raumkosten | AO40: =(Kosten!DC65+Kosten!DC66)*12 -> 0 | BE40: =Kosten!DD65+Kosten!DD66 -> 0 | BT40: =Kosten!DE65+Kosten!DE66 -> 0
D41: Fahrzeugkosten | AO41: =(Kosten!DC69+Kosten!DC70)*12 -> 0 | BE41: =(Kosten!DD69+Kosten!DD70) -> 0 | BT41: =(Kosten!DE69+Kosten!DE70) -> 0
D42: Leasing | AO42: =Kosten!DC68*12 -> 0 | BE42: =Kosten!DD68 -> 0 | BT42: =Kosten!DE68 -> 0
D43: Instandhaltung | AO43: =Kosten!DC72*12 -> 0 | BE43: =Kosten!DD72 -> 0 | BT43: =Kosten!DE72 -> 0
D44: Werbekosten | AO44: =Kosten!DC73*12 -> 0 | BE44: =Kosten!DD73 -> 0 | BT44: =Kosten!DE73 -> 0
D45: Reise- / Bewirtungskosten | AO45: =(Kosten!DC71+Kosten!DC74)*12 -> 0 | BE45: =(Kosten!DD71+Kosten!DD74) -> 0 | BT45: =(Kosten!DE71+Kosten!DE74) -> 0
D46: Weiterbildung / Fachzeitschriften, Bücher | AO46: =(Kosten!DC75+Kosten!DC81)*12 -> 0 | BE46: =(Kosten!DD75+Kosten!DD81) -> 0 | BT46: =(Kosten!DE75+Kosten!DE81) -> 0
D47: Buchführung, Beratung | AO47: =Kosten!DC82*12 -> 0 | BE47: =Kosten!DD82 -> 0 | BT47: =Kosten!DE82 -> 0
D48: Bürobedarf | AO48: =Kosten!DC76*12 -> 0 | BE48: =Kosten!DD76 -> 0 | BT48: =Kosten!DE76 -> 0
D49: Telefon / Fax / Internet / Porto | AO49: =(Kosten!DC77+Kosten!DC78+Kosten!DC79+Kosten!DC80)*12 -> 0 | BE49: =(Kosten!DD77+Kosten!DD78+Kosten!DD79+Kosten!DD80) -> 0 | BT49: =(Kosten!DE77+Kosten!DE78+Kosten!DE79+Kosten!DE80) -> 0
D50: Beiträge, Gebühren (auch Lizenz/Franchiseg) | AO50: =(Kosten!DC67+Kosten!DC84+Kosten!DC85)*12 -> 0 | BE50: =(Kosten!DD67+Kosten!DD84+Kosten!DD85) -> 0 | BT50: =(Kosten!DE67+Kosten!DE84+Kosten!DE85) -> 0
D51: Betriebliche Versicherungen | AO51: =Kosten!DC86*12 -> 0 | BE51: =Kosten!DD86 -> 0 | BT51: =Kosten!DE86 -> 0
D52: Betriebliche Steuern | CL52: =Kosten!DE87 -> 0
D53: Sonstige Kosten | AO53: =(Kosten!DC88+Kosten!DC83)*12 -> 0 | BE53: =(Kosten!DD88+Kosten!DD83) -> 0 | BT53: =(Kosten!DE88+Kosten!DE83) -> 0 | CL53: =(Kosten!DE88+Kosten!DE83) -> 0 | CM53: summe so. K. f. Kap.bed
D54: Abzüglich AfA | AO54: =Kosten!DC102*12 -> 0 | BE54: =Kosten!DD102 -> 0 | BT54: =Kosten!DE102 -> 0 | CL54: =Kosten!CF102 -> 0 | CM54: =SUM(AO40:AO53) -> 0 | CN54: =SUM(BE40:BE53) -> 0 | CO54: =SUM(BT40:BT53) -> 0
D55: Abzüglich Zinsen | AO55: =Kapital!AO87 -> 0 | BE55: =Kapital!BE87 -> 0 | BT55: =Kapital!BR87 -> 0 | CL55: =Kapital!BR87 -> 0
D56: Abzüglich gründungsbedingte Kosten | AO56: =Investitionen!BE42 -> 0
D58: = Gewinn | AO58: =AO37-SUM(AO39:AO57) -> 0.0001 | BE58: =BE37-SUM(BE39:BE57) -> 0 | BT58: =BT37-SUM(BT39:BT57) -> 0
D60: Zuzüglich AfA | AO60: =AO54 -> 0 | BE60: =BE54 -> 0 | BT60: =CL54 -> 0
D61: Eigenkapital & Fremdkapital | AO61: =Kapital!AO41-Kapital!AO34-Kapital!AO35+Kapital!BR50 -> 0
D62: Abzüglich Tilgung | AO62: =Kapital!AO93 -> 0 | BE62: =Kapital!BE93 -> 0 | BT62: =Kapital!BR93 -> 0
D63: Unternehmerlohn | AO63: =Kosten!BE118 -> 0 | BE63: =Kosten!BT118 -> 0 | BT63: =Kosten!CF118 -> 0
D64: Betriebliche Steuern | AO64: =Kosten!DC92*12 -> 0 | BE64: =Kosten!DD92 -> 0 | BT64: =Kosten!DE92 -> 0
D65: Investitionen | AO65: =Investitionen!BE72 -> 0
D67: = Cash Flow | AO67: =AO58+AO60+AO61-AO62-AO63-AO65-AO64 -> 0.0001 | BE67: =BE58+BE60+BE61-BE62-BE63-BE65-BE64 -> 0 | BT67: =BT58+BT60+BT61-BT62-BT63-BT65-BT64 -> 0
AU71: =IF(AO67>0,"In Ordnung!","Bitte prüfen!") -> In Ordnung! | BK71: =IF(BE67>-1,"In Ordnung!","Bitte prüfen!") -> In Ordnung! | CA71: =IF(BT67>-1,"In Ordnung!","Bitte prüfen!") -> In Ordnung!

Sheet Liquidität
M4: Liquiditätsplan Jahr 1
M7: Schritt 1: Investitionen
M13: Schritt 2: Umsätze | AO13: Personalkosten | BE13: Rentabilitätsplan
M17: Schritt 3: Kostenaufstellung | AO17: Materialkosten | BE17: Liquiditätsplan | BS17: Liquidität 2. Jahr
M21: Schritt 4: Einnahmen | AO21: Abschreibungen | BE21: Kapitalbedarfsplan
E25: Start | M25: Schritt 5: Eigen- & Fremdkapital | AO25: Entnahme | BE25: Finanzierungsplan
E30: Monat ab Gründung | AO30: Monat 1 | BA30: Monat 2 | BN30: Monat 3 | BZ30: Monat 4 | CL30: Monat 5 | CX30: Monat 6 | DJ30: Monat 7 | DV30: Monat 8 | EH30: Monat 9 | ET30: Monat 10 | FF30: Monat 11 | FR30: Monat 12
AO31: =Einnahmen!BE32 -> 2018-05-01 | BA31: =Einnahmen!BR32 -> 2018-06-01 | BN31: =Einnahmen!CE32 -> 2018-07-01 | BZ31: =Einnahmen!CR32 -> 2018-08-01 | CL31: =Einnahmen!DE32 -> 2018-09-01 | CX31: =Einnahmen!DR32 -> 2018-10-01 | DJ31: =Einnahmen!EE32 -> 2018-11-01 | DV31: =Einnahmen!ER32 -> 2018-12-01 | EH31: =Einnahmen!FE32 -> 2019-01-01 | ET31: =Einnahmen!FR32 -> 2019-02-01 | FF31: =Einnahmen!GE32 -> 2019-03-01 | FR31: =Einnahmen!GR32 -> 2019-04-01
E32: 1. Bestand an liquiden Mitteln
E33: Kasse / Bankguthaben | AO33: =Kapital!AO41 -> 0 | BA33: =AO64 -> 0 | BN33: =BA64 -> 0 | BZ33: =BN64 -> 0 | CL33: =BZ64 -> 0 | CX33: =CL64 -> 0 | DJ33: =CX64 -> 0 | DV33: =DJ64 -> -1.666666667e-07 | EH33: =DV64 -> -3.333333333e-07 | ET33: =EH64 -> -5e-07 | FF33: =ET64 -> -6.666666667e-07 | FR33: =FF64 -> -8.333333333e-07
E35: 2. Einnahmen
E36: Kreditauszahlungen | AO36: =Kapital!BR50 -> 0
E37: Geldeingang aus Netto-Umsätzen | AO37: =Einnahmen!BE40 -> 0 | BA37: =Einnahmen!BR40 -> 0 | BN37: =Einnahmen!CE40 -> 0 | BZ37: =Einnahmen!CR40 -> 0 | CL37: =Einnahmen!DE40 -> 0 | CX37: =Einnahmen!DR40 -> 0 | DJ37: =Einnahmen!EE40 -> 0 | DV37: =Einnahmen!ER40 -> 0 | EH37: =Einnahmen!FE40 -> 0 | ET37: =Einnahmen!FR40 -> 0 | FF37: =Einnahmen!GE40 -> 0 | FR37: =Einnahmen!GR40 -> 0 | GI37: =SUM(AO37:FR37) -> 0
E38: Eingenommene Umsatzsteuer | AO38: =AO37*Investitionen!$BE$31 -> 0 | BA38: =BA37*Investitionen!$BE$31 -> 0 | BN38: =BN37*Investitionen!$BE$31 -> 0 | BZ38: =BZ37*Investitionen!$BE$31 -> 0 | CL38: =CL37*Investitionen!$BE$31 -> 0 | CX38: =CX37*Investitionen!$BE$31 -> 0 | DJ38: =DJ37*Investitionen!$BE$31 -> 0 | DV38: =DV37*Investitionen!$BE$31 -> 0 | EH38: =EH37*Investitionen!$BE$31 -> 0 | ET38: =ET37*Investitionen!$BE$31 -> 0 | FF38: =FF37*Investitionen!$BE$31 -> 0 | FR38: =FR37*Investitionen!$BE$31 -> 0 | GI38: 0
E39: Vom Finanzamt erstattete Vorsteuer | AO39: 0 | BA39: =AO52 -> 0 | BN39: =BA52 -> 0 | BZ39: =BN52 -> 0 | CL39: =BZ52 -> 0 | CX39: =CL52 -> 0 | DJ39: =CX52 -> 0 | DV39: =DJ52 -> 0 | EH39: =DV52 -> 0 | ET39: =EH52 -> 0 | FF39: =ET52 -> 0 | FR39: =FF52 -> 0 | GI39: 0
E40: Sonstige Einnahmen | GI40: 0
E41: Privateinlage | GI41: 0
E42: Summe Einnahmen | AO42: =SUM(AO36:AO41) -> 0 | BA42: =SUM(BA36:BA41) -> 0 | BN42: =SUM(BN36:BN41) -> 0 | BZ42: =SUM(BZ36:BZ41) -> 0 | CL42: =SUM(CL36:CL41) -> 0 | CX42: =SUM(CX36:CX41) -> 0 | DJ42: =SUM(DJ36:DJ41) -> 0 | DV42: =SUM(DV36:DV41) -> 0 | EH42: =SUM(EH36:EH41) -> 0 | ET42: =SUM(ET36:ET41) -> 0 | FF42: =SUM(FF36:FF41) -> 0 | FR42: =SUM(FR36:FR41) -> 0 | GI42: 0
E44: 3. Verfügbare Mittel (1+2) | AO44: =AO33+AO42 -> 0 | BA44: =BA33+BA42 -> 0 | BN44: =BN33+BN42 -> 0 | BZ44: =BZ33+BZ42 -> 0 | CL44: =CL33+CL42 -> 0 | CX44: =CX33+CX42 -> 0 | DJ44: =DJ33+DJ42 -> 0 | DV44: =DV33+DV42 -> -1.666666667e-07 | EH44: =EH33+EH42 -> -3.333333333e-07 | ET44: =ET33+ET42 -> -5e-07 | FF44: =FF33+FF42 -> -6.666666667e-07 | FR44: =FR33+FR42 -> -8.333333333e-07
E46: 4. Ausgaben
E47: Löhne und Gehälter inklusive Sozialabgaben | AO47: =Kosten!DC43 -> 0 | BA47: =AO47 -> 0 | BN47: =BA47 -> 0 | BZ47: =BN47 -> 0 | CL47: =BZ47 -> 0 | CX47: =CL47 -> 0 | DJ47: =CX47 -> 0 | DV47: =DJ47 -> 0 | EH47: =DV47 -> 0 | ET47: =EH47 -> 0 | FF47: =ET47 -> 0 | FR47: =FF47 -> 0 | GI47: =SUM(AO47:FR47) -> 0
E48: Zahlungen an Lieferanten | AO48: =AO75 -> 0 | BA48: =AO48 -> 0 | BN48: =BA48 -> 0 | BZ48: =BN48 -> 0 | CL48: =BZ48 -> 0 | CX48: =CL48 -> 0 | DJ48: =CX48 -> 0 | DV48: =DJ48 -> 0 | EH48: =DV48 -> 0 | ET48: =EH48 -> 0 | FF48: =ET48 -> 0 | FR48: =FF48 -> 0 | GI48: 0 | GK48: =AO48+BA48+BN48 -> 0 | GL48: =GK48+BZ48+CL48+CX48 -> 0 | GM48: =GI48 -> 0
E49: Bareinkäufe | GI49: 0
E50: Provisionen | AO50: =Einnahmen!BE56 -> 0 | BA50: =Einnahmen!BR56 -> 0 | BN50: =Einnahmen!CE56 -> 0 | BZ50: =Einnahmen!CR56 -> 0 | CL50: =Einnahmen!DE56 -> 0 | CX50: =Einnahmen!DR56 -> 0 | DJ50: =Einnahmen!EE56 -> 0 | DV50: =Einnahmen!ER56 -> 0 | EH50: =Einnahmen!FE56 -> 0 | ET50: =Einnahmen!FR56 -> 0 | FF50: =Einnahmen!GE56 -> 0 | FR50: =Einnahmen!GR56 -> 0 | GI50: 0
E51: Sonstige Betriebsausgaben | AO51: =Kosten!DC89 -> 0 | BA51: =AO51 -> 0 | BN51: =BA51 -> 0 | BZ51: =BN51 -> 0 | CL51: =BZ51 -> 0 | CX51: =CL51 -> 0 | DJ51: =CX51 -> 0 | DV51: =DJ51 -> 0 | EH51: =DV51 -> 0 | ET51: =EH51 -> 0 | FF51: =ET51 -> 0 | FR51: =FF51 -> 0 | GI51: 0
E52: Bezahlte Vorsteuer | AO52: =(AO48+AO49+AO50+AO51+AO57+AO58-Investitionen!BE52)*Investitionen!$BE$31 -> 0 | BA52: =(BA48+BA49+BA50+BA51+BA57+BA58)*Investitionen!$BE$31 -> 0 | BN52: =(BN48+BN49+BN50+BN51+BN57+BN58)*Investitionen!$BE$31 -> 0 | BZ52: =(BZ48+BZ49+BZ50+BZ51+BZ57+BZ58)*Investitionen!$BE$31 -> 0 | CL52: =(CL48+CL49+CL50+CL51+CL57+CL58)*Investitionen!$BE$31 -> 0 | CX52: =(CX48+CX49+CX50+CX51+CX57+CX58)*Investitionen!$BE$31 -> 0 | DJ52: =(DJ48+DJ49+DJ50+DJ51+DJ57+DJ58)*Investitionen!$BE$31 -> 0 | DV52: =(DV48+DV49+DV50+DV51+DV57+DV58)*Investitionen!$BE$31 -> 0 | EH52: =(EH48+EH49+EH50+EH51+EH57+EH58)*Investitionen!$BE$31 -> 0 | ET52: =(ET48+ET49+ET50+ET51+ET57+ET58)*Investitionen!$BE$31 -> 0 | FF52: =(FF48+FF49+FF50+FF51+FF57+FF58)*Investitionen!$BE$31 -> 0 | FR52: =(FR48+FR49+FR50+FR51+FR57+FR58)*Investitionen!$BE$31 -> 0 | GI52: 0
E53: An das Finanzamt abgeführte Umsatzsteuer | AO53: 0 | BA53: =AO37*Investitionen!$BE$31 -> 0 | BN53: =BA37*Investitionen!$BE$31 -> 0 | BZ53: =BN37*Investitionen!$BE$31 -> 0 | CL53: =BZ37*Investitionen!$BE$31 -> 0 | CX53: =CL37*Investitionen!$BE$31 -> 0 | DJ53: =CX37*Investitionen!$BE$31 -> 0 | DV53: =DJ37*Investitionen!$BE$31 -> 0 | EH53: =DV37*Investitionen!$BE$31 -> 0 | ET53: =EH37*Investitionen!$BE$31 -> 0 | FF53: =ET37*Investitionen!$BE$31 -> 0 | FR53: =FF37*Investitionen!$BE$31 -> 0 | GI53: 0
E54: Zinsen | AO54: =(Kapital!CT85+Kapital!DA85+Kapital!DH85)/6 -> 0 | BA54: =AO54 -> 0 | BN54: =BA54 -> 0 | BZ54: =BN54 -> 0 | CL54: =BZ54 -> 0 | CX54: =CL54 -> 0 | DJ54: =(Kapital!$CT$87+Kapital!$DA$87+Kapital!$DH$87)/6 -> 0 | DV54: =DJ54 -> 0 | EH54: =DV54 -> 0 | ET54: =EH54 -> 0 | FF54: =ET54 -> 0 | FR54: =FF54 -> 0 | GI54: 0 | GK54: 3M | GL54: 6M | GM54: 12M
E55: Kredittilgung | AO55: =(Kapital!CQ85+Kapital!CX85+Kapital!DE85)/3 -> 0 | BA55: =AO55 -> 0 | BN55: =BA55 -> 0 | BZ55: =BN55 -> 0 | CL55: =BZ55 -> 0 | CX55: =CL55 -> 0 | DJ55: =(Kapital!CQ87+Kapital!CX87+Kapital!DE87)/3 -> 1.666666667e-07 | DV55: =DJ55 -> 1.666666667e-07 | EH55: =DV55 -> 1.666666667e-07 | ET55: =EH55 -> 1.666666667e-07 | FF55: =ET55 -> 1.666666667e-07 | FR55: =FF55 -> 1.666666667e-07 | GI55: 1e-06 | GK55: =AO55+BA55+CX55 -> 0 | GL55: =GK55+BZ55+CL55+CX55 -> 0 | GM55: =SUM(AO55:FR55) -> 1e-06
E56: Betriebliche Steuern | GI56: 0
E57: Investitionen und gründungsbedingte Kosten | AO57: =Investitionen!BE74 -> 0 | GI57: 0
E58: Sonstige Ausgaben | GI58: 0
E59: Privatentnahme | AO59: =IF(Kosten!$BE$114>0,'Entnahmen-Tool'!$BE$80,Kosten!$AO$117) -> 0 | BA59: =AO59 -> 0 | BN59: =AO59 -> 0 | BZ59: =AO59 -> 0 | CL59: =AO59 -> 0 | CX59: =AO59 -> 0 | DJ59: =IF(Kosten!$BE$114>0,'Entnahmen-Tool'!$BE$82,Kosten!$AO$117) -> 0 | DV59: =DJ59 -> 0 | EH59: =DJ59 -> 0 | ET59: =EH59 -> 0 | FF59: =ET59 -> 0 | FR59: =FF59 -> 0 | GI59: 0 | GK59: =AO59+BA59+BN59 -> 0 | GL59: =GK59+BZ59+CL59+CX59 -> 0 | GM59: =SUM(AO59:FR59) -> 0
E60: Summe Ausgaben | AO60: =SUM(AO47:AO59) -> 0 | BA60: =SUM(BA47:BA59) -> 0 | BN60: =SUM(BN47:BN59) -> 0 | BZ60: =SUM(BZ47:BZ59) -> 0 | CL60: =SUM(CL47:CL59) -> 0 | CX60: =SUM(CX47:CX59) -> 0 | DJ60: =SUM(DJ47:DJ59) -> 1.666666667e-07 | DV60: =SUM(DV47:DV59) -> 1.666666667e-07 | EH60: =SUM(EH47:EH59) -> 1.666666667e-07 | ET60: =SUM(ET47:ET59) -> 1.666666667e-07 | FF60: =SUM(FF47:FF59) -> 1.666666667e-07 | FR60: =SUM(FR47:FR59) -> 1.666666667e-07 | GI60: 1e-06
E62: Ergebnis (2-4) | AO62: =AO42-AO60 -> 0 | BA62: =BA42-BA60 -> 0 | BN62: =BN42-BN60 -> 0 | BZ62: =BZ42-BZ60 -> 0 | CL62: =CL42-CL60 -> 0 | CX62: =CX42-CX60 -> 0 | DJ62: =DJ42-DJ60 -> -1.666666667e-07 | DV62: =DV42-DV60 -> -1.666666667e-07 | EH62: =EH42-EH60 -> -1.666666667e-07 | ET62: =ET42-ET60 -> -1.666666667e-07 | FF62: =FF42-FF60 -> -1.666666667e-07 | FR62: =FR42-FR60 -> -1.666666667e-07
E64: Liquidität (3-4) | AO64: =AO44-AO60 -> 0 | BA64: =BA44-BA60 -> 0 | BN64: =BN44-BN60 -> 0 | BZ64: =BZ44-BZ60 -> 0 | CL64: =CL44-CL60 -> 0 | CX64: =CX44-CX60 -> 0 | DJ64: =DJ44-DJ60 -> -1.666666667e-07 | DV64: =DV44-DV60 -> -3.333333333e-07 | EH64: =EH44-EH60 -> -5e-07 | ET64: =ET44-ET60 -> -6.666666667e-07 | FF64: =FF44-FF60 -> -8.333333333e-07 | FR64: =FR44-FR60 -> -1e-06
E70: Kontrolle: | AO70: =IF(AO64<$AO$79*-1,"Achtung!","In Ordnung!") -> In Ordnung! | BA70: =IF(BA64<$AO$79*-1,"Achtung!","In Ordnung!") -> In Ordnung! | BN70: =IF(BN64<$AO$79*-1,"Achtung!","In Ordnung!") -> In Ordnung! | BZ70: =IF(BZ64<$AO$79*-1,"Achtung!","In Ordnung!") -> In Ordnung! | CL70: =IF(CL64<$AO$79*-1,"Achtung!","In Ordnung!") -> In Ordnung! | CX70: =IF(CX64<$AO$79*-1,"Achtung!","In Ordnung!") -> In Ordnung! | DJ70: =IF(DJ64<$AO$79*-1,"Achtung!","In Ordnung!") -> Achtung! | DV70: =IF(DV64<$AO$79*-1,"Achtung!","In Ordnung!") -> Achtung! | EH70: =IF(EH64<$AO$79*-1,"Achtung!","In Ordnung!") -> Achtung! | ET70: =IF(ET64<$AO$79*-1,"Achtung!","In Ordnung!") -> Achtung! | FF70: =IF(FF64<$AO$79*-1,"Achtung!","In Ordnung!") -> Achtung! | FR70: =IF(FR64<$AO$79*-1,"Achtung!","In Ordnung!") -> Achtung!
F73: Kontrollsummen: | AO73: Nicht ausdrucken!
F74: Summe geplanter Wareneinsatz: | AO74: =Kosten!BE57 -> 0
F75: Geplanter Wareneinsatz pro Monat: | AO75: =AO74/12 -> 0
F76: Summe Zahlung an Lieferanten: | AO76: =SUM(AO48:FR48) -> 0
F77: Differenz: | AO77: =AO76-AO74 -> 0 | BO77: Hinweis:
AO78: =IF(OR(AO77<-500,AO77>500),"Bitte prüfen!","") ->  | BO78: Bitte achten Sie unbedingt darauf, dass in jedem Monat die Liquidität größer 0 ist bzw. die vereinbarte Kontokorrent-Linie eingehalten wird!
F79: Kontokorrent-Kredit: | AO79: =Kapital!AO56 -> 0
F80: Kleinster Wert in Liquiditätsvorschau Jahr 1: | AO80: =MIN(AO64,BA64,BN64,BZ64,CL64,CX64,DJ64,DV64,EH64,ET64,FF64,FR64) -> -1e-06
F81: Kontokorrent-Kredit-Linie eingehalten: | AO81: =IF(AO80<AO79*-1,"nein","ja") -> nein | BO81: Bitte passen Sie andernfalls Ihre Planung entsprechend an!
F82: Kleinster Wert in Liquiditätsvorschau Jahr 2: | AO82: =LiquiditätII!AO80 -> -3e-06
F83: Kontokorrent-Kredit-Linie eingehalten: | AO83: =LiquiditätII!AO81 -> nein
F84: Größte Liquiditätslücke in Monat: | AO84: =LiquiditätII!GW55 -> 24

Sheet LiquiditätII
M4: Liquiditätsplan Jahr 2
M7: Schritt 1: Investitionen
M13: Schritt 2: Umsätze | AO13: Personalkosten | BE13: Rentabilitätsplan
M17: Schritt 3: Kostenaufstellung | AO17: Materialkosten | BE17: Liquiditätsplan 1. Jahr
M21: Schritt 4: Einnahmen | AO21: Abschreibungen | BE21: Kapitalbedarfsplan
E25: Start | M25: Schritt 5: Eigen- & Fremdkapital | AO25: Entnahme | BE25: Finanzierungsplan
GX29: Ausgaben | GY29: Einnahmen | GZ29: kum. Ausg | HA29: kum. Einn
E30: Monat ab Gründung | AO30: Monat 13 | BA30: Monat 14 | BN30: Monat 15 | BZ30: Monat 16 | CL30: Monat 17 | CX30: Monat 18 | DJ30: Monat 19 | DV30: Monat 20 | EH30: Monat 21 | ET30: Monat 22 | FF30: Monat 23 | FR30: Monat 24 | GU30: 1 | GV30: =Liquidität!AO64 -> 0 | GW30: 1 | GX30: =Liquidität!AO60-Liquidität!AO57 -> 0 | GY30: =Liquidität!AO42-Liquidität!AO36 -> 0 | GZ30: =GX30 -> 0 | HA30: =GY30 -> 0
AO31: =Einnahmen!BE43 -> 2019-05-01 | BA31: =Einnahmen!BR43 -> 2019-06-01 | BN31: =Einnahmen!CE43 -> 2019-07-01 | BZ31: =Einnahmen!CR43 -> 2019-08-01 | CL31: =Einnahmen!DE43 -> 2019-09-01 | CX31: =Einnahmen!DR43 -> 2019-10-01 | DJ31: =Einnahmen!EE43 -> 2019-11-01 | DV31: =Einnahmen!ER43 -> 2019-12-01 | EH31: =Einnahmen!FE43 -> 2020-01-01 | ET31: =Einnahmen!FR43 -> 2020-02-01 | FF31: =Einnahmen!GE43 -> 2020-03-01 | FR31: =Einnahmen!GR43 -> 2020-04-01 | GU31: 2 | GV31: =Liquidität!BA64 -> 0 | GW31: 2 | GX31: =Liquidität!BA60-Liquidität!BA57 -> 0 | GY31: =Liquidität!BA42-Liquidität!BA36 -> 0 | GZ31: =GZ30+GX31 -> 0 | HA31: =HA30+GY31 -> 0
E32: 1. Bestand an liquiden Mitteln | GU32: 3 | GV32: =Liquidität!BN64 -> 0 | GW32: 3 | GX32: =Liquidität!BN60-Liquidität!BN57 -> 0 | GY32: =Liquidität!BN42-Liquidität!BN36 -> 0 | GZ32: =GZ31+GX32 -> 0 | HA32: =HA31+GY32 -> 0
E33: Kasse / Bankguthaben | AO33: =Liquidität!FR64 -> -1e-06 | BA33: =AO64 -> -1.166666667e-06 | BN33: =BA64 -> -1.333333333e-06 | BZ33: =BN64 -> -1.5e-06 | CL33: =BZ64 -> -1.666666667e-06 | CX33: =CL64 -> -1.833333333e-06 | DJ33: =CX64 -> -2e-06 | DV33: =DJ64 -> -2.166666667e-06 | EH33: =DV64 -> -2.333333333e-06 | ET33: =EH64 -> -2.5e-06 | FF33: =ET64 -> -2.666666667e-06 | FR33: =FF64 -> -2.833333333e-06 | GU33: 4 | GV33: =Liquidität!BZ64 -> 0 | GW33: 4 | GX33: =Liquidität!BZ60-Liquidität!BZ57 -> 0 | GY33: =Liquidität!BZ42-Liquidität!BZ36 -> 0 | GZ33: 0 | HA33: 0
GU34: 5 | GV34: =Liquidität!CL64 -> 0 | GW34: 5 | GX34: =Liquidität!CL60-Liquidität!CL57 -> 0 | GY34: =Liquidität!CL42-Liquidität!CL36 -> 0 | GZ34: 0 | HA34: 0
E35: 2. Einnahmen | GU35: 6 | GV35: =Liquidität!CX64 -> 0 | GW35: 6 | GX35: =Liquidität!CX60-Liquidität!CX57 -> 0 | GY35: =Liquidität!CX42-Liquidität!CX36 -> 0 | GZ35: 0 | HA35: 0
E36: Kreditauszahlungen | GU36: 7 | GV36: =Liquidität!DJ64 -> -1.666666667e-07 | GW36: 7 | GX36: =Liquidität!DJ60-Liquidität!DJ57 -> 1.666666667e-07 | GY36: =Liquidität!DJ42-Liquidität!DJ36 -> 0 | GZ36: 1.666666667e-07 | HA36: 0
E37: Geldeingang aus Netto-Umsätzen | AO37: =Einnahmen!BE51 -> 0 | BA37: =Einnahmen!BR51 -> 0 | BN37: =Einnahmen!CE51 -> 0 | BZ37: =Einnahmen!CR51 -> 0 | CL37: =Einnahmen!DE51 -> 0 | CX37: =Einnahmen!DR51 -> 0 | DJ37: =Einnahmen!EE51 -> 0 | DV37: =Einnahmen!ER51 -> 0 | EH37: =Einnahmen!FE51 -> 0 | ET37: =Einnahmen!FR51 -> 0 | FF37: =Einnahmen!GE51 -> 0 | FR37: =Einnahmen!GR51 -> 0 | GI37: =SUM(AO37:FR37) -> 0 | GR37: =SUM(AO37:GC37) -> 0 | GU37: 8 | GV37: =Liquidität!DV64 -> -3.333333333e-07 | GW37: 8 | GX37: =Liquidität!DV60-Liquidität!DV57 -> 1.666666667e-07 | GY37: =Liquidität!DV42-Liquidität!DV36 -> 0 | GZ37: 3.333333333e-07 | HA37: 0
E38: Eingenommene Umsatzsteuer | AO38: =AO37*Investitionen!$BE$31 -> 0 | BA38: =BA37*Investitionen!$BE$31 -> 0 | BN38: =BN37*Investitionen!$BE$31 -> 0 | BZ38: =BZ37*Investitionen!$BE$31 -> 0 | CL38: =CL37*Investitionen!$BE$31 -> 0 | CX38: =CX37*Investitionen!$BE$31 -> 0 | DJ38: =DJ37*Investitionen!$BE$31 -> 0 | DV38: =DV37*Investitionen!$BE$31 -> 0 | EH38: =EH37*Investitionen!$BE$31 -> 0 | ET38: =ET37*Investitionen!$BE$31 -> 0 | FF38: =FF37*Investitionen!$BE$31 -> 0 | FR38: =FR37*Investitionen!$BE$31 -> 0 | GI38: 0 | GU38: 9 | GV38: =Liquidität!EH64 -> -5e-07 | GW38: 9 | GX38: =Liquidität!EH60-Liquidität!EH57 -> 1.666666667e-07 | GY38: =Liquidität!EH42-Liquidität!EH36 -> 0 | GZ38: 5e-07 | HA38: 0
E39: Vom Finanzamt erstattete Vorsteuer | AO39: =Liquidität!FR52 -> 0 | BA39: =AO52 -> 0 | BN39: =BA52 -> 0 | BZ39: =BN52 -> 0 | CL39: =BZ52 -> 0 | CX39: =CL52 -> 0 | DJ39: =CX52 -> 0 | DV39: =DJ52 -> 0 | EH39: =DV52 -> 0 | ET39: =EH52 -> 0 | FF39: =ET52 -> 0 | FR39: =FF52 -> 0 | GI39: 0 | GU39: 10 | GV39: =Liquidität!ET64 -> -6.666666667e-07 | GW39: 10 | GX39: =Liquidität!ET60-Liquidität!ET57 -> 1.666666667e-07 | GY39: =Liquidität!ET42-Liquidität!ET36 -> 0 | GZ39: 6.666666667e-07 | HA39: 0
E40: Sonstige Einnahmen | GI40: 0 | GU40: 11 | GV40: =Liquidität!FF64 -> -8.333333333e-07 | GW40: 11 | GX40: =Liquidität!FF60-Liquidität!FF57 -> 1.666666667e-07 | GY40: =Liquidität!FF42-Liquidität!FF36 -> 0 | GZ40: 8.333333333e-07 | HA40: 0
E41: Privateinlage | GI41: 0 | GU41: 12 | GV41: =Liquidität!FR64 -> -1e-06 | GW41: 12 | GX41: =Liquidität!FR60-Liquidität!FR57 -> 1.666666667e-07 | GY41: =Liquidität!FR42-Liquidität!FR36 -> 0 | GZ41: 1e-06 | HA41: 0
E42: Summe Einnahmen | AO42: =SUM(AO36:AO41) -> 0 | BA42: =SUM(BA36:BA41) -> 0 | BN42: =SUM(BN36:BN41) -> 0 | BZ42: =SUM(BZ36:BZ41) -> 0 | CL42: =SUM(CL36:CL41) -> 0 | CX42: =SUM(CX36:CX41) -> 0 | DJ42: =SUM(DJ36:DJ41) -> 0 | DV42: =SUM(DV36:DV41) -> 0 | EH42: =SUM(EH36:EH41) -> 0 | ET42: =SUM(ET36:ET41) -> 0 | FF42: =SUM(FF36:FF41) -> 0 | FR42: =SUM(FR36:FR41) -> 0 | GI42: 0 | GU42: 13 | GV42: =AO64 -> -1.166666667e-06 | GW42: 13 | GX42: =AO60-AO57 -> 1.666666667e-07 | GY42: =AO42-AO36 -> 0 | GZ42: 1.166666667e-06 | HA42: 0
GU43: 14 | GV43: =BA64 -> -1.333333333e-06 | GW43: 14 | GX43: =BA60-BA57 -> 1.666666667e-07 | GY43: =BA42-BA36 -> 0 | GZ43: 1.333333333e-06 | HA43: 0
E44: 3. Verfügbare Mittel (1+2) | AO44: =AO33+AO42 -> -1e-06 | BA44: =BA33+BA42 -> -1.166666667e-06 | BN44: =BN33+BN42 -> -1.333333333e-06 | BZ44: =BZ33+BZ42 -> -1.5e-06 | CL44: =CL33+CL42 -> -1.666666667e-06 | CX44: =CX33+CX42 -> -1.833333333e-06 | DJ44: =DJ33+DJ42 -> -2e-06 | DV44: =DV33+DV42 -> -2.166666667e-06 | EH44: =EH33+EH42 -> -2.333333333e-06 | ET44: =ET33+ET42 -> -2.5e-06 | FF44: =FF33+FF42 -> -2.666666667e-06 | FR44: =FR33+FR42 -> -2.833333333e-06 | GU44: 15 | GV44: =BN64 -> -1.5e-06 | GW44: 15 | GX44: =BN60-BN57 -> 1.666666667e-07 | GY44: =BN42-BN36 -> 0 | GZ44: 1.5e-06 | HA44: 0
GU45: 16 | GV45: =BZ64 -> -1.666666667e-06 | GW45: 16 | GX45: =BZ60-BZ57 -> 1.666666667e-07 | GY45: =BZ42-BZ36 -> 0 | GZ45: 1.666666667e-06 | HA45: 0
E46: 4. Ausgaben | GU46: 17 | GV46: =CL64 -> -1.833333333e-06 | GW46: 17 | GX46: =CL60-CL57 -> 1.666666667e-07 | GY46: =CL42-CL36 -> 0 | GZ46: 1.833333333e-06 | HA46: 0
E47: Löhne und Gehälter inklusive Sozialabgaben | AO47: =Kosten!BT44/12 -> 0 | BA47: =AO47 -> 0 | BN47: =BA47 -> 0 | BZ47: =BN47 -> 0 | CL47: =BZ47 -> 0 | CX47: =CL47 -> 0 | DJ47: =CX47 -> 0 | DV47: =DJ47 -> 0 | EH47: =DV47 -> 0 | ET47: =EH47 -> 0 | FF47: =ET47 -> 0 | FR47: =FF47 -> 0 | GI47: =SUM(AO47:FR47) -> 0 | GR47: =SUM(AO47:GC47) -> 0 | GU47: 18 | GV47: =CX64 -> -2e-06 | GW47: 18 | GX47: =CX60-CX57 -> 1.666666667e-07 | GY47: =CX42-CX36 -> 0 | GZ47: 2e-06 | HA47: 0
E48: Zahlungen an Lieferanten | AO48: =AO75 -> 0 | BA48: =AO48 -> 0 | BN48: =BA48 -> 0 | BZ48: =BN48 -> 0 | CL48: =BZ48 -> 0 | CX48: =CL48 -> 0 | DJ48: =CX48 -> 0 | DV48: =DJ48 -> 0 | EH48: =DV48 -> 0 | ET48: =EH48 -> 0 | FF48: =ET48 -> 0 | FR48: =FF48 -> 0 | GI48: 0 | GK48: =AO48+BA48+BN48 -> 0 | GL48: =GK48+BZ48+CL48+CX48 -> 0 | GM48: =GI48 -> 0 | GU48: 19 | GV48: =DJ64 -> -2.166666667e-06 | GW48: 19 | GX48: =DJ60-DJ57 -> 1.666666667e-07 | GY48: =DJ42-DJ36 -> 0 | GZ48: 2.166666667e-06 | HA48: 0
E49: Bareinkäufe | GI49: 0 | GU49: 20 | GV49: =DV64 -> -2.333333333e-06 | GW49: 20 | GX49: =DV60-DV57 -> 1.666666667e-07 | GY49: =DV42-DV36 -> 0 | GZ49: 2.333333333e-06 | HA49: 0
E50: Provisionen | AO50: =Einnahmen!BE58 -> 0 | BA50: =Einnahmen!BR58 -> 0 | BN50: =Einnahmen!CE58 -> 0 | BZ50: =Einnahmen!CR58 -> 0 | CL50: =Einnahmen!DE58 -> 0 | CX50: =Einnahmen!DR58 -> 0 | DJ50: =Einnahmen!EE58 -> 0 | DV50: =Einnahmen!ER58 -> 0 | EH50: =Einnahmen!FE58 -> 0 | ET50: =Einnahmen!FR58 -> 0 | FF50: =Einnahmen!GE58 -> 0 | FR50: =Einnahmen!GR58 -> 0 | GI50: 0 | GR50: =SUM(AO50:GC50) -> 0 | GU50: 21 | GV50: =EH64 -> -2.5e-06 | GW50: 21 | GX50: =EH60-EH57 -> 1.666666667e-07 | GY50: =EH42-EH36 -> 0 | GZ50: 2.5e-06 | HA50: 0
E51: Sonstige Betriebsausgaben | AO51: =Kosten!DD89/12 -> 0 | BA51: =AO51 -> 0 | BN51: =BA51 -> 0 | BZ51: =BN51 -> 0 | CL51: =BZ51 -> 0 | CX51: =CL51 -> 0 | DJ51: =CX51 -> 0 | DV51: =DJ51 -> 0 | EH51: =DV51 -> 0 | ET51: =EH51 -> 0 | FF51: =ET51 -> 0 | FR51: =FF51 -> 0 | GI51: 0 | GR51: =SUM(AO51:GC51) -> 0 | GU51: 22 | GV51: =ET64 -> -2.666666667e-06 | GW51: 22 | GX51: =ET60-ET57 -> 1.666666667e-07 | GY51: =ET42-ET36 -> 0 | GZ51: 2.666666667e-06 | HA51: 0
E52: Bezahlte Vorsteuer | AO52: =(AO48+AO49+AO50+AO51+AO57+AO58)*Investitionen!$BE$31 -> 0 | BA52: =(BA48+BA49+BA50+BA51+BA57+BA58)*Investitionen!$BE$31 -> 0 | BN52: =(BN48+BN49+BN50+BN51+BN57+BN58)*Investitionen!$BE$31 -> 0 | BZ52: =(BZ48+BZ49+BZ50+BZ51+BZ57+BZ58)*Investitionen!$BE$31 -> 0 | CL52: =(CL48+CL49+CL50+CL51+CL57+CL58)*Investitionen!$BE$31 -> 0 | CX52: =(CX48+CX49+CX50+CX51+CX57+CX58)*Investitionen!$BE$31 -> 0 | DJ52: =(DJ48+DJ49+DJ50+DJ51+DJ57+DJ58)*Investitionen!$BE$31 -> 0 | DV52: =(DV48+DV49+DV50+DV51+DV57+DV58)*Investitionen!$BE$31 -> 0 | EH52: =(EH48+EH49+EH50+EH51+EH57+EH58)*Investitionen!$BE$31 -> 0 | ET52: =(ET48+ET49+ET50+ET51+ET57+ET58)*Investitionen!$BE$31 -> 0 | FF52: =(FF48+FF49+FF50+FF51+FF57+FF58)*Investitionen!$BE$31 -> 0 | FR52: =(FR48+FR49+FR50+FR51+FR57+FR58)*Investitionen!$BE$31 -> 0 | GI52: 0 | GU52: 23 | GV52: =FF64 -> -2.833333333e-06 | GW52: 23 | GX52: =FF60-FF57 -> 1.666666667e-07 | GY52: =FF42-FF36 -> 0 | GZ52: 2.833333333e-06 | HA52: 0
E53: An das Finanzamt abgeführte Umsatzsteuer | AO53: =Liquidität!FR38 -> 0 | BA53: =AO37*Investitionen!$BE$31 -> 0 | BN53: =BA37*Investitionen!$BE$31 -> 0 | BZ53: =BN37*Investitionen!$BE$31 -> 0 | CL53: =BZ37*Investitionen!$BE$31 -> 0 | CX53: =CL37*Investitionen!$BE$31 -> 0 | DJ53: =CX37*Investitionen!$BE$31 -> 0 | DV53: =DJ37*Investitionen!$BE$31 -> 0 | EH53: =DV37*Investitionen!$BE$31 -> 0 | ET53: =EH37*Investitionen!$BE$31 -> 0 | FF53: =ET37*Investitionen!$BE$31 -> 0 | FR53: =FF37*Investitionen!$BE$31 -> 0 | GI53: 0 | GU53: 24 | GV53: =FR64 -> -3e-06 | GW53: 24 | GX53: =FR60-FR57 -> 1.666666667e-07 | GY53: =FR42-FR36 -> 0 | GZ53: 3e-06 | HA53: 0
E54: Zinsen | AO54: =(Kapital!CU$91+Kapital!$DB$91+Kapital!$DI$91)/12 -> 0 | BA54: =AO54 -> 0 | BN54: =BA54 -> 0 | BZ54: =BN54 -> 0 | CL54: =BZ54 -> 0 | CX54: =CL54 -> 0 | DJ54: =CX54 -> 0 | DV54: =DJ54 -> 0 | EH54: =DV54 -> 0 | ET54: =EH54 -> 0 | FF54: =ET54 -> 0 | FR54: =FF54 -> 0 | GI54: 0 | GK54: 3M | GL54: 6M | GM54: 12M | GR54: =SUM(AO54:GC54) -> 0
E55: Kredittilgung | AO55: =(Kapital!CQ91+Kapital!CX91+Kapital!DE91)/3 -> 1.666666667e-07 | BA55: =AO55 -> 1.666666667e-07 | BN55: =BA55 -> 1.666666667e-07 | BZ55: =BN55 -> 1.666666667e-07 | CL55: =BZ55 -> 1.666666667e-07 | CX55: =CL55 -> 1.666666667e-07 | DJ55: =CX55 -> 1.666666667e-07 | DV55: =DJ55 -> 1.666666667e-07 | EH55: =DV55 -> 1.666666667e-07 | ET55: =EH55 -> 1.666666667e-07 | FF55: =ET55 -> 1.666666667e-07 | FR55: =FF55 -> 1.666666667e-07 | GI55: 2e-06 | GK55: =AO55+BA55+CX55 -> 5e-07 | GL55: =GK55+BZ55+CL55+CX55 -> 1e-06 | GM55: =SUM(AO55:FR55) -> 2e-06 | GR55: =SUM(AO55:GC55) -> 2e-06 | GU55: Min: | GV55: =MIN(GV30:GV54) -> -3e-06 | GW55: =VLOOKUP(GV55,GV30:GW53,2,FALSE) -> 24
E56: Betriebliche Steuern | GI56: =SUM(AO58:FR58) -> 0
E57: Investitionen und gründungsbedingte Kosten | GI57: =SUM(AO57:FR57) -> 0
E58: Sonstige Ausgaben | GI58: =SUM(AO58:FR58) -> 0
E59: Privatentnahme | AO59: =IF(Kosten!$BT$114>0,'Entnahmen-Tool'!$BW$87,Kosten!$BT$118/12) -> 0 | BA59: =AO59 -> 0 | BN59: =AO59 -> 0 | BZ59: =IF(Kosten!$BT$114>0,'Entnahmen-Tool'!$BW$91,Kosten!$BT$118/12) -> 0 | CL59: =BZ59 -> 0 | CX59: =CL59 -> 0 | DJ59: =CX59 -> 0 | DV59: =DJ59 -> 0 | EH59: =DJ59 -> 0 | ET59: =EH59 -> 0 | FF59: =ET59 -> 0 | FR59: =FF59 -> 0 | GI59: =SUM(AO59:FR59) -> 0 | GK59: =AO59+BA59+BN59 -> 0 | GL59: =GK59+BZ59+CL59+CX59 -> 0 | GM59: =SUM(AO59:FR59) -> 0 | GR59: =SUM(AO59:GC59) -> 0
E60: Summe Ausgaben | AO60: =SUM(AO47:AO59) -> 1.666666667e-07 | BA60: =SUM(BA47:BA59) -> 1.666666667e-07 | BN60: =SUM(BN47:BN59) -> 1.666666667e-07 | BZ60: =SUM(BZ47:BZ59) -> 1.666666667e-07 | CL60: =SUM(CL47:CL59) -> 1.666666667e-07 | CX60: =SUM(CX47:CX59) -> 1.666666667e-07 | DJ60: =SUM(DJ47:DJ59) -> 1.666666667e-07 | DV60: =SUM(DV47:DV59) -> 1.666666667e-07 | EH60: =SUM(EH47:EH59) -> 1.666666667e-07 | ET60: =SUM(ET47:ET59) -> 1.666666667e-07 | FF60: =SUM(FF47:FF59) -> 1.666666667e-07 | FR60: =SUM(FR47:FR59) -> 1.666666667e-07 | GI60: =SUM(AO60:FR60) -> 2e-06
E62: Ergebnis (2-4) | AO62: =AO42-AO60 -> -1.666666667e-07 | BA62: =BA42-BA60 -> -1.666666667e-07 | BN62: =BN42-BN60 -> -1.666666667e-07 | BZ62: =BZ42-BZ60 -> -1.666666667e-07 | CL62: =CL42-CL60 -> -1.666666667e-07 | CX62: =CX42-CX60 -> -1.666666667e-07 | DJ62: =DJ42-DJ60 -> -1.666666667e-07 | DV62: =DV42-DV60 -> -1.666666667e-07 | EH62: =EH42-EH60 -> -1.666666667e-07 | ET62: =ET42-ET60 -> -1.666666667e-07 | FF62: =FF42-FF60 -> -1.666666667e-07 | FR62: =FR42-FR60 -> -1.666666667e-07
E64: Liquidität (3-4) | AO64: =AO44-AO60 -> -1.166666667e-06 | BA64: =BA44-BA60 -> -1.333333333e-06 | BN64: =BN44-BN60 -> -1.5e-06 | BZ64: =BZ44-BZ60 -> -1.666666667e-06 | CL64: =CL44-CL60 -> -1.833333333e-06 | CX64: =CX44-CX60 -> -2e-06 | DJ64: =DJ44-DJ60 -> -2.166666667e-06 | DV64: =DV44-DV60 -> -2.333333333e-06 | EH64: =EH44-EH60 -> -2.5e-06 | ET64: =ET44-ET60 -> -2.666666667e-06 | FF64: =FF44-FF60 -> -2.833333333e-06 | FR64: =FR44-FR60 -> -3e-06
E70: Kontrolle: | AO70: =IF(AO64<$AO$79*-1,"Achtung!","In Ordnung!") -> Achtung! | BA70: =IF(BA64<$AO$79*-1,"Achtung!","In Ordnung!") -> Achtung! | BN70: =IF(BN64<$AO$79*-1,"Achtung!","In Ordnung!") -> Achtung! | BZ70: =IF(BZ64<$AO$79*-1,"Achtung!","In Ordnung!") -> Achtung! | CL70: =IF(CL64<$AO$79*-1,"Achtung!","In Ordnung!") -> Achtung! | CX70: =IF(CX64<$AO$79*-1,"Achtung!","In Ordnung!") -> Achtung! | DJ70: =IF(DJ64<$AO$79*-1,"Achtung!","In Ordnung!") -> Achtung! | DV70: =IF(DV64<$AO$79*-1,"Achtung!","In Ordnung!") -> Achtung! | EH70: =IF(EH64<$AO$79*-1,"Achtung!","In Ordnung!") -> Achtung! | ET70: =IF(ET64<$AO$79*-1,"Achtung!","In Ordnung!") -> Achtung! | FF70: =IF(FF64<$AO$79*-1,"Achtung!","In Ordnung!") -> Achtung! | FR70: =IF(FR64<$AO$79*-1,"Achtung!","In Ordnung!") -> Achtung!
F73: Kontrollsummen: | AO73: Nicht ausdrucken!
F74: Summe geplanter Wareneinsatz: | AO74: =Kosten!BT57 -> 0
F75: Geplanter Wareneinsatz pro Monat: | AO75: =AO74/12 -> 0
F76: Summe Zahlung an Lieferanten: | AO76: =SUM(AO48:FR48) -> 0
F77: Differenz: | AO77: =AO76-AO74 -> 0
AO78: =IF(OR(AO77<-500,AO77>500),"Bitte prüfen!","") -> 
F79: Kontokorrent-Kredit: | AO79: =Kapital!AO56 -> 0
F80: Kleinster Wert in Liquiditätsvorschau: | AO80: =MIN(AO64,BA64,BN64,BZ64,CL64,CX64,DJ64,DV64,EH64,ET64,FF64,FR64) -> -3e-06
F81: Kontokorrent-Kredit-Linie eingehalten: | AO81: =IF(AO80<AO79*-1,"nein","ja") -> nein

Sheet Kapitalbedarf
M4: Kapitalbedarfsplan
M7: Schritt 1: Investitionen
M13: Schritt 2: Umsätze | AO13: Personalkosten | BE13: Rentabilitätsplan
M17: Schritt 3: Kostenaufstellung | AO17: Materialkosten | BE17: Liquiditätsplan
M21: Schritt 4: Einnahmen | AO21: Abschreibungen | BE21: Kapitalbedarfsplan
E25: Start | M25: Schritt 5: Eigen- & Fremdkapital | AO25: Entnahme | BE25: Finanzierungsplan
E30: Gründungsbedingte Kosten (Investitionen vor der Gründung)
E32: Gründungsberatung | BE32: =Investitionen!BE35 -> 0
E33: Erstberatung Steuerberater | BE33: =Investitionen!BE36 -> 0
E34: Eintragung ins Handelsregister und Notarkosten | BE34: =Investitionen!BE37 -> 0
E35: Gewerbeanmeldung | BE35: =Investitionen!BE38 -> 0
E36: Markenschutz | BE36: =Investitionen!BE39 -> 0
E37: Einmalige Patent-, Lizenz-, Franchisegebühren | BE37: =Investitionen!BE40 -> 0
E38: Sonstiges | BE38: =Investitionen!BE41 -> 0
E39: Summe Gründungskosten | BE39: =SUM(BE32:BE38) -> 0
E41: Investitionen Büro / Halle / Laden
E43: Investition Büro, Halle, Laden | BE43: =Investitionen!BE46 -> 0
E44: Anschaffung Grundstück, Gebäude | BE44: =Investitionen!BE47 -> 0
E45: Grunderwerbskosten (Notar, Grunderwerbssteuer) | BE45: =Investitionen!BE48 -> 0
E46: Maklerprovision | BE46: =Investitionen!BE49 -> 0
E47: Baukosten | BE47: =Investitionen!BE50 -> 0
E48: Bauliche Änderungen, Renovierung | BE48: =Investitionen!BE51 -> 0
E49: Übernahme bzw. Kauf von Unternehmensanteilen | BE49: =Investitionen!BE52 -> 0
E50: Mietkaution | BE50: =Investitionen!BE53 -> 0
E51: Sonstiges | BE51: =Investitionen!BE54 -> 0
E52: Summe Büro, Halle, Laden | BE52: =SUM(BE43:BE51) -> 0
E54: Investitionen Geschäfts- und Betriebsausstattung
E56: Maschinen, Geräte, Werkzeuge | BE56: =Investitionen!BE59 -> 0
E57: Büromöbel, Ladeneinrichtung | BE57: =Investitionen!BE60 -> 0
E58: Warenlager | BE58: =Investitionen!BE61 -> 0
E59: Fuhrpark, Betriebsfahrzeug | BE59: =Investitionen!BE62 -> 0
E60: PC, Laptop, Drucker | BE60: =Investitionen!BE63 -> 0
E61: Kasse, Kopierer | BE61: =Investitionen!BE64 -> 0
E62: Software | BE62: =Investitionen!BE65 -> 0
E63: Telefon, ISDN-/DSL- Neuanschluss, Netzwerk | BE63: =Investitionen!BE66 -> 0
E64: Erstausstattung Geschäftsunterlagen | BE64: =Investitionen!BE67 -> 0
E65: Kosten der Markterschließung | BE65: =Investitionen!BE68 -> 0
E66: Sonstiges | BE66: =Investitionen!BE69 -> 0
E67: Summe Geschäfts- und Betriebsausstattung | BE67: =SUM(BE56:BE66) -> 0
E69: Summe Kapitalbedarf vor der Gründung | BE69: =BE67+BE52+BE39 -> 0
E71: Berücksichtigung der größten Liquiditätslücke nach der Gründung | ET71: für 3 Monate
ET72: für 6 Monate
E73: Die größte Liquiditätslücke entsteht in Monat: | BM73: =Liquidität!AO84 -> 24 | CC73: für 3 Monate | CD73: 2 | ET73: für 12 Monate
CC74: für 6 Monate
E75: Summe Ausgaben in diesem Zeitraum | BE75: =VLOOKUP($BM$73,LiquiditätII!GW30:HA53,4,FALSE) -> 3e-06 | CC75: für 12 Monate | ET75: 1
E76: Summe Einnahmen in diesem Zeitraum | BE76: =VLOOKUP($BM$73,LiquiditätII!GW30:HA53,5,FALSE) -> 0
E77: Personalkosten ohne Unternehmerlohn
E78: =Kosten!E63 -> Sonstige Betriebsausgaben
E79: Zinsen
E80: Tilgung
E81: Unternehmerlohn, Privatentnahme
E82: Summe Kosten für Betriebsmittel nach der Gründung
ET83: für 6 Monate
E84: Geplante Umsatzeinnahmen
ET85: für 6 Monate
E86: Summe zusätzlicher Kapitalbedarf nach der Gründung | BE86: =BE75-BE76 -> 3e-06
ET87: für 6 Monate
E88: Gesamter Kapitalbedarf (Eigen- und Fremdkapital) | BE88: =IF(BE86>0,BE69+BE86,BE69) -> 3e-06

Sheet Finanzierung
M4: Finanzierungsplan
M7: Schritt 1: Investitionen
M13: Schritt 2: Umsätze | AO13: Personalkosten | BE13: Rentabilitätsplan
M17: Schritt 3: Kostenaufstellung | AO17: Materialkosten | BE17: Liquiditätsplan
M21: Schritt 4: Einnahmen | AO21: Abschreibungen | BE21: Kapitalbedarfsplan
E25: Start | M25: Schritt 5: Eigen- & Fremdkapital | AO25: Entnahme | BE25: Finanzierungsplan
E30: Kapitalbedarf vor der Gründung | BE30: =Kapitalbedarf!BE69 -> 0
E32: Vorhandenes Eigenkapital
E34: Barvermögen | BE34: =Kapital!AO32 -> 0
E35: Bankguthaben | BE35: =Kapital!AO33 -> 0
E36: Betriebsnotwendige Sacheinlagen | BE36: =Kapital!AO34 -> 0
E37: Eigenleistungen (nur wenn aktivierungsfähig) | BE37: =Kapital!AO35 -> 0
E38: Bausparverträge | BE38: =Kapital!AO36 -> 0
E39: Verwandtendarlehen | BE39: =Kapital!AO37 -> 0
E40: Schenkungen | BE40: =Kapital!AO38 -> 0
E41: Finanzmittel von privaten Dritten | BE41: =Kapital!AO39 -> 0
E42: Sonstiges | BE42: =Kapital!AO40 -> 0
E43: Summe Eigenkapital | BE43: =SUM(BE34:BE42) -> 0
E45: Langfristiges Fremdkapital
E46: Fördermittel (vergünstigte Kredite) | BE46: =Kapital!AO46+Kapital!AO47 -> 0
E47: davon Auszahlungsbetrag: | BE47: =Kapital!BR46+Kapital!BR47 -> 0
E48: Kredite der Hausbank | BE48: =Kapital!AO48 -> 0
E49: Sonstiges | BE49: =Kapital!AO49 -> 0
E50: Summe Fremdkapital | BE50: =SUM(BE47:BE49) -> 0
E52: Vorhandenes Gesamtkapital | BE52: =BE43+BE50 -> 0
E54: Über-(+) / Unterdeckung (-) vor Gründung | BE54: =BE52-BE30 -> 0
E56: Zusätzlicher Kapitalbedarf nach der Gründung für die ersten | BC56: =Liquidität!AO84 -> 24 | BH56: Monate
E58: Summe der Ausgaben in diesem Zeitraum | BE58: =Kapitalbedarf!BE75 -> 3e-06
E60: Summe der Einnahmen in diesem Zeitraum | BE60: =Kapitalbedarf!BE76 -> 0
E62: Zusätzlicher Kapitalbedarf nach der Gründung | BE62: =BE58-BE60 -> 3e-06
E64: Über- (+)/ Unterdeckung (-) gesamt | BE64: =BE52+BE60-BE30-BE58 -> -3e-06
E66: Kurzfristiges Fremdkapital
E68: Kontokorrent-Kredit | BE68: =Kapital!AO56 -> 0
E70: Vorhandene Sicherheiten
E72: Haus- und Grundbesitz | BE72: =Kapital!AO60 -> 0
E73: Lebensversicherungen | BE73: =Kapital!AO61 -> 0
E74: Bürgschaften Dritter | BE74: =Kapital!AO62 -> 0
E75: Summe Sicherheiten | BE75: =SUM(BE72:BE74) -> 0

Sheet Tabelle1
